Ref No,Fund Type,Dept,Cost Centre Description    ,Description    ,Creditor Name    ,GL Code Net Amount,Payment date        
2,Revenue,CAHD,18-25 Year Olds,Permanent Residential,1 St Georges House,13333.52, 02-Jun-2020
3,Revenue,CAHD,Central - Commissioned Services,Permanent Residential,1 St Georges House,13333.52, 30-Jun-2020
4,Revenue,CAHD,Supporting People Programme,Grants to Voluntary Bodies,1625 Independent People,15167.00, 01-Jun-2020
5,Revenue,CAHD,Supporting People Programme,Grants to Voluntary Bodies,1625 Independent People,10541.50, 01-Jun-2020
6,Revenue,CAHD,Central - Commissioned Services,Other Small Contracts,3 Trees Community Support Ltd,5128.35, 01-Jun-2020
7,Revenue,CAHD,Central - Commissioned Services,Supported Living,3 Trees Community Support Ltd,4953.04, 01-Jun-2020
8,Revenue,CAHD,Central - Commissioned Services,Other Small Contracts,3 Trees Community Support Ltd,5131.84, 04-Jun-2020
9,Revenue,CAHD,Central - Commissioned Services,Supported Living,3 Trees Community Support Ltd,5162.20, 04-Jun-2020
10,Revenue,CAHD,Central - Commissioned Services,Other Small Contracts,3 Trees Community Support Ltd,5131.84, 12-Jun-2020
11,Revenue,CAHD,Central - Commissioned Services,Supported Living,3 Trees Community Support Ltd,5177.14, 12-Jun-2020
12,Revenue,CAHD,Central - Commissioned Services,Other Small Contracts,3 Trees Community Support Ltd,5089.96, 18-Jun-2020
13,Revenue,CAHD,Central - Commissioned Services,Supported Living,3 Trees Community Support Ltd,4958.04, 18-Jun-2020
14,Revenue,CAHD,Central - Commissioned Services,Other Small Contracts,3 Trees Community Support Ltd,5131.84, 23-Jun-2020
15,Revenue,CAHD,Central - Commissioned Services,Supported Living,3 Trees Community Support Ltd,4958.04, 23-Jun-2020
16,Revenue,CAHD,Covid � ASC - Infection Control,Grants to Voluntary Bodies,3 Trees Community Support Ltd,954.87, 26-Jun-2020
17,Revenue,CAHD,Additional Payments to providers - COVID,Other Small Contracts,3 Trees Community Support Ltd,540.02, 18-Jun-2020
18,Revenue,CAHD,Additional Payments to providers - COVID,Other Small Contracts,3 Trees Community Support Ltd,801.00, 18-Jun-2020
19,Revenue,CAHD,Additional Payments to providers - COVID,Other Small Contracts,3 Trees Community Support Ltd,759.12, 25-Jun-2020
20,Revenue,CAHD,Additional Payments to providers - COVID,Other Small Contracts,3 Trees Community Support Ltd,554.96, 10-Jun-2020
21,Revenue,CAHD,South - Commissioned Services,Permanent Nursing,3Rd Floor  The Aspect,3593.88, 02-Jun-2020
22,Revenue,CAHD,South - Commissioned Services,Permanent Nursing,3Rd Floor  The Aspect,3593.88, 30-Jun-2020
23,Revenue,CAHD,North - Community based support,Fees & Charges Income - General,3Rd Floor  The Aspect,541.08, 02-Jun-2020
24,Revenue,CAHD,South - Commissioned Services,Respite Planned - Residential,3Rd Floor  The Aspect,1485.71, 02-Jun-2020
25,Revenue,CAHD,North - Community based support,Permanent Nursing,3Rd Floor  The Aspect,3234.72, 02-Jun-2020
26,Revenue,CAHD,North - Community based support,Permanent Nursing,3Rd Floor  The Aspect,3234.72, 30-Jun-2020
27,Revenue,CAHD,South - Commissioned Services,Permanent Nursing,3Rd Floor  The Aspect,2287.36, 02-Jun-2020
28,Revenue,CAHD,South - Commissioned Services,Permanent Nursing,3Rd Floor  The Aspect,2287.36, 30-Jun-2020
29,Revenue,CAHD,South - Commissioned Services,Permanent Residential,5Th Floor Harlech Court,17000.48, 02-Jun-2020
30,Revenue,CAHD,South - Commissioned Services,Permanent Residential,5Th Floor Harlech Court,17000.48, 30-Jun-2020
31,Revenue,CAHD,Covid � ASC - Infection Control,Grants to Voluntary Bodies,5Th Floor Harlech Court,910.91, 26-Jun-2020
32,Revenue,CAHD,South - Commissioned Services,Permanent Residential,5Th Floor Harlech Court,10627.92, 02-Jun-2020
33,Revenue,CAHD,South - Commissioned Services,Permanent Residential,5Th Floor Harlech Court,10627.92, 30-Jun-2020
34,Revenue,CAHD,S28A cases,Permanent Residential,5Th Floor Harlech Court,11122.76, 02-Jun-2020
35,Revenue,CAHD,S28A cases,Permanent Residential,5Th Floor Harlech Court,11122.76, 30-Jun-2020
36,Revenue,CAHD,South - Commissioned Services,Permanent Residential,5Th Floor Harlech Court,11665.12, 02-Jun-2020
37,Revenue,CAHD,South - Commissioned Services,Permanent Residential,5Th Floor Harlech Court,11665.12, 30-Jun-2020
38,Revenue,CAHD,Covid � ASC - Infection Control,Grants to Voluntary Bodies,5Th Floor Harlech Court,5476.35, 10-Jun-2020
39,Revenue,CAHD,North - Community based support,Permanent Residential,5Th Floor Harlech Court,12498.56, 02-Jun-2020
40,Revenue,CAHD,North - Community based support,Permanent Residential,5Th Floor Harlech Court,12498.56, 30-Jun-2020
41,Revenue,CAHD,North - Community based support,Permanent Residential,5Th Floor Harlech Court,10537.24, 02-Jun-2020
42,Revenue,CAHD,North - Community based support,Permanent Residential,5Th Floor Harlech Court,10537.24, 30-Jun-2020
43,Revenue,CAHD,North - Community based support,Permanent Residential,5Th Floor Harlech Court,9071.12, 02-Jun-2020
44,Revenue,CAHD,North - Community based support,Permanent Residential,5Th Floor Harlech Court,9071.12, 30-Jun-2020
45,Revenue,CAHD,CSC - Section 17 0-25,Preventative Assistance,A+bility Ltd,556.00, 11-Jun-2020
46,Revenue,CAHD,EARLY YEARS DEPRIVATION PAYMENT,Preventative Assistance,Abacus Pre School @ Mangotsfield,870.54, 25-Jun-2020
47,Revenue,CAHD,Early Years Pupil Premium Grant,Preventative Assistance,Abacus Pre School @ Mangotsfield,723.45, 25-Jun-2020
48,Revenue,CAHD,EARLY YEARS DEPRIVATION PAYMENT,Preventative Assistance,Abbeywood Tots Day Nursery Ltd,878.83, 25-Jun-2020
49,Revenue,CAHD,Early Years Pupil Premium Grant,Preventative Assistance,Abbeywood Tots Day Nursery Ltd,730.34, 25-Jun-2020
50,Revenue,CAHD,South - Commissioned Services,Permanent Nursing,Acacia House,7490.00, 02-Jun-2020
51,Revenue,CAHD,South - Commissioned Services,Permanent Nursing,Acacia House,2354.00, 02-Jun-2020
52,Revenue,CAHD,South - Commissioned Services,Permanent Nursing,Acacia House,2996.00, 30-Jun-2020
53,Revenue,CAHD,MH Purchasing - Younger,Permanent Residential,Acacia House,9493.71, 30-Jun-2020
54,Revenue,CAHD,Jointly Funded H&SC Packages,Permanent Residential,Acacia House,9493.71, 30-Jun-2020
55,Revenue,CAHD,North - Community based support,Respite Emergency - Residential,Acacia House,3764.29, 30-Jun-2020
56,Revenue,CAHD,Jointly Funded H&SC Packages,Permanent Residential,Acorn Care Providers,2310.92, 02-Jun-2020
57,Revenue,CAHD,Section 117 Placements MH Younger,Permanent Residential,Acorn Care Providers,5481.28, 02-Jun-2020
58,Revenue,CAHD,Jointly Funded H&SC Packages,Permanent Residential,Acorn Care Providers,2310.92, 30-Jun-2020
59,Revenue,CAHD,Section 117 Placements MH Younger,Permanent Residential,Acorn Care Providers,5481.28, 30-Jun-2020
60,Revenue,CAHD,North - S117,Permanent Residential,Acorn Care Providers,3978.00, 02-Jun-2020
61,Revenue,CAHD,Jointly Funded H&SC Packages,Permanent Residential,Acorn Care Providers,2142.00, 02-Jun-2020
62,Revenue,CAHD,North - S117,Permanent Residential,Acorn Care Providers,3978.00, 30-Jun-2020
63,Revenue,CAHD,Jointly Funded H&SC Packages,Permanent Residential,Acorn Care Providers,2142.00, 30-Jun-2020
64,Revenue,CAHD,MH Purchasing - Younger,Permanent Residential,Acorn Care Providers,6382.04, 02-Jun-2020
65,Revenue,CAHD,Jointly Funded H&SC Packages,Permanent Residential,Acorn Care Providers,3436.48, 02-Jun-2020
66,Revenue,CAHD,MH Purchasing - Younger,Permanent Residential,Acorn Care Providers,6382.04, 30-Jun-2020
67,Revenue,CAHD,Jointly Funded H&SC Packages,Permanent Residential,Acorn Care Providers,3436.48, 30-Jun-2020
68,Revenue,CAHD,MH Purchasing - Younger,Permanent Residential,Acorn Care Providers,6266.88, 02-Jun-2020
69,Revenue,CAHD,MH Purchasing - Younger,Permanent Residential,Acorn Care Providers,6266.88, 30-Jun-2020
70,Revenue,CAHD,Covid � ASC - Infection Control,Grants to Voluntary Bodies,Acorn Care Providers,2987.10, 10-Jun-2020
71,Revenue,CAHD,Covid � ASC - Infection Control,Grants to Voluntary Bodies,Acorn Care Providers,995.70, 10-Jun-2020
72,Revenue,CAHD,Training - Adult Services,Training Expenses,Acorn Health & Safety Limited,477.00, 05-Jun-2020
73,Revenue,CAHD,Training - Adult Services,Training Expenses,Acorn Health & Safety Limited,477.00, 25-Jun-2020
74,Revenue,CAHD,CSC - Agency Fostering,Foster Parent Allowances,Action for Children,7714.20, 24-Jun-2020
75,Revenue,CAHD,CSC - Professional Fees Foster Carers,Adults - Family Support,Individual,990.14, 19-Jun-2020
76,Revenue,CAHD,South - Commissioned Services,Permanent Nursing,Administration And Revenue Centre,2789.80, 02-Jun-2020
77,Revenue,CAHD,South Glos Users in South Glos Homes,Permanent Nursing,Administration And Revenue Centre,735.68, 02-Jun-2020
78,Revenue,CAHD,South Glos Users in South Glos Homes,Permanent Nursing,Administration And Revenue Centre,1234.89, 02-Jun-2020
79,Revenue,CAHD,South - Commissioned Services,Permanent Nursing,Administration And Revenue Centre,2789.80, 30-Jun-2020
80,Revenue,CAHD,South Glos Users in South Glos Homes,Permanent Nursing,Administration And Revenue Centre,735.68, 30-Jun-2020
81,Revenue,CAHD,South - Commissioned Services,Permanent Nursing,Administration And Revenue Centre,2445.96, 02-Jun-2020
82,Revenue,CAHD,South - Commissioned Services,Permanent Nursing,Administration And Revenue Centre,2445.96, 30-Jun-2020
83,Revenue,CAHD,South - Commissioned Services,Permanent Nursing,Administration And Revenue Centre,2445.96, 02-Jun-2020
84,Revenue,CAHD,South Glos Users in South Glos Homes,Permanent Nursing,Administration And Revenue Centre,735.68, 02-Jun-2020
85,Revenue,CAHD,South Glos Users in South Glos Homes,Permanent Nursing,Administration And Revenue Centre,1234.89, 02-Jun-2020
86,Revenue,CAHD,South - Commissioned Services,Permanent Nursing,Administration And Revenue Centre,2445.96, 30-Jun-2020
87,Revenue,CAHD,South Glos Users in South Glos Homes,Permanent Nursing,Administration And Revenue Centre,735.68, 30-Jun-2020
88,Revenue,CAHD,South - Commissioned Services,Permanent Nursing,Administration And Revenue Centre,2445.96, 02-Jun-2020
89,Revenue,CAHD,South Glos Users in South Glos Homes,Permanent Nursing,Administration And Revenue Centre,735.68, 02-Jun-2020
90,Revenue,CAHD,South Glos Users in South Glos Homes,Permanent Nursing,Administration And Revenue Centre,1234.89, 02-Jun-2020
91,Revenue,CAHD,South - Commissioned Services,Permanent Nursing,Administration And Revenue Centre,2445.96, 30-Jun-2020
92,Revenue,CAHD,South Glos Users in South Glos Homes,Permanent Nursing,Administration And Revenue Centre,735.68, 30-Jun-2020
93,Revenue,CAHD,South - Commissioned Services,Permanent Residential,Administration And Revenue Centre,2511.80, 02-Jun-2020
94,Revenue,CAHD,South - Commissioned Services,Permanent Residential,Administration And Revenue Centre,2511.80, 30-Jun-2020
95,Revenue,CAHD,South Glos Users in South Glos Homes,Permanent Nursing,Administration And Revenue Centre,735.68, 02-Jun-2020
96,Revenue,CAHD,South Glos Users in South Glos Homes,Permanent Nursing,Administration And Revenue Centre,1234.89, 02-Jun-2020
97,Revenue,CAHD,South Glos Users in South Glos Homes,Permanent Nursing,Administration And Revenue Centre,735.68, 30-Jun-2020
98,Revenue,CAHD,North - Community based support,Permanent Nursing,Administration And Revenue Centre,2949.60, 02-Jun-2020
99,Revenue,CAHD,South Glos Users in South Glos Homes,Permanent Nursing,Administration And Revenue Centre,735.68, 02-Jun-2020
100,Revenue,CAHD,South Glos Users in South Glos Homes,Permanent Nursing,Administration And Revenue Centre,1234.89, 02-Jun-2020
101,Revenue,CAHD,North - Community based support,Permanent Nursing,Administration And Revenue Centre,2949.60, 30-Jun-2020
102,Revenue,CAHD,South Glos Users in South Glos Homes,Permanent Nursing,Administration And Revenue Centre,735.68, 30-Jun-2020
103,Revenue,CAHD,South Glos Users in South Glos Homes,Permanent Nursing,Administration And Revenue Centre,1234.89, 02-Jun-2020
104,Revenue,CAHD,South Glos Users in South Glos Homes,Permanent Nursing,Administration And Revenue Centre,735.68, 02-Jun-2020
105,Revenue,CAHD,South Glos Users in South Glos Homes,Permanent Nursing,Administration And Revenue Centre,1234.89, 02-Jun-2020
106,Revenue,CAHD,South Glos Users in South Glos Homes,Permanent Nursing,Administration And Revenue Centre,735.68, 30-Jun-2020
107,Revenue,CAHD,South Glos Users in South Glos Homes,Permanent Nursing,Administration And Revenue Centre,735.68, 02-Jun-2020
108,Revenue,CAHD,South Glos Users in South Glos Homes,Permanent Nursing,Administration And Revenue Centre,1234.89, 02-Jun-2020
109,Revenue,CAHD,South Glos Users in South Glos Homes,Permanent Nursing,Administration And Revenue Centre,735.68, 30-Jun-2020
110,Revenue,CAHD,South Glos Users in South Glos Homes,Permanent Nursing,Administration And Revenue Centre,735.68, 02-Jun-2020
111,Revenue,CAHD,South Glos Users in South Glos Homes,Permanent Nursing,Administration And Revenue Centre,1234.89, 02-Jun-2020
112,Revenue,CAHD,South Glos Users in South Glos Homes,Permanent Nursing,Administration And Revenue Centre,735.68, 30-Jun-2020
113,Revenue,CAHD,South - Commissioned Services,Permanent Nursing,Administration And Revenue Centre,2949.60, 02-Jun-2020
114,Revenue,CAHD,South - Commissioned Services,Permanent Nursing,Administration And Revenue Centre,2949.60, 30-Jun-2020
115,Revenue,CAHD,South - Commissioned Services,Permanent Residential,Administration And Revenue Centre,3203.04, 02-Jun-2020
116,Revenue,CAHD,South - Commissioned Services,Permanent Residential,Administration And Revenue Centre,3203.04, 30-Jun-2020
117,Revenue,CAHD,South Glos Users in South Glos Homes,Permanent Nursing,Administration And Revenue Centre,735.68, 02-Jun-2020
118,Revenue,CAHD,South Glos Users in South Glos Homes,Permanent Nursing,Administration And Revenue Centre,1234.89, 02-Jun-2020
119,Revenue,CAHD,South Glos Users in South Glos Homes,Permanent Nursing,Administration And Revenue Centre,735.68, 30-Jun-2020
120,Revenue,CAHD,South Glos Users in South Glos Homes,Permanent Nursing,Administration And Revenue Centre,735.68, 02-Jun-2020
121,Revenue,CAHD,South Glos Users in South Glos Homes,Permanent Nursing,Administration And Revenue Centre,1234.89, 02-Jun-2020
122,Revenue,CAHD,South Glos Users in South Glos Homes,Permanent Nursing,Administration And Revenue Centre,735.68, 30-Jun-2020
123,Revenue,CAHD,South - Commissioned Services,Permanent Residential,Administration And Revenue Centre,5049.00, 02-Jun-2020
124,Revenue,CAHD,South - Commissioned Services,Permanent Residential,Administration And Revenue Centre,4714.29, 02-Jun-2020
125,Revenue,CAHD,South - Commissioned Services,Permanent Residential,Administration And Revenue Centre,3366.00, 02-Jun-2020
126,Revenue,CAHD,South - Commissioned Services,Permanent Residential,Administration And Revenue Centre,3366.00, 30-Jun-2020
127,Revenue,CAHD,South Glos Users in South Glos Homes,Permanent Nursing,Administration And Revenue Centre,1234.89, 02-Jun-2020
128,Revenue,CAHD,South - Commissioned Services,Permanent Nursing,Administration And Revenue Centre,2924.56, 02-Jun-2020
129,Revenue,CAHD,South - Commissioned Services,Permanent Nursing,Administration And Revenue Centre,2924.56, 30-Jun-2020
130,Revenue,CAHD,South Glos Users in South Glos Homes,Permanent Nursing,Administration And Revenue Centre,802.79, 25-Jun-2020
131,Revenue,CAHD,South Glos Users in South Glos Homes,Permanent Nursing,Administration And Revenue Centre,802.79, 25-Jun-2020
132,Revenue,CAHD,South Glos Users in South Glos Homes,Permanent Nursing,Administration And Revenue Centre,802.79, 25-Jun-2020
133,Revenue,CAHD,South Glos Users in South Glos Homes,Permanent Nursing,Administration And Revenue Centre,802.79, 25-Jun-2020
134,Revenue,CAHD,South Glos Users in South Glos Homes,Permanent Nursing,Administration And Revenue Centre,802.79, 25-Jun-2020
135,Revenue,CAHD,South Glos Users in South Glos Homes,Permanent Nursing,Administration And Revenue Centre,802.79, 25-Jun-2020
136,Revenue,CAHD,South Glos Users in South Glos Homes,Permanent Nursing,Administration And Revenue Centre,552.04, 25-Jun-2020
137,Revenue,CAHD,South Glos Users in South Glos Homes,Permanent Nursing,Administration And Revenue Centre,520.46, 25-Jun-2020
138,Revenue,CAHD,South Glos Users in South Glos Homes,Permanent Nursing,Administration And Revenue Centre,552.04, 25-Jun-2020
139,Revenue,CAHD,South Glos Users in South Glos Homes,Permanent Nursing,Administration And Revenue Centre,802.79, 25-Jun-2020
140,Revenue,CAHD,South Glos Users in South Glos Homes,Permanent Nursing,Administration And Revenue Centre,552.04, 25-Jun-2020
141,Revenue,CAHD,South Glos Users in South Glos Homes,Permanent Nursing,Administration And Revenue Centre,552.04, 25-Jun-2020
142,Revenue,CAHD,South Glos Users in South Glos Homes,Permanent Nursing,Administration And Revenue Centre,802.79, 25-Jun-2020
143,Revenue,CAHD,South Glos Users in South Glos Homes,Permanent Nursing,Administration And Revenue Centre,802.79, 25-Jun-2020
144,Revenue,CAHD,South Glos Users in South Glos Homes,Permanent Nursing,Administration And Revenue Centre,562.57, 25-Jun-2020
145,Revenue,CAHD,South Glos Users in South Glos Homes,Permanent Nursing,Administration And Revenue Centre,802.79, 25-Jun-2020
146,Revenue,CAHD,South Glos Users in South Glos Homes,Permanent Nursing,Administration And Revenue Centre,802.79, 25-Jun-2020
147,Revenue,CAHD,South Glos Users in South Glos Homes,Permanent Nursing,Administration And Revenue Centre,552.04, 25-Jun-2020
148,Revenue,CAHD,South Glos Users in South Glos Homes,Permanent Nursing,Administration And Revenue Centre,802.79, 25-Jun-2020
149,Revenue,CAHD,South Glos Users in South Glos Homes,Permanent Nursing,Administration And Revenue Centre,552.04, 25-Jun-2020
150,Revenue,CAHD,South Glos Users in South Glos Homes,Permanent Nursing,Administration And Revenue Centre,564.69, 25-Jun-2020
151,Revenue,CAHD,South Glos Users in South Glos Homes,Permanent Nursing,Administration And Revenue Centre,802.79, 25-Jun-2020
152,Revenue,CAHD,Covid � ASC - Infection Control,Grants to Voluntary Bodies,Administration And Revenue Centre,5465.46, 26-Jun-2020
153,Revenue,CAHD,South - Commissioned Services,Permanent Nursing,Administration And Revenue Centre,2511.80, 02-Jun-2020
154,Revenue,CAHD,South Glos Users in South Glos Homes,Permanent Nursing,Administration And Revenue Centre,735.68, 02-Jun-2020
155,Revenue,CAHD,South Glos Users in South Glos Homes,Permanent Nursing,Administration And Revenue Centre,1234.89, 02-Jun-2020
156,Revenue,CAHD,South - Commissioned Services,Permanent Nursing,Administration And Revenue Centre,2511.80, 30-Jun-2020
157,Revenue,CAHD,South Glos Users in South Glos Homes,Permanent Nursing,Administration And Revenue Centre,735.68, 30-Jun-2020
158,Revenue,CAHD,South - Commissioned Services,Permanent Nursing,Administration And Revenue Centre,2445.96, 02-Jun-2020
159,Revenue,CAHD,South Glos Users in South Glos Homes,Permanent Nursing,Administration And Revenue Centre,735.68, 02-Jun-2020
160,Revenue,CAHD,South Glos Users in South Glos Homes,Permanent Nursing,Administration And Revenue Centre,1234.89, 02-Jun-2020
161,Revenue,CAHD,South - Commissioned Services,Permanent Nursing,Administration And Revenue Centre,2445.96, 30-Jun-2020
162,Revenue,CAHD,South Glos Users in South Glos Homes,Permanent Nursing,Administration And Revenue Centre,735.68, 30-Jun-2020
163,Revenue,CAHD,South - Commissioned Services,Permanent Nursing,Administration And Revenue Centre,2445.96, 02-Jun-2020
164,Revenue,CAHD,South Glos Users in South Glos Homes,Permanent Nursing,Administration And Revenue Centre,735.68, 02-Jun-2020
165,Revenue,CAHD,South Glos Users in South Glos Homes,Permanent Nursing,Administration And Revenue Centre,1234.89, 02-Jun-2020
166,Revenue,CAHD,South - Commissioned Services,Permanent Nursing,Administration And Revenue Centre,2445.96, 30-Jun-2020
167,Revenue,CAHD,South Glos Users in South Glos Homes,Permanent Nursing,Administration And Revenue Centre,735.68, 30-Jun-2020
168,Revenue,CAHD,South - S117,Permanent Residential,Administration And Revenue Centre,3190.56, 02-Jun-2020
169,Revenue,CAHD,South - S117,Permanent Residential,Administration And Revenue Centre,3190.56, 30-Jun-2020
170,Revenue,CAHD,South - Commissioned Services,Permanent Nursing,Administration And Revenue Centre,2445.96, 02-Jun-2020
171,Revenue,CAHD,South Glos Users in South Glos Homes,Permanent Nursing,Administration And Revenue Centre,735.68, 02-Jun-2020
172,Revenue,CAHD,South Glos Users in South Glos Homes,Permanent Nursing,Administration And Revenue Centre,1234.89, 02-Jun-2020
173,Revenue,CAHD,South - Commissioned Services,Permanent Nursing,Administration And Revenue Centre,2445.96, 30-Jun-2020
174,Revenue,CAHD,South Glos Users in South Glos Homes,Permanent Nursing,Administration And Revenue Centre,735.68, 30-Jun-2020
175,Revenue,CAHD,South - Commissioned Services,Permanent Nursing,Administration And Revenue Centre,2991.68, 02-Jun-2020
176,Revenue,CAHD,South - Commissioned Services,Permanent Nursing,Administration And Revenue Centre,2991.68, 30-Jun-2020
177,Revenue,CAHD,North - Community based support,Permanent Residential,Administration And Revenue Centre,2949.60, 02-Jun-2020
178,Revenue,CAHD,South Glos Users in South Glos Homes,Permanent Nursing,Administration And Revenue Centre,735.68, 02-Jun-2020
179,Revenue,CAHD,South Glos Users in South Glos Homes,Permanent Nursing,Administration And Revenue Centre,1234.89, 02-Jun-2020
180,Revenue,CAHD,North - Community based support,Permanent Residential,Administration And Revenue Centre,2949.60, 30-Jun-2020
181,Revenue,CAHD,South Glos Users in South Glos Homes,Permanent Nursing,Administration And Revenue Centre,735.68, 30-Jun-2020
182,Revenue,CAHD,Covid � ASC - Infection Control,Grants to Voluntary Bodies,Administration And Revenue Centre,32858.10, 10-Jun-2020
183,Revenue,CAHD,North - Community based support,Permanent Nursing,Administration And Revenue Centre,2367.00, 02-Jun-2020
184,Revenue,CAHD,South - Commissioned Services,Other Small Contracts,Advantedge Commercial Finance Limited,1360.80, 02-Jun-2020
185,Revenue,CAHD,South - Commissioned Services,Other Small Contracts,Advantedge Commercial Finance Limited,685.26, 02-Jun-2020
186,Revenue,CAHD,South - Commissioned Services,Other Small Contracts,Advantedge Commercial Finance Limited,2118.96, 02-Jun-2020
187,Revenue,CAHD,South - Commissioned Services,Other Small Contracts,Advantedge Commercial Finance Limited,2225.88, 02-Jun-2020
188,Revenue,CAHD,South - Commissioned Services,Other Small Contracts,Advantedge Commercial Finance Limited,972.00, 02-Jun-2020
189,Revenue,CAHD,Covid � ASC - Infection Control,Grants to Voluntary Bodies,Advantedge Commercial Finance Limited,1909.74, 26-Jun-2020
190,Revenue,CAHD,South - Commissioned Services,Day Care / Social Activities,Age Concern,634.08, 02-Jun-2020
191,Revenue,CAHD,South - Commissioned Services,Day Care / Social Activities,Age Concern,634.08, 30-Jun-2020
192,Revenue,CAHD,Central - Commissioned Services,Day Care / Social Activities,Age Concern,546.72, 02-Jun-2020
193,Revenue,CAHD,Central - Commissioned Services,Day Care / Social Activities,Age Concern,546.72, 30-Jun-2020
194,Revenue,CAHD,North - Community based support,Day Care / Social Activities,Age Concern,734.40, 02-Jun-2020
195,Revenue,CAHD,North - Community based support,Day Care / Social Activities,Age Concern,734.40, 30-Jun-2020
196,Revenue,CAHD,Central - Commissioned Services,Day Care / Social Activities,Age Concern,546.72, 02-Jun-2020
197,Revenue,CAHD,Central - Commissioned Services,Day Care / Social Activities,Age Concern,546.72, 30-Jun-2020
198,Revenue,CAHD,Central - Commissioned Services,Day Care / Social Activities,Age Concern,634.08, 02-Jun-2020
199,Revenue,CAHD,Central - Commissioned Services,Day Care / Social Activities,Age Concern,634.08, 30-Jun-2020
200,Revenue,CAHD,Central - Commissioned Services,Day Care / Social Activities,Age Concern,634.08, 02-Jun-2020
201,Revenue,CAHD,Central - Commissioned Services,Day Care / Social Activities,Age Concern,634.08, 30-Jun-2020
202,Revenue,CAHD,South - Commissioned Services,Other Small Contracts,Agincare UK Limited,565.11, 01-Jun-2020
203,Revenue,CAHD,Younger MH non-res purchasing,Other Small Contracts,Agincare UK Limited,77.28, 01-Jun-2020
204,Revenue,CAHD,South - Commissioned Services,Other Small Contracts,Agincare UK Limited,777.63, 05-Jun-2020
205,Revenue,CAHD,Younger MH non-res purchasing,Other Small Contracts,Agincare UK Limited,77.28, 05-Jun-2020
206,Revenue,CAHD,South - Commissioned Services,Other Small Contracts,Agincare UK Limited,1077.09, 10-Jun-2020
207,Revenue,CAHD,Younger MH non-res purchasing,Other Small Contracts,Agincare UK Limited,77.28, 10-Jun-2020
208,Revenue,CAHD,South - Commissioned Services,Other Small Contracts,Agincare UK Limited,1526.28, 17-Jun-2020
209,Revenue,CAHD,Younger MH non-res purchasing,Other Small Contracts,Agincare UK Limited,77.28, 17-Jun-2020
210,Revenue,CAHD,Covid � ASC - Infection Control,Grants to Voluntary Bodies,Agincare UK Limited,15414.33, 26-Jun-2020
211,Revenue,CAHD,Extra Care Housing,Private & Voluntary Home Care,Agincare UK Limited,24391.34, 01-Jun-2020
212,Revenue,CAHD,Extra Care Housing,Private & Voluntary Home Care,Agincare UK Limited,11734.93, 01-Jun-2020
213,Revenue,CAHD,Extra Care Housing,Private & Voluntary Home Care,Agincare UK Limited,28508.53, 04-Jun-2020
214,Revenue,CAHD,Extra Care Housing,Private & Voluntary Home Care,Agincare UK Limited,1405.29, 30-Jun-2020
215,Revenue,CAHD,Central - Commissioned Services,Permanent Residential,Alexander House,12155.16, 02-Jun-2020
216,Revenue,CAHD,Central - Commissioned Services,Permanent Residential,Alexander House,12155.16, 30-Jun-2020
217,Revenue,CAHD,Covid 19 -Adult Social Care,Other Small Contracts,AliMo Care Ltd,4.78, 04-Jun-2020
218,Revenue,CAHD,South - Commissioned Services,Other Small Contracts,AliMo Care Ltd,736.12, 04-Jun-2020
219,Revenue,CAHD,North - Community based support,Other Small Contracts,AliMo Care Ltd,348.94, 04-Jun-2020
220,Revenue,CAHD,Covid 19 -Adult Social Care,Other Small Contracts,AliMo Care Ltd,4.78, 04-Jun-2020
221,Revenue,CAHD,South - Commissioned Services,Other Small Contracts,AliMo Care Ltd,688.32, 04-Jun-2020
222,Revenue,CAHD,North - Community based support,Other Small Contracts,AliMo Care Ltd,329.82, 04-Jun-2020
223,Revenue,CAHD,Covid 19 -Adult Social Care,Other Small Contracts,AliMo Care Ltd,9.56, 09-Jun-2020
224,Revenue,CAHD,South - Commissioned Services,Other Small Contracts,AliMo Care Ltd,841.28, 09-Jun-2020
225,Revenue,CAHD,North - Community based support,Other Small Contracts,AliMo Care Ltd,344.16, 09-Jun-2020
226,Revenue,CAHD,Covid 19 -Adult Social Care,Other Small Contracts,AliMo Care Ltd,4.78, 29-Jun-2020
227,Revenue,CAHD,South - Commissioned Services,Other Small Contracts,AliMo Care Ltd,941.66, 29-Jun-2020
228,Revenue,CAHD,North - Community based support,Other Small Contracts,AliMo Care Ltd,344.16, 29-Jun-2020
229,Revenue,CAHD,Covid � ASC - Infection Control,Grants to Voluntary Bodies,AliMo Care Ltd,1091.28, 26-Jun-2020
230,Revenue,CAHD,North - Community based support,Permanent Nursing,Allambie Court,2320.44, 02-Jun-2020
231,Revenue,CAHD,North - Community based support,Permanent Nursing,Allambie Court,2320.44, 30-Jun-2020
232,Revenue,CAHD,Central - Commissioned Services,Permanent Residential,Alvony House Residential Care Home,3000.00, 02-Jun-2020
233,Revenue,CAHD,Central - Commissioned Services,Permanent Residential,Alvony House Residential Care Home,3000.00, 30-Jun-2020
234,Revenue,CAHD,CSC - Residential Placements,Permanent Residential,Amberleigh Care Ltd,17439.71, 03-Jun-2020
235,Revenue,CAHD,CSC - Residential Placements,Permanent Residential,Amberleigh Care Ltd,17439.71, 03-Jun-2020
236,Revenue,CAHD,CSC - Residential Placements,Permanent Residential,Ambito Care and Education,19930.88, 04-Jun-2020
237,Revenue,CAHD,North - Community based support,Permanent Nursing,Amerind Grove Nursing Home,2706.32, 02-Jun-2020
238,Revenue,CAHD,North - Community based support,Permanent Nursing,Amerind Grove Nursing Home,2706.32, 30-Jun-2020
239,Revenue,CAHD,CSC - Agency Fostering,Foster Parent Allowances,Amicus Foster Care Ltd,4721.61, 23-Jun-2020
240,Revenue,CAHD,CSC - Agency Fostering,Foster Parent Allowances,Amicus Foster Care Ltd,1376.93, 23-Jun-2020
241,Revenue,CAHD,Supporting People Programme,Grants to Voluntary Bodies,Anchor Hanover Group,1039.00, 01-Jun-2020
242,Revenue,CAHD,Supporting People Programme,Grants to Voluntary Bodies,Anchor Hanover Group,847.00, 01-Jun-2020
243,Revenue,CAHD,CSC - Legal Fees,Legal Fees,Individual,740.00, 15-Jun-2020
244,Revenue,CAHD,South - Commissioned Services,Permanent Residential,Ash View House,5529.44, 02-Jun-2020
245,Revenue,CAHD,Jointly Funded H&SC Packages,Permanent Residential,Ash View House,1133.64, 02-Jun-2020
246,Revenue,CAHD,South - Commissioned Services,Permanent Residential,Ash View House,5529.44, 30-Jun-2020
247,Revenue,CAHD,Jointly Funded H&SC Packages,Permanent Residential,Ash View House,1133.64, 30-Jun-2020
248,Revenue,CAHD,Covid � ASC - Infection Control,Grants to Voluntary Bodies,Ash View House,1407.77, 26-Jun-2020
249,Revenue,CAHD,S117 Placements PCT,Permanent Residential,Ash View House,7707.44, 02-Jun-2020
250,Revenue,CAHD,S117 Placements PCT,Permanent Residential,Ash View House,7707.44, 30-Jun-2020
251,Revenue,CAHD,North - Community based support,Permanent Residential,Ash View House,7099.52, 02-Jun-2020
252,Revenue,CAHD,North - Community based support,Permanent Residential,Ash View House,7099.52, 30-Jun-2020
253,Revenue,CAHD,North - Community based support,Permanent Residential,Ash View House,7120.00, 02-Jun-2020
254,Revenue,CAHD,North - Community based support,Permanent Residential,Ash View House,7120.00, 30-Jun-2020
255,Revenue,CAHD,Section 117 Placements MH Younger,Permanent Residential,Ash View House,5022.60, 02-Jun-2020
256,Revenue,CAHD,Jointly Funded H&SC Packages,Permanent Residential,Ash View House,2152.60, 02-Jun-2020
257,Revenue,CAHD,Section 117 Placements MH Younger,Permanent Residential,Ash View House,5022.60, 30-Jun-2020
258,Revenue,CAHD,Jointly Funded H&SC Packages,Permanent Residential,Ash View House,2152.60, 30-Jun-2020
259,Revenue,CAHD,South - S117,Permanent Residential,Ash View House,6826.64, 02-Jun-2020
260,Revenue,CAHD,South - S117,Permanent Residential,Ash View House,6826.64, 30-Jun-2020
261,Revenue,CAHD,South - Commissioned Services,Permanent Residential,Ash View House,6747.84, 02-Jun-2020
262,Revenue,CAHD,South - Commissioned Services,Permanent Residential,Ash View House,6747.84, 30-Jun-2020
263,Revenue,CAHD,Covid � ASC - Infection Control,Grants to Voluntary Bodies,Ash View House,8463.45, 10-Jun-2020
264,Revenue,CAHD,CSC - Legal Fees,Legal Fees,Individual,800.00, 08-Jun-2020
265,Revenue,CAHD,Drug and Alcohol Programme,Rent,Ashville Asset Management Limited,1213.70, 24-Jun-2020
266,Revenue,CAHD,Drug and Alcohol Programme,Rent,Ashville Asset Management Limited,4550.00, 24-Jun-2020
267,Revenue,CAHD,North - Community based support,Permanent Residential,Aspects 2 Limited,7231.88, 02-Jun-2020
268,Revenue,CAHD,North - Community based support,Permanent Residential,Aspects 2 Limited,7231.88, 30-Jun-2020
269,Revenue,CAHD,Supporting People Programme,Grants to Voluntary Bodies,Aspects and Milestones Trust,3441.00, 01-Jun-2020
270,Revenue,CAHD,Supporting People Programme,Grants to Voluntary Bodies,Aspects and Milestones Trust,1725.00, 01-Jun-2020
271,Revenue,CAHD,CSC - Vinney Green Secure Unit,Mechanical & Electrical Maintenance,Assa Abloy Limited,755.40, 01-Jun-2020
272,Revenue,CAHD,CSC - Vinney Green Secure Unit,R & M by Departments,Assa Abloy Limited,446.50, 17-Jun-2020
273,Revenue,CAHD,South - Commissioned Services,Permanent Residential,Astbury Manor,3980.00, 02-Jun-2020
274,Revenue,CAHD,South - Commissioned Services,Permanent Residential,Astbury Manor,3980.00, 30-Jun-2020
275,Revenue,CAHD,Shared Lives,Other Supplies & Services,Ategi Limited,51943.75, 30-Jun-2020
276,Revenue,CAHD,South - Commissioned Services,Adults - Family Support,Ategi Limited,16210.88, 24-Jun-2020
277,Revenue,CAHD,South - Commissioned Services,Permanent Residential,Autism Specialised Care Homes,6506.88, 02-Jun-2020
278,Revenue,CAHD,South - Commissioned Services,Permanent Residential,Autism Specialised Care Homes,6506.88, 30-Jun-2020
279,Revenue,CAHD,Younger Adult Mental Health,Inter Directorate Recharges,Avon & Wiltshire Mental Health,14583.00, 09-Jun-2020
280,Revenue,CAHD,Younger Adult Mental Health,Health Services (Third Party Payments),Avon & Wiltshire Mental Health,1693.33, 05-Jun-2020
281,Revenue,CAHD,Younger Adult Mental Health,Inter Directorate Recharges,Avon & Wiltshire Mental Health,14583.00, 26-Jun-2020
282,Revenue,CAHD,Younger Adult Mental Health,Health Services (Third Party Payments),Avon & Wiltshire Mental Health,1693.33, 29-Jun-2020
283,Revenue,CAHD,South - Commissioned Services,Permanent Nursing,Avon Lodge Care Centre,4341.36, 02-Jun-2020
284,Revenue,CAHD,South Glos Users in South Glos Homes,Permanent Nursing,Avon Lodge Care Centre,735.68, 02-Jun-2020
285,Revenue,CAHD,South Glos Users in South Glos Homes,Permanent Nursing,Avon Lodge Care Centre,1234.89, 02-Jun-2020
286,Revenue,CAHD,South - Commissioned Services,Permanent Nursing,Avon Lodge Care Centre,4341.36, 30-Jun-2020
287,Revenue,CAHD,South Glos Users in South Glos Homes,Permanent Nursing,Avon Lodge Care Centre,735.68, 30-Jun-2020
288,Revenue,CAHD,South Glos Users in South Glos Homes,Permanent Nursing,Avon Lodge Care Centre,735.68, 02-Jun-2020
289,Revenue,CAHD,South Glos Users in South Glos Homes,Permanent Nursing,Avon Lodge Care Centre,1234.89, 02-Jun-2020
290,Revenue,CAHD,South Glos Users in South Glos Homes,Permanent Nursing,Avon Lodge Care Centre,735.68, 30-Jun-2020
291,Revenue,CAHD,South - Commissioned Services,Permanent Nursing,Avon Lodge Care Centre,6806.64, 02-Jun-2020
292,Revenue,CAHD,South Glos Users in South Glos Homes,Permanent Nursing,Avon Lodge Care Centre,735.68, 02-Jun-2020
293,Revenue,CAHD,South Glos Users in South Glos Homes,Permanent Nursing,Avon Lodge Care Centre,1234.89, 02-Jun-2020
294,Revenue,CAHD,South - Commissioned Services,Fees & Charges Income - General,Avon Lodge Care Centre,1090.89, 02-Jun-2020
295,Revenue,CAHD,South - Commissioned Services,Permanent Nursing,Avon Lodge Care Centre,972.38, 30-Jun-2020
296,Revenue,CAHD,South - Commissioned Services,Permanent Nursing,Avon Lodge Care Centre,4311.16, 02-Jun-2020
297,Revenue,CAHD,South - Commissioned Services,Permanent Nursing,Avon Lodge Care Centre,4311.16, 30-Jun-2020
298,Revenue,CAHD,South Glos Users in South Glos Homes,Permanent Nursing,Avon Lodge Care Centre,735.68, 02-Jun-2020
299,Revenue,CAHD,South Glos Users in South Glos Homes,Permanent Nursing,Avon Lodge Care Centre,1234.89, 02-Jun-2020
300,Revenue,CAHD,South Glos Users in South Glos Homes,Permanent Nursing,Avon Lodge Care Centre,735.68, 30-Jun-2020
301,Revenue,CAHD,South Glos Users in South Glos Homes,Permanent Nursing,Avon Lodge Care Centre,735.68, 02-Jun-2020
302,Revenue,CAHD,South Glos Users in South Glos Homes,Permanent Nursing,Avon Lodge Care Centre,1234.89, 02-Jun-2020
303,Revenue,CAHD,South Glos Users in South Glos Homes,Permanent Nursing,Avon Lodge Care Centre,735.68, 30-Jun-2020
304,Revenue,CAHD,South - Commissioned Services,Permanent Nursing,Avon Lodge Care Centre,4311.16, 02-Jun-2020
305,Revenue,CAHD,South Glos Users in South Glos Homes,Permanent Nursing,Avon Lodge Care Centre,735.68, 02-Jun-2020
306,Revenue,CAHD,South Glos Users in South Glos Homes,Permanent Nursing,Avon Lodge Care Centre,1234.89, 02-Jun-2020
307,Revenue,CAHD,South Glos Users in South Glos Homes,Permanent Nursing,Avon Lodge Care Centre,735.68, 30-Jun-2020
308,Revenue,CAHD,South - Commissioned Services,Fees & Charges Income - General,Avon Lodge Care Centre,600.79, 30-Jun-2020
309,Revenue,CAHD,South - Commissioned Services,Permanent Nursing,Avon Lodge Care Centre,3885.48, 02-Jun-2020
310,Revenue,CAHD,South Glos Users in South Glos Homes,Permanent Nursing,Avon Lodge Care Centre,735.68, 02-Jun-2020
311,Revenue,CAHD,South Glos Users in South Glos Homes,Permanent Nursing,Avon Lodge Care Centre,1234.89, 02-Jun-2020
312,Revenue,CAHD,South - Commissioned Services,Permanent Nursing,Avon Lodge Care Centre,3885.48, 30-Jun-2020
313,Revenue,CAHD,South Glos Users in South Glos Homes,Permanent Nursing,Avon Lodge Care Centre,735.68, 30-Jun-2020
314,Revenue,CAHD,South - Commissioned Services,Permanent Nursing,Avon Lodge Care Centre,4537.76, 02-Jun-2020
315,Revenue,CAHD,South Glos Users in South Glos Homes,Permanent Nursing,Avon Lodge Care Centre,735.68, 02-Jun-2020
316,Revenue,CAHD,South Glos Users in South Glos Homes,Permanent Nursing,Avon Lodge Care Centre,1234.89, 02-Jun-2020
317,Revenue,CAHD,South - Commissioned Services,Permanent Nursing,Avon Lodge Care Centre,4537.76, 30-Jun-2020
318,Revenue,CAHD,South Glos Users in South Glos Homes,Permanent Nursing,Avon Lodge Care Centre,735.68, 30-Jun-2020
319,Revenue,CAHD,South Glos Users in South Glos Homes,Permanent Nursing,Avon Lodge Care Centre,735.68, 02-Jun-2020
320,Revenue,CAHD,South Glos Users in South Glos Homes,Permanent Nursing,Avon Lodge Care Centre,1234.89, 02-Jun-2020
321,Revenue,CAHD,Central - Commissioned Services,Permanent Nursing,Avon Lodge Care Centre,4311.16, 02-Jun-2020
322,Revenue,CAHD,South Glos Users in South Glos Homes,Permanent Nursing,Avon Lodge Care Centre,735.68, 02-Jun-2020
323,Revenue,CAHD,South Glos Users in South Glos Homes,Permanent Nursing,Avon Lodge Care Centre,1234.89, 02-Jun-2020
324,Revenue,CAHD,Central - Commissioned Services,Permanent Nursing,Avon Lodge Care Centre,4311.16, 30-Jun-2020
325,Revenue,CAHD,South Glos Users in South Glos Homes,Permanent Nursing,Avon Lodge Care Centre,735.68, 30-Jun-2020
326,Revenue,CAHD,South - Commissioned Services,Permanent Nursing,Avon Lodge Care Centre,4311.16, 02-Jun-2020
327,Revenue,CAHD,South Glos Users in South Glos Homes,Permanent Nursing,Avon Lodge Care Centre,735.68, 02-Jun-2020
328,Revenue,CAHD,South Glos Users in South Glos Homes,Permanent Nursing,Avon Lodge Care Centre,1234.89, 02-Jun-2020
329,Revenue,CAHD,South Glos Users in South Glos Homes,Permanent Nursing,Avon Lodge Care Centre,735.68, 02-Jun-2020
330,Revenue,CAHD,South Glos Users in South Glos Homes,Permanent Nursing,Avon Lodge Care Centre,1234.89, 02-Jun-2020
331,Revenue,CAHD,South Glos Users in South Glos Homes,Permanent Nursing,Avon Lodge Care Centre,735.68, 30-Jun-2020
332,Revenue,CAHD,South Glos Users in South Glos Homes,Permanent Nursing,Avon Lodge Care Centre,1234.89, 02-Jun-2020
333,Revenue,CAHD,South Glos Users in South Glos Homes,Permanent Nursing,Avon Lodge Care Centre,735.68, 02-Jun-2020
334,Revenue,CAHD,South - Commissioned Services,Respite Planned - Nursing,Avon Lodge Care Centre,4226.64, 30-Jun-2020
335,Revenue,CAHD,South Glos Users in South Glos Homes,Permanent Nursing,Avon Lodge Care Centre,735.68, 30-Jun-2020
336,Revenue,CAHD,South Glos Users in South Glos Homes,Permanent Nursing,Avon Lodge Care Centre,735.68, 02-Jun-2020
337,Revenue,CAHD,South Glos Users in South Glos Homes,Permanent Nursing,Avon Lodge Care Centre,1234.89, 02-Jun-2020
338,Revenue,CAHD,South Glos Users in South Glos Homes,Permanent Nursing,Avon Lodge Care Centre,735.68, 30-Jun-2020
339,Revenue,CAHD,South - Commissioned Services,Permanent Nursing,Avon Lodge Care Centre,4311.16, 02-Jun-2020
340,Revenue,CAHD,South - Commissioned Services,Permanent Nursing,Avon Lodge Care Centre,3448.20, 02-Jun-2020
341,Revenue,CAHD,South Glos Users in South Glos Homes,Permanent Nursing,Avon Lodge Care Centre,735.68, 02-Jun-2020
342,Revenue,CAHD,South Glos Users in South Glos Homes,Permanent Nursing,Avon Lodge Care Centre,1234.89, 02-Jun-2020
343,Revenue,CAHD,South - Commissioned Services,Permanent Nursing,Avon Lodge Care Centre,3448.20, 30-Jun-2020
344,Revenue,CAHD,South Glos Users in South Glos Homes,Permanent Nursing,Avon Lodge Care Centre,735.68, 30-Jun-2020
345,Revenue,CAHD,South - Commissioned Services,Permanent Nursing,Avon Lodge Care Centre,4311.16, 02-Jun-2020
346,Revenue,CAHD,South Glos Users in South Glos Homes,Permanent Nursing,Avon Lodge Care Centre,735.68, 02-Jun-2020
347,Revenue,CAHD,South Glos Users in South Glos Homes,Permanent Nursing,Avon Lodge Care Centre,1234.89, 02-Jun-2020
348,Revenue,CAHD,South - Commissioned Services,Permanent Nursing,Avon Lodge Care Centre,4311.16, 30-Jun-2020
349,Revenue,CAHD,South Glos Users in South Glos Homes,Permanent Nursing,Avon Lodge Care Centre,735.68, 30-Jun-2020
350,Revenue,CAHD,South - Commissioned Services,Permanent Nursing,Avon Lodge Care Centre,4537.76, 02-Jun-2020
351,Revenue,CAHD,South Glos Users in South Glos Homes,Permanent Nursing,Avon Lodge Care Centre,735.68, 02-Jun-2020
352,Revenue,CAHD,South Glos Users in South Glos Homes,Permanent Nursing,Avon Lodge Care Centre,1234.89, 02-Jun-2020
353,Revenue,CAHD,South - Commissioned Services,Fees & Charges Income - General,Avon Lodge Care Centre,1746.60, 30-Jun-2020
354,Revenue,CAHD,South Glos Users in South Glos Homes,Permanent Nursing,Avon Lodge Care Centre,1234.89, 02-Jun-2020
355,Revenue,CAHD,South - Commissioned Services,Permanent Nursing,Avon Lodge Care Centre,4347.88, 02-Jun-2020
356,Revenue,CAHD,South Glos Users in South Glos Homes,Permanent Nursing,Avon Lodge Care Centre,735.68, 02-Jun-2020
357,Revenue,CAHD,South Glos Users in South Glos Homes,Permanent Nursing,Avon Lodge Care Centre,1234.89, 02-Jun-2020
358,Revenue,CAHD,South - Commissioned Services,Permanent Nursing,Avon Lodge Care Centre,4347.88, 30-Jun-2020
359,Revenue,CAHD,South Glos Users in South Glos Homes,Permanent Nursing,Avon Lodge Care Centre,735.68, 30-Jun-2020
360,Revenue,CAHD,South Glos Users in South Glos Homes,Permanent Nursing,Avon Lodge Care Centre,735.68, 02-Jun-2020
361,Revenue,CAHD,South Glos Users in South Glos Homes,Permanent Nursing,Avon Lodge Care Centre,1234.89, 02-Jun-2020
362,Revenue,CAHD,South Glos Users in South Glos Homes,Permanent Nursing,Avon Lodge Care Centre,735.68, 02-Jun-2020
363,Revenue,CAHD,South Glos Users in South Glos Homes,Permanent Nursing,Avon Lodge Care Centre,1234.89, 02-Jun-2020
364,Revenue,CAHD,South Glos Users in South Glos Homes,Permanent Nursing,Avon Lodge Care Centre,735.68, 30-Jun-2020
365,Revenue,CAHD,South Glos Users in South Glos Homes,Permanent Nursing,Avon Lodge Care Centre,735.68, 02-Jun-2020
366,Revenue,CAHD,South Glos Users in South Glos Homes,Permanent Nursing,Avon Lodge Care Centre,1234.89, 02-Jun-2020
367,Revenue,CAHD,South Glos Users in South Glos Homes,Permanent Nursing,Avon Lodge Care Centre,735.68, 30-Jun-2020
368,Revenue,CAHD,South Glos Users in South Glos Homes,Permanent Nursing,Avon Lodge Care Centre,735.68, 02-Jun-2020
369,Revenue,CAHD,South Glos Users in South Glos Homes,Permanent Nursing,Avon Lodge Care Centre,1234.89, 02-Jun-2020
370,Revenue,CAHD,South - Commissioned Services,Permanent Nursing,Avon Lodge Care Centre,4311.16, 02-Jun-2020
371,Revenue,CAHD,South Glos Users in South Glos Homes,Permanent Nursing,Avon Lodge Care Centre,735.68, 02-Jun-2020
372,Revenue,CAHD,South Glos Users in South Glos Homes,Permanent Nursing,Avon Lodge Care Centre,1234.89, 02-Jun-2020
373,Revenue,CAHD,South Glos Users in South Glos Homes,Permanent Nursing,Avon Lodge Care Centre,1234.89, 02-Jun-2020
374,Revenue,CAHD,South Glos Users in South Glos Homes,Permanent Nursing,Avon Lodge Care Centre,1111.62, 02-Jun-2020
375,Revenue,CAHD,South Glos Users in South Glos Homes,Permanent Nursing,Avon Lodge Care Centre,735.68, 02-Jun-2020
376,Revenue,CAHD,South Glos Users in South Glos Homes,Permanent Nursing,Avon Lodge Care Centre,735.68, 30-Jun-2020
377,Revenue,CAHD,South - Commissioned Services,Permanent Nursing,Avon Lodge Care Centre,4403.84, 02-Jun-2020
378,Revenue,CAHD,South Glos Users in South Glos Homes,Permanent Nursing,Avon Lodge Care Centre,735.68, 02-Jun-2020
379,Revenue,CAHD,South Glos Users in South Glos Homes,Permanent Nursing,Avon Lodge Care Centre,1234.89, 02-Jun-2020
380,Revenue,CAHD,South - Commissioned Services,Permanent Nursing,Avon Lodge Care Centre,4403.84, 30-Jun-2020
381,Revenue,CAHD,South Glos Users in South Glos Homes,Permanent Nursing,Avon Lodge Care Centre,735.68, 30-Jun-2020
382,Revenue,CAHD,South - Commissioned Services,Permanent Nursing,Avon Lodge Care Centre,4445.56, 02-Jun-2020
383,Revenue,CAHD,South Glos Users in South Glos Homes,Permanent Nursing,Avon Lodge Care Centre,735.68, 02-Jun-2020
384,Revenue,CAHD,South Glos Users in South Glos Homes,Permanent Nursing,Avon Lodge Care Centre,1234.89, 02-Jun-2020
385,Revenue,CAHD,South - Commissioned Services,Fees & Charges Income - General,Avon Lodge Care Centre,979.06, 30-Jun-2020
386,Revenue,CAHD,South - Commissioned Services,Fees & Charges Income - General,Avon Lodge Care Centre,577.59, 30-Jun-2020
387,Revenue,CAHD,South Glos Users in South Glos Homes,Permanent Nursing,Avon Lodge Care Centre,735.68, 02-Jun-2020
388,Revenue,CAHD,South Glos Users in South Glos Homes,Permanent Nursing,Avon Lodge Care Centre,1234.89, 02-Jun-2020
389,Revenue,CAHD,South - Commissioned Services,Permanent Nursing,Avon Lodge Care Centre,4311.16, 02-Jun-2020
390,Revenue,CAHD,South Glos Users in South Glos Homes,Permanent Nursing,Avon Lodge Care Centre,735.68, 02-Jun-2020
391,Revenue,CAHD,South Glos Users in South Glos Homes,Permanent Nursing,Avon Lodge Care Centre,1234.89, 02-Jun-2020
392,Revenue,CAHD,South - Commissioned Services,Permanent Nursing,Avon Lodge Care Centre,4311.16, 30-Jun-2020
393,Revenue,CAHD,South Glos Users in South Glos Homes,Permanent Nursing,Avon Lodge Care Centre,735.68, 30-Jun-2020
394,Revenue,CAHD,South Glos Users in South Glos Homes,Permanent Nursing,Avon Lodge Care Centre,1234.89, 02-Jun-2020
395,Revenue,CAHD,South Glos Users in South Glos Homes,Permanent Nursing,Avon Lodge Care Centre,735.68, 02-Jun-2020
396,Revenue,CAHD,South Glos Users in South Glos Homes,Permanent Nursing,Avon Lodge Care Centre,1234.89, 02-Jun-2020
397,Revenue,CAHD,South Glos Users in South Glos Homes,Permanent Nursing,Avon Lodge Care Centre,735.68, 30-Jun-2020
398,Revenue,CAHD,South Glos Users in South Glos Homes,Permanent Nursing,Avon Lodge Care Centre,1234.89, 02-Jun-2020
399,Revenue,CAHD,Central - Commissioned Services,Permanent Nursing,Avon Lodge Care Centre,3884.80, 02-Jun-2020
400,Revenue,CAHD,South Glos Users in South Glos Homes,Permanent Nursing,Avon Lodge Care Centre,735.68, 02-Jun-2020
401,Revenue,CAHD,South Glos Users in South Glos Homes,Permanent Nursing,Avon Lodge Care Centre,1234.89, 02-Jun-2020
402,Revenue,CAHD,Central - Commissioned Services,Permanent Nursing,Avon Lodge Care Centre,3884.80, 30-Jun-2020
403,Revenue,CAHD,South Glos Users in South Glos Homes,Permanent Nursing,Avon Lodge Care Centre,735.68, 30-Jun-2020
404,Revenue,CAHD,South - Commissioned Services,Permanent Nursing,Avon Lodge Care Centre,4311.16, 02-Jun-2020
405,Revenue,CAHD,South Glos Users in South Glos Homes,Permanent Nursing,Avon Lodge Care Centre,735.68, 02-Jun-2020
406,Revenue,CAHD,South Glos Users in South Glos Homes,Permanent Nursing,Avon Lodge Care Centre,1234.89, 02-Jun-2020
407,Revenue,CAHD,South Glos Users in South Glos Homes,Permanent Nursing,Avon Lodge Care Centre,735.68, 02-Jun-2020
408,Revenue,CAHD,South Glos Users in South Glos Homes,Permanent Nursing,Avon Lodge Care Centre,1234.89, 02-Jun-2020
409,Revenue,CAHD,South Glos Users in South Glos Homes,Permanent Nursing,Avon Lodge Care Centre,735.68, 02-Jun-2020
410,Revenue,CAHD,South Glos Users in South Glos Homes,Permanent Nursing,Avon Lodge Care Centre,1234.89, 02-Jun-2020
411,Revenue,CAHD,South - bed purchasing and direct  payments,Permanent Nursing,Avon Lodge Care Centre,4311.16, 02-Jun-2020
412,Revenue,CAHD,South Glos Users in South Glos Homes,Permanent Nursing,Avon Lodge Care Centre,735.68, 02-Jun-2020
413,Revenue,CAHD,South Glos Users in South Glos Homes,Permanent Nursing,Avon Lodge Care Centre,1234.89, 02-Jun-2020
414,Revenue,CAHD,South - bed purchasing and direct  payments,Permanent Nursing,Avon Lodge Care Centre,4311.16, 30-Jun-2020
415,Revenue,CAHD,South Glos Users in South Glos Homes,Permanent Nursing,Avon Lodge Care Centre,735.68, 30-Jun-2020
416,Revenue,CAHD,South Glos Users in South Glos Homes,Permanent Nursing,Avon Lodge Care Centre,735.68, 02-Jun-2020
417,Revenue,CAHD,South Glos Users in South Glos Homes,Permanent Nursing,Avon Lodge Care Centre,1234.89, 02-Jun-2020
418,Revenue,CAHD,South Glos Users in South Glos Homes,Permanent Nursing,Avon Lodge Care Centre,1234.89, 02-Jun-2020
419,Revenue,CAHD,South Glos Users in South Glos Homes,Permanent Nursing,Avon Lodge Care Centre,756.46, 25-Jun-2020
420,Revenue,CAHD,South Glos Users in South Glos Homes,Permanent Nursing,Avon Lodge Care Centre,533.08, 25-Jun-2020
421,Revenue,CAHD,South Glos Users in South Glos Homes,Permanent Nursing,Avon Lodge Care Centre,802.79, 25-Jun-2020
422,Revenue,CAHD,South Glos Users in South Glos Homes,Permanent Nursing,Avon Lodge Care Centre,760.65, 25-Jun-2020
423,Revenue,CAHD,South Glos Users in South Glos Homes,Permanent Nursing,Avon Lodge Care Centre,802.79, 25-Jun-2020
424,Revenue,CAHD,South Glos Users in South Glos Homes,Permanent Nursing,Avon Lodge Care Centre,638.43, 25-Jun-2020
425,Revenue,CAHD,South Glos Users in South Glos Homes,Permanent Nursing,Avon Lodge Care Centre,505.68, 25-Jun-2020
426,Revenue,CAHD,South Glos Users in South Glos Homes,Permanent Nursing,Avon Lodge Care Centre,802.79, 25-Jun-2020
427,Revenue,CAHD,South Glos Users in South Glos Homes,Permanent Nursing,Avon Lodge Care Centre,615.26, 25-Jun-2020
428,Revenue,CAHD,South Glos Users in South Glos Homes,Permanent Nursing,Avon Lodge Care Centre,771.21, 25-Jun-2020
429,Revenue,CAHD,South Glos Users in South Glos Homes,Permanent Nursing,Avon Lodge Care Centre,802.79, 25-Jun-2020
430,Revenue,CAHD,South Glos Users in South Glos Homes,Permanent Nursing,Avon Lodge Care Centre,636.36, 25-Jun-2020
431,Revenue,CAHD,South Glos Users in South Glos Homes,Permanent Nursing,Avon Lodge Care Centre,802.79, 25-Jun-2020
432,Revenue,CAHD,South Glos Users in South Glos Homes,Permanent Nursing,Avon Lodge Care Centre,522.54, 25-Jun-2020
433,Revenue,CAHD,South Glos Users in South Glos Homes,Permanent Nursing,Avon Lodge Care Centre,802.79, 25-Jun-2020
434,Revenue,CAHD,South Glos Users in South Glos Homes,Permanent Nursing,Avon Lodge Care Centre,802.79, 25-Jun-2020
435,Revenue,CAHD,South Glos Users in South Glos Homes,Permanent Nursing,Avon Lodge Care Centre,667.96, 25-Jun-2020
436,Revenue,CAHD,South Glos Users in South Glos Homes,Permanent Nursing,Avon Lodge Care Centre,802.79, 25-Jun-2020
437,Revenue,CAHD,South Glos Users in South Glos Homes,Permanent Nursing,Avon Lodge Care Centre,802.79, 25-Jun-2020
438,Revenue,CAHD,South Glos Users in South Glos Homes,Permanent Nursing,Avon Lodge Care Centre,802.79, 25-Jun-2020
439,Revenue,CAHD,South Glos Users in South Glos Homes,Permanent Nursing,Avon Lodge Care Centre,802.79, 25-Jun-2020
440,Revenue,CAHD,South Glos Users in South Glos Homes,Permanent Nursing,Avon Lodge Care Centre,661.64, 25-Jun-2020
441,Revenue,CAHD,South Glos Users in South Glos Homes,Permanent Nursing,Avon Lodge Care Centre,802.79, 25-Jun-2020
442,Revenue,CAHD,South Glos Users in South Glos Homes,Permanent Nursing,Avon Lodge Care Centre,802.79, 25-Jun-2020
443,Revenue,CAHD,South Glos Users in South Glos Homes,Permanent Nursing,Avon Lodge Care Centre,802.79, 25-Jun-2020
444,Revenue,CAHD,South Glos Users in South Glos Homes,Permanent Nursing,Avon Lodge Care Centre,689.04, 25-Jun-2020
445,Revenue,CAHD,South Glos Users in South Glos Homes,Permanent Nursing,Avon Lodge Care Centre,733.29, 25-Jun-2020
446,Revenue,CAHD,South Glos Users in South Glos Homes,Permanent Nursing,Avon Lodge Care Centre,802.79, 25-Jun-2020
447,Revenue,CAHD,South Glos Users in South Glos Homes,Permanent Nursing,Avon Lodge Care Centre,634.25, 25-Jun-2020
448,Revenue,CAHD,South Glos Users in South Glos Homes,Permanent Nursing,Avon Lodge Care Centre,771.21, 25-Jun-2020
449,Revenue,CAHD,South Glos Users in South Glos Homes,Permanent Nursing,Avon Lodge Care Centre,802.79, 25-Jun-2020
450,Revenue,CAHD,South Glos Users in South Glos Homes,Permanent Nursing,Avon Lodge Care Centre,571.04, 25-Jun-2020
451,Revenue,CAHD,South Glos Users in South Glos Homes,Permanent Nursing,Avon Lodge Care Centre,802.79, 25-Jun-2020
452,Revenue,CAHD,South Glos Users in South Glos Homes,Permanent Nursing,Avon Lodge Care Centre,771.21, 25-Jun-2020
453,Revenue,CAHD,South Glos Users in South Glos Homes,Permanent Nursing,Avon Lodge Care Centre,802.79, 25-Jun-2020
454,Revenue,CAHD,South Glos Users in South Glos Homes,Permanent Nursing,Avon Lodge Care Centre,802.79, 25-Jun-2020
455,Revenue,CAHD,South Glos Users in South Glos Homes,Permanent Nursing,Avon Lodge Care Centre,802.79, 25-Jun-2020
456,Revenue,CAHD,Covid � ASC - Infection Control,Grants to Voluntary Bodies,Avon Lodge Care Centre,5134.22, 26-Jun-2020
457,Revenue,CAHD,South - Commissioned Services,Permanent Nursing,Avon Lodge Care Centre,4530.04, 02-Jun-2020
458,Revenue,CAHD,South Glos Users in South Glos Homes,Permanent Nursing,Avon Lodge Care Centre,735.68, 02-Jun-2020
459,Revenue,CAHD,South Glos Users in South Glos Homes,Permanent Nursing,Avon Lodge Care Centre,1234.89, 02-Jun-2020
460,Revenue,CAHD,South - Commissioned Services,Permanent Nursing,Avon Lodge Care Centre,4530.04, 30-Jun-2020
461,Revenue,CAHD,South Glos Users in South Glos Homes,Permanent Nursing,Avon Lodge Care Centre,735.68, 30-Jun-2020
462,Revenue,CAHD,South - S117,Permanent Nursing,Avon Lodge Care Centre,3885.48, 02-Jun-2020
463,Revenue,CAHD,South Glos Users in South Glos Homes,Permanent Nursing,Avon Lodge Care Centre,735.68, 02-Jun-2020
464,Revenue,CAHD,South Glos Users in South Glos Homes,Permanent Nursing,Avon Lodge Care Centre,1234.89, 02-Jun-2020
465,Revenue,CAHD,South - S117,Permanent Nursing,Avon Lodge Care Centre,3885.48, 30-Jun-2020
466,Revenue,CAHD,South Glos Users in South Glos Homes,Permanent Nursing,Avon Lodge Care Centre,735.68, 30-Jun-2020
467,Revenue,CAHD,South Glos Users in South Glos Homes,Permanent Nursing,Avon Lodge Care Centre,735.68, 02-Jun-2020
468,Revenue,CAHD,South Glos Users in South Glos Homes,Permanent Nursing,Avon Lodge Care Centre,1234.89, 02-Jun-2020
469,Revenue,CAHD,South Glos Users in South Glos Homes,Permanent Nursing,Avon Lodge Care Centre,735.68, 30-Jun-2020
470,Revenue,CAHD,South Glos Users in South Glos Homes,Permanent Nursing,Avon Lodge Care Centre,735.68, 02-Jun-2020
471,Revenue,CAHD,South Glos Users in South Glos Homes,Permanent Nursing,Avon Lodge Care Centre,1234.89, 02-Jun-2020
472,Revenue,CAHD,South Glos Users in South Glos Homes,Permanent Nursing,Avon Lodge Care Centre,735.68, 30-Jun-2020
473,Revenue,CAHD,Covid � ASC - Infection Control,Grants to Voluntary Bodies,Avon Lodge Care Centre,30866.70, 10-Jun-2020
474,Revenue,CAHD,South - Commissioned Services,Permanent Residential,Avon Valley Care Home,4039.20, 02-Jun-2020
475,Revenue,CAHD,South - Commissioned Services,Permanent Residential,Avon Valley Care Home,7637.14, 30-Jun-2020
476,Revenue,CAHD,South - Commissioned Services,Permanent Residential,Avon Valley Care Home,3960.00, 30-Jun-2020
477,Revenue,CAHD,South - Commissioned Services,Permanent Residential,Avon Valley Care Home,2262.86, 30-Jun-2020
478,Revenue,CAHD,South - Commissioned Services,Permanent Residential,Avon Valley Care Home,4080.00, 02-Jun-2020
479,Revenue,CAHD,South - Commissioned Services,Permanent Residential,Avon Valley Care Home,4000.00, 30-Jun-2020
480,Revenue,CAHD,South - Commissioned Services,Permanent Residential,Avon Valley Care Home,9857.14, 30-Jun-2020
481,Revenue,CAHD,South - Commissioned Services,Permanent Residential,Avon Valley Care Home,4080.00, 02-Jun-2020
482,Revenue,CAHD,South - Commissioned Services,Permanent Residential,Avon Valley Care Home,4000.00, 30-Jun-2020
483,Revenue,CAHD,South - Commissioned Services,Permanent Residential,Avon Valley Care Home,9857.14, 30-Jun-2020
484,Revenue,CAHD,South - Commissioned Services,Permanent Residential,Avon Valley Care Home,4039.20, 02-Jun-2020
485,Revenue,CAHD,South - Commissioned Services,Permanent Residential,Avon Valley Care Home,9900.00, 30-Jun-2020
486,Revenue,CAHD,South - Commissioned Services,Permanent Residential,Avon Valley Care Home,3960.00, 30-Jun-2020
487,Revenue,CAHD,South - Commissioned Services,Permanent Residential,Avon Valley Care Home,514.29, 02-Jun-2020
488,Revenue,CAHD,South - Commissioned Services,Permanent Residential,Avon Valley Care Home,4080.00, 02-Jun-2020
489,Revenue,CAHD,South - Commissioned Services,Permanent Residential,Avon Valley Care Home,4000.00, 30-Jun-2020
490,Revenue,CAHD,South - Commissioned Services,Permanent Residential,Avon Valley Care Home,9857.14, 30-Jun-2020
491,Revenue,CAHD,South - Commissioned Services,Permanent Residential,Avon Valley Care Home,4800.00, 02-Jun-2020
492,Revenue,CAHD,South - Commissioned Services,Permanent Residential,Avon Valley Care Home,4800.00, 30-Jun-2020
493,Revenue,CAHD,Covid � ASC - Infection Control,Grants to Voluntary Bodies,Avon Valley Care Home,6459.18, 26-Jun-2020
494,Revenue,CAHD,Covid � ASC - Infection Control,Grants to Voluntary Bodies,Avon Valley Care Home,38832.30, 10-Jun-2020
495,Revenue,CAHD,Covid 19- Spend on behalf of NHS,Respite Planned - Residential,Avonmere Care Home,2042.86, 30-Jun-2020
496,Revenue,CAHD,North - Community based support,Fees & Charges Income - General,Avonmere Care Home,649.31, 02-Jun-2020
497,Revenue,CAHD,North - Community based support,Permanent Residential,Avonmere Care Home,4386.80, 02-Jun-2020
498,Revenue,CAHD,North - Community based support,Permanent Residential,Avonmere Care Home,4386.80, 30-Jun-2020
499,Revenue,CAHD,North - Community based support,Permanent Residential,Avonmere Care Home,5420.00, 02-Jun-2020
500,Revenue,CAHD,North - Community based support,Permanent Residential,Avonmere Care Home,5420.00, 30-Jun-2020
501,Revenue,CAHD,Covid 19- Spend on behalf of NHS,Respite Planned - Residential,Avonmere Care Home,2042.86, 30-Jun-2020
502,Revenue,CAHD,North - Community based support,Permanent Residential,Avonmere Care Home,4420.00, 02-Jun-2020
503,Revenue,CAHD,North - Community based support,Permanent Residential,Avonmere Care Home,4420.00, 30-Jun-2020
504,Revenue,CAHD,North - Community based support,Permanent Residential,Avonmere Care Home,10514.29, 30-Jun-2020
505,Revenue,CAHD,North - Community based support,Permanent Residential,Avonmere Care Home,4620.00, 30-Jun-2020
506,Revenue,CAHD,North - Community based support,Fees & Charges Income - General,Avonmere Care Home,1221.75, 30-Jun-2020
507,Revenue,CAHD,Covid 19- Spend on behalf of NHS,Respite Planned - Residential,Avonmere Care Home,2985.71, 30-Jun-2020
508,Revenue,CAHD,Covid � ASC - Infection Control,Grants to Voluntary Bodies,Avonmere Care Home,6293.56, 26-Jun-2020
509,Revenue,CAHD,Bed Purchasing - Southmead Hospital,Respite Planned - Residential,Avonmere Care Home,14457.14, 30-Jun-2020
510,Revenue,CAHD,Bed Purchasing - Southmead Hospital,Respite Planned - Residential,Avonmere Care Home,4400.00, 30-Jun-2020
511,Revenue,CAHD,Covid 19- Spend on behalf of NHS,Respite Planned - Residential,Avonmere Care Home,2828.57, 30-Jun-2020
512,Revenue,CAHD,Central - Commissioned Services,Respite Emergency - Residential,Avonmere Care Home,7160.40, 02-Jun-2020
513,Revenue,CAHD,Central - Commissioned Services,Respite Emergency - Residential,Avonmere Care Home,1838.57, 02-Jun-2020
514,Revenue,CAHD,Covid � ASC - Infection Control,Grants to Voluntary Bodies,Avonmere Care Home,37836.60, 10-Jun-2020
515,Revenue,CAHD,CSC - Care Leavers Support Costs,Personal Needs of Clients,Barnardo Services Limited,3003.60, 02-Jun-2020
516,Revenue,CAHD,Pensions - Non DSG,Annual Pension,Bath & North East Somerset Council,6371.72, 08-Jun-2020
517,Revenue,CAHD,Pensions - Non DSG,Annual Pension,Bath & North East Somerset Council,110699.04, 29-Jun-2020
518,Revenue,CAHD,Independent Special Placements - Pre 16,Other Private Contractors,Bath Road Priory,1670.93, 16-Jun-2020
519,Revenue,CAHD,CSC - Adoption Support Fund,Post Adoption,Individual,700.00, 08-Jun-2020
520,Revenue,CAHD,Pathway 3 - (Complex Beds),Permanent Nursing,Beaufort Care Ltd,11162.42, 04-Jun-2020
521,Revenue,CAHD,Pathway 3 - (Complex Beds),Permanent Nursing,Beaufort Care Ltd,11365.00, 23-Jun-2020
522,Revenue,CAHD,South Glos Users in South Glos Homes,Permanent Nursing,Beaufort Grange Care Home,2956.43, 02-Jun-2020
523,Revenue,CAHD,South Glos Users in South Glos Homes,Permanent Nursing,Beaufort Grange Care Home,1234.89, 02-Jun-2020
524,Revenue,CAHD,South Glos Users in South Glos Homes,Permanent Nursing,Beaufort Grange Care Home,735.68, 02-Jun-2020
525,Revenue,CAHD,Central - Commissioned Services,Respite Emergency - Residential,Beaufort Grange Care Home,5500.00, 02-Jun-2020
526,Revenue,CAHD,Central - Commissioned Services,Respite Emergency - Residential,Beaufort Grange Care Home,2750.00, 02-Jun-2020
527,Revenue,CAHD,Central - Commissioned Services,Respite Emergency - Residential,Beaufort Grange Care Home,5500.00, 30-Jun-2020
528,Revenue,CAHD,South Glos Users in South Glos Homes,Permanent Nursing,Beaufort Grange Care Home,1234.89, 02-Jun-2020
529,Revenue,CAHD,South Glos Users in South Glos Homes,Permanent Nursing,Beaufort Grange Care Home,735.68, 02-Jun-2020
530,Revenue,CAHD,South Glos Users in South Glos Homes,Permanent Nursing,Beaufort Grange Care Home,1234.89, 02-Jun-2020
531,Revenue,CAHD,South Glos Users in South Glos Homes,Permanent Nursing,Beaufort Grange Care Home,735.68, 30-Jun-2020
532,Revenue,CAHD,South Glos Users in South Glos Homes,Permanent Nursing,Beaufort Grange Care Home,735.68, 02-Jun-2020
533,Revenue,CAHD,South Glos Users in South Glos Homes,Permanent Nursing,Beaufort Grange Care Home,1234.89, 02-Jun-2020
534,Revenue,CAHD,South Glos Users in South Glos Homes,Permanent Nursing,Beaufort Grange Care Home,735.68, 02-Jun-2020
535,Revenue,CAHD,South Glos Users in South Glos Homes,Permanent Nursing,Beaufort Grange Care Home,1234.89, 02-Jun-2020
536,Revenue,CAHD,South Glos Users in South Glos Homes,Permanent Nursing,Beaufort Grange Care Home,735.68, 30-Jun-2020
537,Revenue,CAHD,South Glos Users in South Glos Homes,Permanent Nursing,Beaufort Grange Care Home,1234.89, 02-Jun-2020
538,Revenue,CAHD,South Glos Users in South Glos Homes,Permanent Nursing,Beaufort Grange Care Home,1111.62, 02-Jun-2020
539,Revenue,CAHD,South Glos Users in South Glos Homes,Permanent Nursing,Beaufort Grange Care Home,735.68, 02-Jun-2020
540,Revenue,CAHD,South Glos Users in South Glos Homes,Permanent Nursing,Beaufort Grange Care Home,735.68, 30-Jun-2020
541,Revenue,CAHD,South Glos Users in South Glos Homes,Permanent Nursing,Beaufort Grange Care Home,735.68, 02-Jun-2020
542,Revenue,CAHD,South Glos Users in South Glos Homes,Permanent Nursing,Beaufort Grange Care Home,1234.89, 02-Jun-2020
543,Revenue,CAHD,South Glos Users in South Glos Homes,Permanent Nursing,Beaufort Grange Care Home,735.68, 30-Jun-2020
544,Revenue,CAHD,South Glos Users in South Glos Homes,Permanent Nursing,Beaufort Grange Care Home,1234.89, 02-Jun-2020
545,Revenue,CAHD,South Glos Users in South Glos Homes,Permanent Nursing,Beaufort Grange Care Home,735.68, 02-Jun-2020
546,Revenue,CAHD,South Glos Users in South Glos Homes,Permanent Nursing,Beaufort Grange Care Home,735.68, 30-Jun-2020
547,Revenue,CAHD,South Glos Users in South Glos Homes,Permanent Nursing,Beaufort Grange Care Home,735.68, 02-Jun-2020
548,Revenue,CAHD,South Glos Users in South Glos Homes,Permanent Nursing,Beaufort Grange Care Home,1234.89, 02-Jun-2020
549,Revenue,CAHD,South Glos Users in South Glos Homes,Permanent Nursing,Beaufort Grange Care Home,735.68, 30-Jun-2020
550,Revenue,CAHD,South Glos Users in South Glos Homes,Permanent Nursing,Beaufort Grange Care Home,735.68, 02-Jun-2020
551,Revenue,CAHD,South Glos Users in South Glos Homes,Permanent Nursing,Beaufort Grange Care Home,1234.89, 02-Jun-2020
552,Revenue,CAHD,South Glos Users in South Glos Homes,Permanent Nursing,Beaufort Grange Care Home,735.68, 30-Jun-2020
553,Revenue,CAHD,South Glos Users in South Glos Homes,Permanent Nursing,Beaufort Grange Care Home,735.68, 02-Jun-2020
554,Revenue,CAHD,South Glos Users in South Glos Homes,Permanent Nursing,Beaufort Grange Care Home,1234.89, 02-Jun-2020
555,Revenue,CAHD,South Glos Users in South Glos Homes,Permanent Nursing,Beaufort Grange Care Home,735.68, 30-Jun-2020
556,Revenue,CAHD,Central - Commissioned Services,Respite Planned - Nursing,Beaufort Grange Care Home,2100.00, 02-Jun-2020
557,Revenue,CAHD,North - S117,Permanent Nursing,Beaufort Grange Care Home,4877.04, 02-Jun-2020
558,Revenue,CAHD,South Glos Users in South Glos Homes,Permanent Nursing,Beaufort Grange Care Home,735.68, 02-Jun-2020
559,Revenue,CAHD,South Glos Users in South Glos Homes,Permanent Nursing,Beaufort Grange Care Home,1234.89, 02-Jun-2020
560,Revenue,CAHD,North - S117,Permanent Nursing,Beaufort Grange Care Home,4877.04, 30-Jun-2020
561,Revenue,CAHD,South Glos Users in South Glos Homes,Permanent Nursing,Beaufort Grange Care Home,735.68, 30-Jun-2020
562,Revenue,CAHD,South Glos Users in South Glos Homes,Permanent Nursing,Beaufort Grange Care Home,735.68, 02-Jun-2020
563,Revenue,CAHD,South Glos Users in South Glos Homes,Permanent Nursing,Beaufort Grange Care Home,1234.89, 02-Jun-2020
564,Revenue,CAHD,South Glos Users in South Glos Homes,Permanent Nursing,Beaufort Grange Care Home,735.68, 30-Jun-2020
565,Revenue,CAHD,South Glos Users in South Glos Homes,Permanent Nursing,Beaufort Grange Care Home,735.68, 02-Jun-2020
566,Revenue,CAHD,South Glos Users in South Glos Homes,Permanent Nursing,Beaufort Grange Care Home,1234.89, 02-Jun-2020
567,Revenue,CAHD,South Glos Users in South Glos Homes,Permanent Nursing,Beaufort Grange Care Home,735.68, 30-Jun-2020
568,Revenue,CAHD,South Glos Users in South Glos Homes,Permanent Nursing,Beaufort Grange Care Home,735.68, 02-Jun-2020
569,Revenue,CAHD,South Glos Users in South Glos Homes,Permanent Nursing,Beaufort Grange Care Home,1234.89, 02-Jun-2020
570,Revenue,CAHD,South Glos Users in South Glos Homes,Permanent Nursing,Beaufort Grange Care Home,735.68, 30-Jun-2020
571,Revenue,CAHD,South Glos Users in South Glos Homes,Permanent Nursing,Beaufort Grange Care Home,1129.79, 02-Jun-2020
572,Revenue,CAHD,South Glos Users in South Glos Homes,Permanent Nursing,Beaufort Grange Care Home,946.06, 02-Jun-2020
573,Revenue,CAHD,Central - Commissioned Services,Permanent Nursing,Beaufort Grange Care Home,4428.00, 02-Jun-2020
574,Revenue,CAHD,South Glos Users in South Glos Homes,Permanent Nursing,Beaufort Grange Care Home,735.68, 02-Jun-2020
575,Revenue,CAHD,South Glos Users in South Glos Homes,Permanent Nursing,Beaufort Grange Care Home,1234.89, 02-Jun-2020
576,Revenue,CAHD,Central - Commissioned Services,Permanent Nursing,Beaufort Grange Care Home,4428.00, 30-Jun-2020
577,Revenue,CAHD,South Glos Users in South Glos Homes,Permanent Nursing,Beaufort Grange Care Home,735.68, 30-Jun-2020
578,Revenue,CAHD,South Glos Users in South Glos Homes,Permanent Nursing,Beaufort Grange Care Home,735.68, 02-Jun-2020
579,Revenue,CAHD,South Glos Users in South Glos Homes,Permanent Nursing,Beaufort Grange Care Home,1234.89, 02-Jun-2020
580,Revenue,CAHD,South Glos Users in South Glos Homes,Permanent Nursing,Beaufort Grange Care Home,735.68, 30-Jun-2020
581,Revenue,CAHD,South Glos Users in South Glos Homes,Permanent Nursing,Beaufort Grange Care Home,1234.89, 02-Jun-2020
582,Revenue,CAHD,Central - Commissioned Services,Fees & Charges Income - General,Beaufort Grange Care Home,701.55, 02-Jun-2020
583,Revenue,CAHD,South Glos Users in South Glos Homes,Permanent Nursing,Beaufort Grange Care Home,735.68, 02-Jun-2020
584,Revenue,CAHD,South Glos Users in South Glos Homes,Permanent Nursing,Beaufort Grange Care Home,1234.89, 02-Jun-2020
585,Revenue,CAHD,South Glos Users in South Glos Homes,Permanent Nursing,Beaufort Grange Care Home,735.68, 30-Jun-2020
586,Revenue,CAHD,South Glos Users in South Glos Homes,Permanent Nursing,Beaufort Grange Care Home,735.68, 02-Jun-2020
587,Revenue,CAHD,South Glos Users in South Glos Homes,Permanent Nursing,Beaufort Grange Care Home,1234.89, 02-Jun-2020
588,Revenue,CAHD,South Glos Users in South Glos Homes,Permanent Nursing,Beaufort Grange Care Home,735.68, 30-Jun-2020
589,Revenue,CAHD,North - S117,Permanent Nursing,Beaufort Grange Care Home,5005.76, 02-Jun-2020
590,Revenue,CAHD,South Glos Users in South Glos Homes,Permanent Nursing,Beaufort Grange Care Home,735.68, 02-Jun-2020
591,Revenue,CAHD,South Glos Users in South Glos Homes,Permanent Nursing,Beaufort Grange Care Home,1234.89, 02-Jun-2020
592,Revenue,CAHD,North - S117,Permanent Nursing,Beaufort Grange Care Home,5005.76, 30-Jun-2020
593,Revenue,CAHD,South Glos Users in South Glos Homes,Permanent Nursing,Beaufort Grange Care Home,735.68, 30-Jun-2020
594,Revenue,CAHD,South Glos Users in South Glos Homes,Permanent Nursing,Beaufort Grange Care Home,1970.57, 30-Jun-2020
595,Revenue,CAHD,South Glos Users in South Glos Homes,Permanent Nursing,Beaufort Grange Care Home,1371.78, 30-Jun-2020
596,Revenue,CAHD,South Glos Users in South Glos Homes,Permanent Nursing,Beaufort Grange Care Home,735.68, 30-Jun-2020
597,Revenue,CAHD,South Glos Users in South Glos Homes,Permanent Nursing,Beaufort Grange Care Home,735.68, 02-Jun-2020
598,Revenue,CAHD,South Glos Users in South Glos Homes,Permanent Nursing,Beaufort Grange Care Home,1234.89, 02-Jun-2020
599,Revenue,CAHD,South Glos Users in South Glos Homes,Permanent Nursing,Beaufort Grange Care Home,735.68, 30-Jun-2020
600,Revenue,CAHD,South - Commissioned Services,Respite Emergency - Residential,Beaufort Grange Care Home,2294.29, 02-Jun-2020
601,Revenue,CAHD,South Glos Users in South Glos Homes,Permanent Nursing,Beaufort Grange Care Home,735.68, 02-Jun-2020
602,Revenue,CAHD,South Glos Users in South Glos Homes,Permanent Nursing,Beaufort Grange Care Home,1234.89, 02-Jun-2020
603,Revenue,CAHD,South Glos Users in South Glos Homes,Permanent Nursing,Beaufort Grange Care Home,735.68, 30-Jun-2020
604,Revenue,CAHD,South Glos Users in South Glos Homes,Permanent Nursing,Beaufort Grange Care Home,735.68, 02-Jun-2020
605,Revenue,CAHD,South Glos Users in South Glos Homes,Permanent Nursing,Beaufort Grange Care Home,1234.89, 02-Jun-2020
606,Revenue,CAHD,South Glos Users in South Glos Homes,Permanent Nursing,Beaufort Grange Care Home,735.68, 30-Jun-2020
607,Revenue,CAHD,South Glos Users in South Glos Homes,Permanent Nursing,Beaufort Grange Care Home,735.68, 02-Jun-2020
608,Revenue,CAHD,South Glos Users in South Glos Homes,Permanent Nursing,Beaufort Grange Care Home,1234.89, 02-Jun-2020
609,Revenue,CAHD,South Glos Users in South Glos Homes,Permanent Nursing,Beaufort Grange Care Home,735.68, 30-Jun-2020
610,Revenue,CAHD,Central - Commissioned Services,Permanent Nursing,Beaufort Grange Care Home,2475.00, 30-Jun-2020
611,Revenue,CAHD,South Glos Users in South Glos Homes,Permanent Nursing,Beaufort Grange Care Home,735.68, 02-Jun-2020
612,Revenue,CAHD,South Glos Users in South Glos Homes,Permanent Nursing,Beaufort Grange Care Home,1234.89, 02-Jun-2020
613,Revenue,CAHD,South Glos Users in South Glos Homes,Permanent Nursing,Beaufort Grange Care Home,735.68, 30-Jun-2020
614,Revenue,CAHD,South Glos Users in South Glos Homes,Permanent Nursing,Beaufort Grange Care Home,1234.89, 02-Jun-2020
615,Revenue,CAHD,South Glos Users in South Glos Homes,Permanent Nursing,Beaufort Grange Care Home,3358.50, 02-Jun-2020
616,Revenue,CAHD,South Glos Users in South Glos Homes,Permanent Nursing,Beaufort Grange Care Home,1970.57, 30-Jun-2020
617,Revenue,CAHD,South Glos Users in South Glos Homes,Permanent Nursing,Beaufort Grange Care Home,1206.22, 30-Jun-2020
618,Revenue,CAHD,South Glos Users in South Glos Homes,Permanent Nursing,Beaufort Grange Care Home,735.68, 30-Jun-2020
619,Revenue,CAHD,South Glos Users in South Glos Homes,Permanent Nursing,Beaufort Grange Care Home,735.68, 02-Jun-2020
620,Revenue,CAHD,South Glos Users in South Glos Homes,Permanent Nursing,Beaufort Grange Care Home,1234.89, 02-Jun-2020
621,Revenue,CAHD,South Glos Users in South Glos Homes,Permanent Nursing,Beaufort Grange Care Home,735.68, 30-Jun-2020
622,Revenue,CAHD,South Glos Users in South Glos Homes,Permanent Nursing,Beaufort Grange Care Home,735.68, 02-Jun-2020
623,Revenue,CAHD,South Glos Users in South Glos Homes,Permanent Nursing,Beaufort Grange Care Home,1234.89, 02-Jun-2020
624,Revenue,CAHD,South Glos Users in South Glos Homes,Permanent Nursing,Beaufort Grange Care Home,735.68, 30-Jun-2020
625,Revenue,CAHD,South Glos Users in South Glos Homes,Permanent Nursing,Beaufort Grange Care Home,735.68, 02-Jun-2020
626,Revenue,CAHD,South Glos Users in South Glos Homes,Permanent Nursing,Beaufort Grange Care Home,1234.89, 02-Jun-2020
627,Revenue,CAHD,South Glos Users in South Glos Homes,Permanent Nursing,Beaufort Grange Care Home,735.68, 30-Jun-2020
628,Revenue,CAHD,South Glos Users in South Glos Homes,Permanent Nursing,Beaufort Grange Care Home,735.68, 02-Jun-2020
629,Revenue,CAHD,South Glos Users in South Glos Homes,Permanent Nursing,Beaufort Grange Care Home,1234.89, 02-Jun-2020
630,Revenue,CAHD,South Glos Users in South Glos Homes,Permanent Nursing,Beaufort Grange Care Home,735.68, 30-Jun-2020
631,Revenue,CAHD,South Glos Users in South Glos Homes,Permanent Nursing,Beaufort Grange Care Home,735.68, 02-Jun-2020
632,Revenue,CAHD,South Glos Users in South Glos Homes,Permanent Nursing,Beaufort Grange Care Home,1234.89, 02-Jun-2020
633,Revenue,CAHD,South Glos Users in South Glos Homes,Permanent Nursing,Beaufort Grange Care Home,735.68, 30-Jun-2020
634,Revenue,CAHD,South Glos Users in South Glos Homes,Permanent Nursing,Beaufort Grange Care Home,735.68, 02-Jun-2020
635,Revenue,CAHD,South Glos Users in South Glos Homes,Permanent Nursing,Beaufort Grange Care Home,1234.89, 02-Jun-2020
636,Revenue,CAHD,South Glos Users in South Glos Homes,Permanent Nursing,Beaufort Grange Care Home,735.68, 30-Jun-2020
637,Revenue,CAHD,South Glos Users in South Glos Homes,Permanent Nursing,Beaufort Grange Care Home,735.68, 02-Jun-2020
638,Revenue,CAHD,South Glos Users in South Glos Homes,Permanent Nursing,Beaufort Grange Care Home,1234.89, 02-Jun-2020
639,Revenue,CAHD,South Glos Users in South Glos Homes,Permanent Nursing,Beaufort Grange Care Home,735.68, 30-Jun-2020
640,Revenue,CAHD,South Glos Users in South Glos Homes,Permanent Nursing,Beaufort Grange Care Home,735.68, 02-Jun-2020
641,Revenue,CAHD,South Glos Users in South Glos Homes,Permanent Nursing,Beaufort Grange Care Home,1234.89, 02-Jun-2020
642,Revenue,CAHD,South Glos Users in South Glos Homes,Permanent Nursing,Beaufort Grange Care Home,735.68, 30-Jun-2020
643,Revenue,CAHD,South Glos Users in South Glos Homes,Permanent Nursing,Beaufort Grange Care Home,735.68, 02-Jun-2020
644,Revenue,CAHD,South Glos Users in South Glos Homes,Permanent Nursing,Beaufort Grange Care Home,1234.89, 02-Jun-2020
645,Revenue,CAHD,South Glos Users in South Glos Homes,Permanent Nursing,Beaufort Grange Care Home,735.68, 30-Jun-2020
646,Revenue,CAHD,South Glos Users in South Glos Homes,Permanent Nursing,Beaufort Grange Care Home,735.68, 02-Jun-2020
647,Revenue,CAHD,South Glos Users in South Glos Homes,Permanent Nursing,Beaufort Grange Care Home,1234.89, 02-Jun-2020
648,Revenue,CAHD,South Glos Users in South Glos Homes,Permanent Nursing,Beaufort Grange Care Home,735.68, 30-Jun-2020
649,Revenue,CAHD,South Glos Users in South Glos Homes,Permanent Nursing,Beaufort Grange Care Home,1234.89, 02-Jun-2020
650,Revenue,CAHD,South Glos Users in South Glos Homes,Permanent Nursing,Beaufort Grange Care Home,1234.89, 02-Jun-2020
651,Revenue,CAHD,South Glos Users in South Glos Homes,Permanent Nursing,Beaufort Grange Care Home,735.68, 02-Jun-2020
652,Revenue,CAHD,South Glos Users in South Glos Homes,Permanent Nursing,Beaufort Grange Care Home,1234.89, 02-Jun-2020
653,Revenue,CAHD,South Glos Users in South Glos Homes,Permanent Nursing,Beaufort Grange Care Home,735.68, 30-Jun-2020
654,Revenue,CAHD,South Glos Users in South Glos Homes,Permanent Nursing,Beaufort Grange Care Home,735.68, 02-Jun-2020
655,Revenue,CAHD,South Glos Users in South Glos Homes,Permanent Nursing,Beaufort Grange Care Home,1234.89, 02-Jun-2020
656,Revenue,CAHD,South Glos Users in South Glos Homes,Permanent Nursing,Beaufort Grange Care Home,735.68, 30-Jun-2020
657,Revenue,CAHD,Central - Commissioned Services,Respite Emergency - Residential,Beaufort Grange Care Home,5515.71, 30-Jun-2020
658,Revenue,CAHD,South Glos Users in South Glos Homes,Permanent Nursing,Beaufort Grange Care Home,735.68, 02-Jun-2020
659,Revenue,CAHD,South Glos Users in South Glos Homes,Permanent Nursing,Beaufort Grange Care Home,1234.89, 02-Jun-2020
660,Revenue,CAHD,South Glos Users in South Glos Homes,Permanent Nursing,Beaufort Grange Care Home,735.68, 30-Jun-2020
661,Revenue,CAHD,South Glos Users in South Glos Homes,Permanent Nursing,Beaufort Grange Care Home,735.68, 02-Jun-2020
662,Revenue,CAHD,South Glos Users in South Glos Homes,Permanent Nursing,Beaufort Grange Care Home,1234.89, 02-Jun-2020
663,Revenue,CAHD,South Glos Users in South Glos Homes,Permanent Nursing,Beaufort Grange Care Home,735.68, 30-Jun-2020
664,Revenue,CAHD,South Glos Users in South Glos Homes,Permanent Nursing,Beaufort Grange Care Home,735.68, 02-Jun-2020
665,Revenue,CAHD,South Glos Users in South Glos Homes,Permanent Nursing,Beaufort Grange Care Home,1234.89, 02-Jun-2020
666,Revenue,CAHD,South Glos Users in South Glos Homes,Permanent Nursing,Beaufort Grange Care Home,735.68, 30-Jun-2020
667,Revenue,CAHD,South Glos Users in South Glos Homes,Permanent Nursing,Beaufort Grange Care Home,1513.69, 30-Jun-2020
668,Revenue,CAHD,South Glos Users in South Glos Homes,Permanent Nursing,Beaufort Grange Care Home,2648.96, 30-Jun-2020
669,Revenue,CAHD,South Glos Users in South Glos Homes,Permanent Nursing,Beaufort Grange Care Home,1970.57, 30-Jun-2020
670,Revenue,CAHD,South Glos Users in South Glos Homes,Permanent Nursing,Beaufort Grange Care Home,735.68, 30-Jun-2020
671,Revenue,CAHD,South Glos Users in South Glos Homes,Permanent Nursing,Beaufort Grange Care Home,581.54, 25-Jun-2020
672,Revenue,CAHD,South Glos Users in South Glos Homes,Permanent Nursing,Beaufort Grange Care Home,771.21, 25-Jun-2020
673,Revenue,CAHD,South Glos Users in South Glos Homes,Permanent Nursing,Beaufort Grange Care Home,802.79, 25-Jun-2020
674,Revenue,CAHD,South Glos Users in South Glos Homes,Permanent Nursing,Beaufort Grange Care Home,802.79, 25-Jun-2020
675,Revenue,CAHD,South Glos Users in South Glos Homes,Permanent Nursing,Beaufort Grange Care Home,771.21, 25-Jun-2020
676,Revenue,CAHD,South Glos Users in South Glos Homes,Permanent Nursing,Beaufort Grange Care Home,802.79, 25-Jun-2020
677,Revenue,CAHD,South Glos Users in South Glos Homes,Permanent Nursing,Beaufort Grange Care Home,667.93, 25-Jun-2020
678,Revenue,CAHD,South Glos Users in South Glos Homes,Permanent Nursing,Beaufort Grange Care Home,802.79, 25-Jun-2020
679,Revenue,CAHD,South Glos Users in South Glos Homes,Permanent Nursing,Beaufort Grange Care Home,627.93, 25-Jun-2020
680,Revenue,CAHD,South Glos Users in South Glos Homes,Permanent Nursing,Beaufort Grange Care Home,802.79, 25-Jun-2020
681,Revenue,CAHD,South Glos Users in South Glos Homes,Permanent Nursing,Beaufort Grange Care Home,802.79, 25-Jun-2020
682,Revenue,CAHD,South Glos Users in South Glos Homes,Permanent Nursing,Beaufort Grange Care Home,802.79, 25-Jun-2020
683,Revenue,CAHD,South Glos Users in South Glos Homes,Permanent Nursing,Beaufort Grange Care Home,802.79, 25-Jun-2020
684,Revenue,CAHD,South Glos Users in South Glos Homes,Permanent Nursing,Beaufort Grange Care Home,802.79, 25-Jun-2020
685,Revenue,CAHD,South Glos Users in South Glos Homes,Permanent Nursing,Beaufort Grange Care Home,802.79, 25-Jun-2020
686,Revenue,CAHD,South Glos Users in South Glos Homes,Permanent Nursing,Beaufort Grange Care Home,771.21, 25-Jun-2020
687,Revenue,CAHD,South Glos Users in South Glos Homes,Permanent Nursing,Beaufort Grange Care Home,741.71, 25-Jun-2020
688,Revenue,CAHD,South Glos Users in South Glos Homes,Permanent Nursing,Beaufort Grange Care Home,802.79, 25-Jun-2020
689,Revenue,CAHD,South Glos Users in South Glos Homes,Permanent Nursing,Beaufort Grange Care Home,802.79, 25-Jun-2020
690,Revenue,CAHD,South Glos Users in South Glos Homes,Permanent Nursing,Beaufort Grange Care Home,771.21, 25-Jun-2020
691,Revenue,CAHD,South Glos Users in South Glos Homes,Permanent Nursing,Beaufort Grange Care Home,802.79, 25-Jun-2020
692,Revenue,CAHD,South Glos Users in South Glos Homes,Permanent Nursing,Beaufort Grange Care Home,802.79, 25-Jun-2020
693,Revenue,CAHD,South Glos Users in South Glos Homes,Permanent Nursing,Beaufort Grange Care Home,802.79, 25-Jun-2020
694,Revenue,CAHD,South Glos Users in South Glos Homes,Permanent Nursing,Beaufort Grange Care Home,802.79, 25-Jun-2020
695,Revenue,CAHD,South Glos Users in South Glos Homes,Permanent Nursing,Beaufort Grange Care Home,545.72, 25-Jun-2020
696,Revenue,CAHD,South Glos Users in South Glos Homes,Permanent Nursing,Beaufort Grange Care Home,771.21, 25-Jun-2020
697,Revenue,CAHD,South Glos Users in South Glos Homes,Permanent Nursing,Beaufort Grange Care Home,802.79, 25-Jun-2020
698,Revenue,CAHD,South Glos Users in South Glos Homes,Permanent Nursing,Beaufort Grange Care Home,802.79, 25-Jun-2020
699,Revenue,CAHD,South Glos Users in South Glos Homes,Permanent Nursing,Beaufort Grange Care Home,802.79, 25-Jun-2020
700,Revenue,CAHD,South Glos Users in South Glos Homes,Permanent Nursing,Beaufort Grange Care Home,802.79, 25-Jun-2020
701,Revenue,CAHD,South Glos Users in South Glos Homes,Permanent Nursing,Beaufort Grange Care Home,802.79, 25-Jun-2020
702,Revenue,CAHD,South Glos Users in South Glos Homes,Permanent Nursing,Beaufort Grange Care Home,802.79, 25-Jun-2020
703,Revenue,CAHD,South Glos Users in South Glos Homes,Permanent Nursing,Beaufort Grange Care Home,771.21, 25-Jun-2020
704,Revenue,CAHD,South Glos Users in South Glos Homes,Permanent Nursing,Beaufort Grange Care Home,560.50, 25-Jun-2020
705,Revenue,CAHD,South Glos Users in South Glos Homes,Permanent Nursing,Beaufort Grange Care Home,802.79, 25-Jun-2020
706,Revenue,CAHD,South Glos Users in South Glos Homes,Permanent Nursing,Beaufort Grange Care Home,771.21, 25-Jun-2020
707,Revenue,CAHD,South Glos Users in South Glos Homes,Permanent Nursing,Beaufort Grange Care Home,802.79, 25-Jun-2020
708,Revenue,CAHD,South Glos Users in South Glos Homes,Permanent Nursing,Beaufort Grange Care Home,735.68, 02-Jun-2020
709,Revenue,CAHD,South Glos Users in South Glos Homes,Permanent Nursing,Beaufort Grange Care Home,1234.89, 02-Jun-2020
710,Revenue,CAHD,South Glos Users in South Glos Homes,Permanent Nursing,Beaufort Grange Care Home,735.68, 30-Jun-2020
711,Revenue,CAHD,South Glos Users in South Glos Homes,Permanent Nursing,Beaufort Grange Care Home,735.68, 02-Jun-2020
712,Revenue,CAHD,South Glos Users in South Glos Homes,Permanent Nursing,Beaufort Grange Care Home,1234.89, 02-Jun-2020
713,Revenue,CAHD,South Glos Users in South Glos Homes,Permanent Nursing,Beaufort Grange Care Home,735.68, 30-Jun-2020
714,Revenue,CAHD,South Glos Users in South Glos Homes,Permanent Nursing,Beaufort Grange Care Home,735.68, 02-Jun-2020
715,Revenue,CAHD,South Glos Users in South Glos Homes,Permanent Nursing,Beaufort Grange Care Home,1234.89, 02-Jun-2020
716,Revenue,CAHD,South Glos Users in South Glos Homes,Permanent Nursing,Beaufort Grange Care Home,735.68, 30-Jun-2020
717,Revenue,CAHD,South Glos Users in South Glos Homes,Permanent Nursing,Beaufort Grange Care Home,5250.62, 02-Jun-2020
718,Revenue,CAHD,North - Community based support,Permanent Nursing,Beaufort Grange Care Home,5405.76, 02-Jun-2020
719,Revenue,CAHD,South Glos Users in South Glos Homes,Permanent Nursing,Beaufort Grange Care Home,1234.89, 02-Jun-2020
720,Revenue,CAHD,South Glos Users in South Glos Homes,Permanent Nursing,Beaufort Grange Care Home,735.68, 02-Jun-2020
721,Revenue,CAHD,North - Community based support,Permanent Nursing,Beaufort Grange Care Home,5405.76, 30-Jun-2020
722,Revenue,CAHD,South Glos Users in South Glos Homes,Permanent Nursing,Beaufort Grange Care Home,735.68, 30-Jun-2020
723,Revenue,CAHD,South Glos Users in South Glos Homes,Permanent Nursing,Beaufort Grange Care Home,735.68, 02-Jun-2020
724,Revenue,CAHD,South Glos Users in South Glos Homes,Permanent Nursing,Beaufort Grange Care Home,1234.89, 02-Jun-2020
725,Revenue,CAHD,South Glos Users in South Glos Homes,Permanent Nursing,Beaufort Grange Care Home,735.68, 30-Jun-2020
726,Revenue,CAHD,North - Community based support,Permanent Residential,Beaufort House,2600.56, 02-Jun-2020
727,Revenue,CAHD,North - Community based support,Permanent Residential,Beaufort House,2600.56, 30-Jun-2020
728,Revenue,CAHD,Central - Commissioned Services,Permanent Residential,Beaufort House,2924.56, 02-Jun-2020
729,Revenue,CAHD,Central - Commissioned Services,Permanent Residential,Beaufort House,2924.56, 30-Jun-2020
730,Revenue,CAHD,Central - Commissioned Services,Permanent Residential,Beaufort House,2831.12, 02-Jun-2020
731,Revenue,CAHD,Central - Commissioned Services,Permanent Residential,Beaufort House,2831.12, 30-Jun-2020
732,Revenue,CAHD,North - Community based support,Permanent Residential,Beaufort House,2622.84, 02-Jun-2020
733,Revenue,CAHD,North - Community based support,Permanent Residential,Beaufort House,2622.84, 30-Jun-2020
734,Revenue,CAHD,South - Commissioned Services,Permanent Residential,Beaufort House,2587.56, 02-Jun-2020
735,Revenue,CAHD,South - Commissioned Services,Permanent Residential,Beaufort House,2587.56, 30-Jun-2020
736,Revenue,CAHD,Central - Commissioned Services,Permanent Residential,Beaufort House,3400.00, 02-Jun-2020
737,Revenue,CAHD,Central - Commissioned Services,Permanent Residential,Beaufort House,3400.00, 30-Jun-2020
738,Revenue,CAHD,South - Commissioned Services,Permanent Residential,Beaufort House,3400.00, 02-Jun-2020
739,Revenue,CAHD,South - Commissioned Services,Permanent Residential,Beaufort House,3400.00, 30-Jun-2020
740,Revenue,CAHD,North - Community based support,Permanent Residential,Beaufort House,2753.92, 02-Jun-2020
741,Revenue,CAHD,North - Community based support,Permanent Residential,Beaufort House,2753.92, 30-Jun-2020
742,Revenue,CAHD,North - Community based support,Respite Planned - Residential,Beaufort House,6300.00, 30-Jun-2020
743,Revenue,CAHD,Covid � ASC - Infection Control,Grants to Voluntary Bodies,Beaufort House,2318.68, 26-Jun-2020
744,Revenue,CAHD,Central - Bed Purchasing and Direct Payments,Permanent Residential,Beaufort House,3400.00, 02-Jun-2020
745,Revenue,CAHD,Central - Bed Purchasing and Direct Payments,Permanent Residential,Beaufort House,3400.00, 30-Jun-2020
746,Revenue,CAHD,Covid � ASC - Infection Control,Grants to Voluntary Bodies,Beaufort House,13939.80, 10-Jun-2020
747,Revenue,CAHD,South - Commissioned Services,Permanent Residential,Beech House,3018.84, 02-Jun-2020
748,Revenue,CAHD,South Glos Users in South Glos Homes,Permanent Nursing,Beech House,735.68, 02-Jun-2020
749,Revenue,CAHD,South Glos Users in South Glos Homes,Permanent Nursing,Beech House,1234.89, 02-Jun-2020
750,Revenue,CAHD,South - Commissioned Services,Permanent Residential,Beech House,3018.84, 30-Jun-2020
751,Revenue,CAHD,South Glos Users in South Glos Homes,Permanent Nursing,Beech House,735.68, 30-Jun-2020
752,Revenue,CAHD,South Glos Users in South Glos Homes,Permanent Nursing,Beech House,735.68, 02-Jun-2020
753,Revenue,CAHD,South Glos Users in South Glos Homes,Permanent Nursing,Beech House,1234.89, 02-Jun-2020
754,Revenue,CAHD,South Glos Users in South Glos Homes,Permanent Nursing,Beech House,735.68, 30-Jun-2020
755,Revenue,CAHD,North - Community based support,Permanent Residential,Beech House,4263.60, 02-Jun-2020
756,Revenue,CAHD,South Glos Users in South Glos Homes,Permanent Nursing,Beech House,735.68, 02-Jun-2020
757,Revenue,CAHD,South Glos Users in South Glos Homes,Permanent Nursing,Beech House,1234.89, 02-Jun-2020
758,Revenue,CAHD,South Glos Users in South Glos Homes,Permanent Nursing,Beech House,735.68, 30-Jun-2020
759,Revenue,CAHD,South Glos Users in South Glos Homes,Permanent Nursing,Beech House,735.68, 02-Jun-2020
760,Revenue,CAHD,South Glos Users in South Glos Homes,Permanent Nursing,Beech House,1234.89, 02-Jun-2020
761,Revenue,CAHD,South Glos Users in South Glos Homes,Permanent Nursing,Beech House,735.68, 30-Jun-2020
762,Revenue,CAHD,South Glos Users in South Glos Homes,Permanent Nursing,Beech House,780.50, 02-Jun-2020
763,Revenue,CAHD,South Glos Users in South Glos Homes,Permanent Nursing,Beech House,735.68, 02-Jun-2020
764,Revenue,CAHD,South Glos Users in South Glos Homes,Permanent Nursing,Beech House,1234.89, 02-Jun-2020
765,Revenue,CAHD,South Glos Users in South Glos Homes,Permanent Nursing,Beech House,735.68, 30-Jun-2020
766,Revenue,CAHD,South Glos Users in South Glos Homes,Permanent Nursing,Beech House,735.68, 02-Jun-2020
767,Revenue,CAHD,South Glos Users in South Glos Homes,Permanent Nursing,Beech House,1234.89, 02-Jun-2020
768,Revenue,CAHD,South Glos Users in South Glos Homes,Permanent Nursing,Beech House,735.68, 30-Jun-2020
769,Revenue,CAHD,South Glos Users in South Glos Homes,Permanent Nursing,Beech House,1234.89, 02-Jun-2020
770,Revenue,CAHD,South Glos Users in South Glos Homes,Permanent Nursing,Beech House,1182.57, 02-Jun-2020
771,Revenue,CAHD,South Glos Users in South Glos Homes,Permanent Nursing,Beech House,735.68, 02-Jun-2020
772,Revenue,CAHD,South Glos Users in South Glos Homes,Permanent Nursing,Beech House,735.68, 30-Jun-2020
773,Revenue,CAHD,South Glos Users in South Glos Homes,Permanent Nursing,Beech House,1234.89, 02-Jun-2020
774,Revenue,CAHD,South Glos Users in South Glos Homes,Permanent Nursing,Beech House,1234.89, 02-Jun-2020
775,Revenue,CAHD,North - Community based support,Permanent Nursing,Beech House,4368.88, 02-Jun-2020
776,Revenue,CAHD,North - Community based support,Permanent Nursing,Beech House,4368.88, 30-Jun-2020
777,Revenue,CAHD,South Glos Users in South Glos Homes,Permanent Nursing,Beech House,551.76, 02-Jun-2020
778,Revenue,CAHD,South Glos Users in South Glos Homes,Permanent Nursing,Beech House,735.68, 02-Jun-2020
779,Revenue,CAHD,South Glos Users in South Glos Homes,Permanent Nursing,Beech House,1234.89, 02-Jun-2020
780,Revenue,CAHD,South Glos Users in South Glos Homes,Permanent Nursing,Beech House,735.68, 30-Jun-2020
781,Revenue,CAHD,South Glos Users in South Glos Homes,Permanent Nursing,Beech House,735.68, 02-Jun-2020
782,Revenue,CAHD,South Glos Users in South Glos Homes,Permanent Nursing,Beech House,1234.89, 02-Jun-2020
783,Revenue,CAHD,South Glos Users in South Glos Homes,Permanent Nursing,Beech House,735.68, 30-Jun-2020
784,Revenue,CAHD,South Glos Users in South Glos Homes,Permanent Nursing,Beech House,898.75, 02-Jun-2020
785,Revenue,CAHD,South Glos Users in South Glos Homes,Permanent Nursing,Beech House,735.68, 02-Jun-2020
786,Revenue,CAHD,South Glos Users in South Glos Homes,Permanent Nursing,Beech House,1234.89, 02-Jun-2020
787,Revenue,CAHD,South Glos Users in South Glos Homes,Permanent Nursing,Beech House,735.68, 30-Jun-2020
788,Revenue,CAHD,South Glos Users in South Glos Homes,Permanent Nursing,Beech House,735.68, 02-Jun-2020
789,Revenue,CAHD,South Glos Users in South Glos Homes,Permanent Nursing,Beech House,1234.89, 02-Jun-2020
790,Revenue,CAHD,South Glos Users in South Glos Homes,Permanent Nursing,Beech House,735.68, 30-Jun-2020
791,Revenue,CAHD,South Glos Users in South Glos Homes,Permanent Nursing,Beech House,735.68, 02-Jun-2020
792,Revenue,CAHD,South Glos Users in South Glos Homes,Permanent Nursing,Beech House,1234.89, 02-Jun-2020
793,Revenue,CAHD,South Glos Users in South Glos Homes,Permanent Nursing,Beech House,735.68, 30-Jun-2020
794,Revenue,CAHD,South Glos Users in South Glos Homes,Permanent Nursing,Beech House,998.42, 02-Jun-2020
795,Revenue,CAHD,South Glos Users in South Glos Homes,Permanent Nursing,Beech House,735.68, 02-Jun-2020
796,Revenue,CAHD,South Glos Users in South Glos Homes,Permanent Nursing,Beech House,735.68, 30-Jun-2020
797,Revenue,CAHD,North - Community based support,Permanent Nursing,Beech House,4308.04, 02-Jun-2020
798,Revenue,CAHD,South Glos Users in South Glos Homes,Permanent Nursing,Beech House,735.68, 02-Jun-2020
799,Revenue,CAHD,South Glos Users in South Glos Homes,Permanent Nursing,Beech House,1234.89, 02-Jun-2020
800,Revenue,CAHD,North - Community based support,Permanent Nursing,Beech House,4308.04, 30-Jun-2020
801,Revenue,CAHD,South Glos Users in South Glos Homes,Permanent Nursing,Beech House,735.68, 30-Jun-2020
802,Revenue,CAHD,South Glos Users in South Glos Homes,Permanent Nursing,Beech House,1234.89, 02-Jun-2020
803,Revenue,CAHD,South Glos Users in South Glos Homes,Permanent Nursing,Beech House,802.79, 25-Jun-2020
804,Revenue,CAHD,South Glos Users in South Glos Homes,Permanent Nursing,Beech House,771.21, 25-Jun-2020
805,Revenue,CAHD,South Glos Users in South Glos Homes,Permanent Nursing,Beech House,802.79, 25-Jun-2020
806,Revenue,CAHD,South Glos Users in South Glos Homes,Permanent Nursing,Beech House,802.79, 25-Jun-2020
807,Revenue,CAHD,South Glos Users in South Glos Homes,Permanent Nursing,Beech House,802.79, 25-Jun-2020
808,Revenue,CAHD,South Glos Users in South Glos Homes,Permanent Nursing,Beech House,802.79, 25-Jun-2020
809,Revenue,CAHD,South Glos Users in South Glos Homes,Permanent Nursing,Beech House,802.79, 25-Jun-2020
810,Revenue,CAHD,South Glos Users in South Glos Homes,Permanent Nursing,Beech House,537.29, 25-Jun-2020
811,Revenue,CAHD,South Glos Users in South Glos Homes,Permanent Nursing,Beech House,560.50, 25-Jun-2020
812,Revenue,CAHD,South Glos Users in South Glos Homes,Permanent Nursing,Beech House,587.89, 25-Jun-2020
813,Revenue,CAHD,South Glos Users in South Glos Homes,Permanent Nursing,Beech House,802.79, 25-Jun-2020
814,Revenue,CAHD,South Glos Users in South Glos Homes,Permanent Nursing,Beech House,802.79, 25-Jun-2020
815,Revenue,CAHD,South Glos Users in South Glos Homes,Permanent Nursing,Beech House,802.79, 25-Jun-2020
816,Revenue,CAHD,South Glos Users in South Glos Homes,Permanent Nursing,Beech House,520.43, 25-Jun-2020
817,Revenue,CAHD,South Glos Users in South Glos Homes,Permanent Nursing,Beech House,802.79, 25-Jun-2020
818,Revenue,CAHD,South Glos Users in South Glos Homes,Permanent Nursing,Beech House,771.21, 25-Jun-2020
819,Revenue,CAHD,South Glos Users in South Glos Homes,Permanent Nursing,Beech House,802.79, 25-Jun-2020
820,Revenue,CAHD,South Glos Users in South Glos Homes,Permanent Nursing,Beech House,562.58, 25-Jun-2020
821,Revenue,CAHD,South Glos Users in South Glos Homes,Permanent Nursing,Beech House,802.79, 25-Jun-2020
822,Revenue,CAHD,South Glos Users in South Glos Homes,Permanent Nursing,Beech House,802.79, 25-Jun-2020
823,Revenue,CAHD,South Glos Users in South Glos Homes,Permanent Nursing,Beech House,802.79, 25-Jun-2020
824,Revenue,CAHD,South Glos Users in South Glos Homes,Permanent Nursing,Beech House,771.21, 25-Jun-2020
825,Revenue,CAHD,South Glos Users in South Glos Homes,Permanent Nursing,Beech House,802.79, 25-Jun-2020
826,Revenue,CAHD,South Glos Users in South Glos Homes,Permanent Nursing,Beech House,670.07, 25-Jun-2020
827,Revenue,CAHD,Covid � ASC - Infection Control,Grants to Voluntary Bodies,Beech House,4554.55, 26-Jun-2020
828,Revenue,CAHD,South Glos Users in South Glos Homes,Permanent Nursing,Beech House,735.68, 02-Jun-2020
829,Revenue,CAHD,South Glos Users in South Glos Homes,Permanent Nursing,Beech House,1234.89, 02-Jun-2020
830,Revenue,CAHD,South Glos Users in South Glos Homes,Permanent Nursing,Beech House,735.68, 30-Jun-2020
831,Revenue,CAHD,North - Community based support,Permanent Nursing,Beech House,4182.00, 02-Jun-2020
832,Revenue,CAHD,South Glos Users in South Glos Homes,Permanent Nursing,Beech House,735.68, 02-Jun-2020
833,Revenue,CAHD,South Glos Users in South Glos Homes,Permanent Nursing,Beech House,1234.89, 02-Jun-2020
834,Revenue,CAHD,North - Community based support,Permanent Nursing,Beech House,4182.00, 30-Jun-2020
835,Revenue,CAHD,South Glos Users in South Glos Homes,Permanent Nursing,Beech House,735.68, 30-Jun-2020
836,Revenue,CAHD,South Glos Users in South Glos Homes,Permanent Nursing,Beech House,735.68, 02-Jun-2020
837,Revenue,CAHD,South Glos Users in South Glos Homes,Permanent Nursing,Beech House,1234.89, 02-Jun-2020
838,Revenue,CAHD,South Glos Users in South Glos Homes,Permanent Nursing,Beech House,735.68, 30-Jun-2020
839,Revenue,CAHD,South Glos Users in South Glos Homes,Permanent Nursing,Beech House,735.68, 02-Jun-2020
840,Revenue,CAHD,South Glos Users in South Glos Homes,Permanent Nursing,Beech House,1234.89, 02-Jun-2020
841,Revenue,CAHD,South Glos Users in South Glos Homes,Permanent Nursing,Beech House,735.68, 30-Jun-2020
842,Revenue,CAHD,South Glos Users in South Glos Homes,Permanent Nursing,Beech House,735.68, 02-Jun-2020
843,Revenue,CAHD,South Glos Users in South Glos Homes,Permanent Nursing,Beech House,1234.89, 02-Jun-2020
844,Revenue,CAHD,South Glos Users in South Glos Homes,Permanent Nursing,Beech House,735.68, 30-Jun-2020
845,Revenue,CAHD,Covid � ASC - Infection Control,Grants to Voluntary Bodies,Beech House,27381.75, 10-Jun-2020
846,Revenue,CAHD,South Glos Users in South Glos Homes,Permanent Nursing,Beechwood Care Home,1028.00, 02-Jun-2020
847,Revenue,CAHD,South Glos Users in South Glos Homes,Permanent Nursing,Beechwood Care Home,1028.00, 30-Jun-2020
848,Revenue,CAHD,Central - Commissioned Services,Permanent Residential,Beechwood Court,15254.92, 02-Jun-2020
849,Revenue,CAHD,Central - Commissioned Services,Permanent Residential,Beechwood Court,15254.92, 30-Jun-2020
850,Revenue,CAHD,South - S117,Permanent Residential,Bidna House,3692.64, 02-Jun-2020
851,Revenue,CAHD,South - S117,Permanent Residential,Bidna House,3692.64, 30-Jun-2020
852,Revenue,CAHD,Statemented Support Payments to OLAs,Other L.A.'s - General,Blaise High School,907.83, 22-Jun-2020
853,Revenue,CAHD,Central - Commissioned Services,Other Small Contracts,Blakehill Healthcare Ltd,6590.00, 03-Jun-2020
854,Revenue,CAHD,South - Commissioned Services,Other Small Contracts,Blakehill Healthcare Ltd,11126.17, 04-Jun-2020
855,Revenue,CAHD,Central - Commissioned Services,Other Small Contracts,Blakehill Healthcare Ltd,1143.75, 01-Jun-2020
856,Revenue,CAHD,Central - Commissioned Services,Other Small Contracts,Blakehill Healthcare Ltd,1225.00, 04-Jun-2020
857,Revenue,CAHD,Central - Commissioned Services,Other Small Contracts,Blakehill Healthcare Ltd,700.00, 01-Jun-2020
858,Revenue,CAHD,Central - Commissioned Services,Other Small Contracts,Blakehill Healthcare Ltd,4299.00, 22-Jun-2020
859,Revenue,CAHD,South - Commissioned Services,Other Small Contracts,Blakehill Healthcare Ltd,3150.00, 15-Jun-2020
860,Revenue,CAHD,Central - Commissioned Services,Other Small Contracts,Blakehill Healthcare Ltd,1706.25, 15-Jun-2020
861,Revenue,CAHD,Central - Commissioned Services,Other Small Contracts,Blakehill Healthcare Ltd,1562.50, 12-Jun-2020
862,Revenue,CAHD,Pathway 1 - Re-Ablement Home Care,Other Small Contracts,Blakehill Healthcare Ltd,3075.00, 19-Jun-2020
863,Revenue,CAHD,South - Commissioned Services,Other Small Contracts,Blakehill Healthcare Ltd,650.00, 15-Jun-2020
864,Revenue,CAHD,Central - Commissioned Services,Other Small Contracts,Blakehill Healthcare Ltd,700.00, 26-Jun-2020
865,Revenue,CAHD,Central - Commissioned Services,Other Small Contracts,Blakehill Healthcare Ltd,1050.00, 15-Jun-2020
866,Revenue,CAHD,Central - Commissioned Services,Other Small Contracts,Blakehill Healthcare Ltd,1400.00, 19-Jun-2020
867,Revenue,CAHD,Central - Commissioned Services,Other Small Contracts,Blakehill Healthcare Ltd,712.50, 19-Jun-2020
868,Revenue,CAHD,Central - Commissioned Services,Other Small Contracts,Blakehill Healthcare Ltd,2800.00, 22-Jun-2020
869,Revenue,CAHD,South - Commissioned Services,Other Small Contracts,Blakehill Healthcare Ltd,975.00, 15-Jun-2020
870,Revenue,CAHD,Central - Commissioned Services,Other Small Contracts,Blakehill Healthcare Ltd,1131.25, 15-Jun-2020
871,Revenue,CAHD,Central - Commissioned Services,Other Small Contracts,Blakehill Healthcare Ltd,1037.50, 26-Jun-2020
872,Revenue,CAHD,Central - Commissioned Services,Other Small Contracts,Blakehill Healthcare Ltd,700.00, 15-Jun-2020
873,Revenue,CAHD,North - Community based support,Other Small Contracts,Blakehill Healthcare Ltd,3118.75, 15-Jun-2020
874,Revenue,CAHD,Central - Commissioned Services,Other Small Contracts,Blakehill Healthcare Ltd,1950.00, 22-Jun-2020
875,Revenue,CAHD,Central - Commissioned Services,Other Small Contracts,Blakehill Healthcare Ltd,5241.60, 16-Jun-2020
876,Revenue,CAHD,Central - Commissioned Services,Other Small Contracts,Blakehill Healthcare Ltd,1400.00, 29-Jun-2020
877,Revenue,CAHD,Central - Commissioned Services,Other Small Contracts,Blakehill Healthcare Ltd,1575.00, 29-Jun-2020
878,Revenue,CAHD,Central - Commissioned Services,Other Small Contracts,Blakehill Healthcare Ltd,1860.00, 29-Jun-2020
879,Revenue,CAHD,Pathway 1 - Re-Ablement Home Care,Other Small Contracts,Blakehill Healthcare Ltd,1000.00, 30-Jun-2020
880,Revenue,CAHD,Central - Commissioned Services,Other Small Contracts,Blakehill Healthcare Ltd,4249.25, 29-Jun-2020
881,Revenue,CAHD,Central - Commissioned Services,Other Small Contracts,Blakehill Healthcare Ltd,2675.00, 29-Jun-2020
882,Revenue,CAHD,Central - Commissioned Services,Other Small Contracts,Blakehill Healthcare Ltd,2800.00, 29-Jun-2020
883,Revenue,CAHD,Central - Commissioned Services,Other Small Contracts,Blakehill Healthcare Ltd,787.50, 26-Jun-2020
884,Revenue,CAHD,North - Community based support,Other Small Contracts,Blakehill Healthcare Ltd,5241.60, 26-Jun-2020
885,Revenue,CAHD,Covid � ASC - Infection Control,Grants to Voluntary Bodies,Blakehill Healthcare Ltd,2728.20, 26-Jun-2020
886,Revenue,CAHD,Pathway 1 - Re-Ablement Home Care,Other Small Contracts,Blakehill Healthcare Ltd,587.50, 17-Jun-2020
887,Revenue,CAHD,Central - Commissioned Services,Other Small Contracts,Blakehill Healthcare Ltd,2372.90, 22-Jun-2020
888,Revenue,CAHD,South Glos Users in South Glos Homes,Permanent Nursing,Blossom Field,1287.44, 30-Jun-2020
889,Revenue,CAHD,South Glos Users in South Glos Homes,Permanent Nursing,Blossom Field,735.68, 30-Jun-2020
890,Revenue,CAHD,South - Commissioned Services,Permanent Nursing,Blossom Field,4780.36, 02-Jun-2020
891,Revenue,CAHD,South Glos Users in South Glos Homes,Permanent Nursing,Blossom Field,735.68, 02-Jun-2020
892,Revenue,CAHD,South Glos Users in South Glos Homes,Permanent Nursing,Blossom Field,1234.89, 02-Jun-2020
893,Revenue,CAHD,South - Commissioned Services,Permanent Nursing,Blossom Field,4780.36, 30-Jun-2020
894,Revenue,CAHD,South Glos Users in South Glos Homes,Permanent Nursing,Blossom Field,735.68, 30-Jun-2020
895,Revenue,CAHD,South Glos Users in South Glos Homes,Permanent Nursing,Blossom Field,735.68, 02-Jun-2020
896,Revenue,CAHD,South Glos Users in South Glos Homes,Permanent Nursing,Blossom Field,1234.89, 02-Jun-2020
897,Revenue,CAHD,South Glos Users in South Glos Homes,Permanent Nursing,Blossom Field,735.68, 30-Jun-2020
898,Revenue,CAHD,North - Community based support,Permanent Nursing,Blossom Field,4770.40, 02-Jun-2020
899,Revenue,CAHD,South Glos Users in South Glos Homes,Permanent Nursing,Blossom Field,735.68, 02-Jun-2020
900,Revenue,CAHD,South Glos Users in South Glos Homes,Permanent Nursing,Blossom Field,1234.89, 02-Jun-2020
901,Revenue,CAHD,North - Community based support,Permanent Nursing,Blossom Field,4770.40, 30-Jun-2020
902,Revenue,CAHD,South Glos Users in South Glos Homes,Permanent Nursing,Blossom Field,735.68, 30-Jun-2020
903,Revenue,CAHD,South Glos Users in South Glos Homes,Permanent Nursing,Blossom Field,735.68, 02-Jun-2020
904,Revenue,CAHD,South Glos Users in South Glos Homes,Permanent Nursing,Blossom Field,1234.89, 02-Jun-2020
905,Revenue,CAHD,South Glos Users in South Glos Homes,Permanent Nursing,Blossom Field,735.68, 30-Jun-2020
906,Revenue,CAHD,North - Community based support,Permanent Nursing,Blossom Field,4352.80, 02-Jun-2020
907,Revenue,CAHD,South Glos Users in South Glos Homes,Permanent Nursing,Blossom Field,735.68, 02-Jun-2020
908,Revenue,CAHD,South Glos Users in South Glos Homes,Permanent Nursing,Blossom Field,1234.89, 02-Jun-2020
909,Revenue,CAHD,North - Community based support,Permanent Nursing,Blossom Field,4352.80, 30-Jun-2020
910,Revenue,CAHD,South Glos Users in South Glos Homes,Permanent Nursing,Blossom Field,735.68, 30-Jun-2020
911,Revenue,CAHD,North - Community based support,Permanent Nursing,Blossom Field,4039.20, 02-Jun-2020
912,Revenue,CAHD,North - Community based support,Permanent Nursing,Blossom Field,1930.22, 02-Jun-2020
913,Revenue,CAHD,South Glos Users in South Glos Homes,Permanent Nursing,Blossom Field,1234.89, 02-Jun-2020
914,Revenue,CAHD,South Glos Users in South Glos Homes,Permanent Nursing,Blossom Field,1111.62, 02-Jun-2020
915,Revenue,CAHD,South Glos Users in South Glos Homes,Permanent Nursing,Blossom Field,735.68, 02-Jun-2020
916,Revenue,CAHD,North - Community based support,Permanent Nursing,Blossom Field,4039.20, 30-Jun-2020
917,Revenue,CAHD,South Glos Users in South Glos Homes,Permanent Nursing,Blossom Field,735.68, 30-Jun-2020
918,Revenue,CAHD,South Glos Users in South Glos Homes,Permanent Nursing,Blossom Field,735.68, 02-Jun-2020
919,Revenue,CAHD,South Glos Users in South Glos Homes,Permanent Nursing,Blossom Field,1234.89, 02-Jun-2020
920,Revenue,CAHD,South Glos Users in South Glos Homes,Permanent Nursing,Blossom Field,735.68, 30-Jun-2020
921,Revenue,CAHD,South Glos Users in South Glos Homes,Permanent Nursing,Blossom Field,735.68, 02-Jun-2020
922,Revenue,CAHD,South Glos Users in South Glos Homes,Permanent Nursing,Blossom Field,1234.89, 02-Jun-2020
923,Revenue,CAHD,South Glos Users in South Glos Homes,Permanent Nursing,Blossom Field,735.68, 30-Jun-2020
924,Revenue,CAHD,South - Commissioned Services,Permanent Nursing,Blossom Field,4501.36, 02-Jun-2020
925,Revenue,CAHD,South Glos Users in South Glos Homes,Permanent Nursing,Blossom Field,735.68, 02-Jun-2020
926,Revenue,CAHD,South Glos Users in South Glos Homes,Permanent Nursing,Blossom Field,1234.89, 02-Jun-2020
927,Revenue,CAHD,South - Commissioned Services,Permanent Nursing,Blossom Field,4501.36, 30-Jun-2020
928,Revenue,CAHD,South Glos Users in South Glos Homes,Permanent Nursing,Blossom Field,735.68, 30-Jun-2020
929,Revenue,CAHD,South Glos Users in South Glos Homes,Permanent Nursing,Blossom Field,735.68, 02-Jun-2020
930,Revenue,CAHD,South Glos Users in South Glos Homes,Permanent Nursing,Blossom Field,1234.89, 02-Jun-2020
931,Revenue,CAHD,South Glos Users in South Glos Homes,Permanent Nursing,Blossom Field,735.68, 30-Jun-2020
932,Revenue,CAHD,North - Community based support,Permanent Nursing,Blossom Field,3604.60, 02-Jun-2020
933,Revenue,CAHD,South Glos Users in South Glos Homes,Permanent Nursing,Blossom Field,735.68, 02-Jun-2020
934,Revenue,CAHD,South Glos Users in South Glos Homes,Permanent Nursing,Blossom Field,1234.89, 02-Jun-2020
935,Revenue,CAHD,North - Community based support,Permanent Nursing,Blossom Field,3604.60, 30-Jun-2020
936,Revenue,CAHD,South Glos Users in South Glos Homes,Permanent Nursing,Blossom Field,735.68, 30-Jun-2020
937,Revenue,CAHD,North - Community based support,Fees & Charges Income - General,Blossom Field,3179.13, 30-Jun-2020
938,Revenue,CAHD,South Glos Users in South Glos Homes,Permanent Nursing,Blossom Field,735.68, 02-Jun-2020
939,Revenue,CAHD,South Glos Users in South Glos Homes,Permanent Nursing,Blossom Field,1234.89, 02-Jun-2020
940,Revenue,CAHD,South Glos Users in South Glos Homes,Permanent Nursing,Blossom Field,735.68, 30-Jun-2020
941,Revenue,CAHD,North - Community based support,Permanent Nursing,Blossom Field,4799.88, 02-Jun-2020
942,Revenue,CAHD,South Glos Users in South Glos Homes,Permanent Nursing,Blossom Field,735.68, 02-Jun-2020
943,Revenue,CAHD,South Glos Users in South Glos Homes,Permanent Nursing,Blossom Field,1234.89, 02-Jun-2020
944,Revenue,CAHD,North - Community based support,Permanent Nursing,Blossom Field,4799.88, 30-Jun-2020
945,Revenue,CAHD,South Glos Users in South Glos Homes,Permanent Nursing,Blossom Field,735.68, 30-Jun-2020
946,Revenue,CAHD,South Glos Users in South Glos Homes,Permanent Nursing,Blossom Field,735.68, 02-Jun-2020
947,Revenue,CAHD,South Glos Users in South Glos Homes,Permanent Nursing,Blossom Field,1234.89, 02-Jun-2020
948,Revenue,CAHD,South Glos Users in South Glos Homes,Permanent Nursing,Blossom Field,735.68, 30-Jun-2020
949,Revenue,CAHD,North - Community based support,Permanent Nursing,Blossom Field,4800.00, 02-Jun-2020
950,Revenue,CAHD,South Glos Users in South Glos Homes,Permanent Nursing,Blossom Field,735.68, 02-Jun-2020
951,Revenue,CAHD,South Glos Users in South Glos Homes,Permanent Nursing,Blossom Field,1234.89, 02-Jun-2020
952,Revenue,CAHD,North - Community based support,Permanent Nursing,Blossom Field,4800.00, 30-Jun-2020
953,Revenue,CAHD,South Glos Users in South Glos Homes,Permanent Nursing,Blossom Field,735.68, 30-Jun-2020
954,Revenue,CAHD,South Glos Users in South Glos Homes,Permanent Nursing,Blossom Field,735.68, 02-Jun-2020
955,Revenue,CAHD,South Glos Users in South Glos Homes,Permanent Nursing,Blossom Field,1234.89, 02-Jun-2020
956,Revenue,CAHD,Central - Commissioned Services,Permanent Nursing,Blossom Field,4352.72, 02-Jun-2020
957,Revenue,CAHD,South Glos Users in South Glos Homes,Permanent Nursing,Blossom Field,735.68, 02-Jun-2020
958,Revenue,CAHD,South Glos Users in South Glos Homes,Permanent Nursing,Blossom Field,1234.89, 02-Jun-2020
959,Revenue,CAHD,Central - Commissioned Services,Permanent Nursing,Blossom Field,4352.72, 30-Jun-2020
960,Revenue,CAHD,South Glos Users in South Glos Homes,Permanent Nursing,Blossom Field,735.68, 30-Jun-2020
961,Revenue,CAHD,South Glos Users in South Glos Homes,Permanent Nursing,Blossom Field,735.68, 02-Jun-2020
962,Revenue,CAHD,South Glos Users in South Glos Homes,Permanent Nursing,Blossom Field,1234.89, 02-Jun-2020
963,Revenue,CAHD,South Glos Users in South Glos Homes,Permanent Nursing,Blossom Field,735.68, 30-Jun-2020
964,Revenue,CAHD,South Glos Users in South Glos Homes,Permanent Nursing,Blossom Field,1234.89, 02-Jun-2020
965,Revenue,CAHD,South - Commissioned Services,Permanent Nursing,Blossom Field,10098.00, 30-Jun-2020
966,Revenue,CAHD,South - Commissioned Services,Respite Planned - Nursing,Blossom Field,5940.00, 30-Jun-2020
967,Revenue,CAHD,South - Commissioned Services,Permanent Nursing,Blossom Field,5374.29, 30-Jun-2020
968,Revenue,CAHD,South - Commissioned Services,Fees & Charges Income - General,Blossom Field,1679.87, 30-Jun-2020
969,Revenue,CAHD,South Glos Users in South Glos Homes,Permanent Nursing,Blossom Field,1234.89, 02-Jun-2020
970,Revenue,CAHD,North - Community based support,Fees & Charges Income - General,Blossom Field,574.19, 02-Jun-2020
971,Revenue,CAHD,South - Commissioned Services,Permanent Nursing,Blossom Field,4039.20, 02-Jun-2020
972,Revenue,CAHD,South Glos Users in South Glos Homes,Permanent Nursing,Blossom Field,735.68, 02-Jun-2020
973,Revenue,CAHD,South Glos Users in South Glos Homes,Permanent Nursing,Blossom Field,1234.89, 02-Jun-2020
974,Revenue,CAHD,South - Commissioned Services,Permanent Nursing,Blossom Field,4039.20, 30-Jun-2020
975,Revenue,CAHD,South Glos Users in South Glos Homes,Permanent Nursing,Blossom Field,735.68, 30-Jun-2020
976,Revenue,CAHD,South Glos Users in South Glos Homes,Permanent Nursing,Blossom Field,735.68, 02-Jun-2020
977,Revenue,CAHD,South Glos Users in South Glos Homes,Permanent Nursing,Blossom Field,1234.89, 02-Jun-2020
978,Revenue,CAHD,South Glos Users in South Glos Homes,Permanent Nursing,Blossom Field,735.68, 30-Jun-2020
979,Revenue,CAHD,South Glos Users in South Glos Homes,Permanent Nursing,Blossom Field,1234.89, 02-Jun-2020
980,Revenue,CAHD,Central - Commissioned Services,Permanent Nursing,Blossom Field,4039.20, 30-Jun-2020
981,Revenue,CAHD,Central - Commissioned Services,Permanent Nursing,Blossom Field,3029.40, 30-Jun-2020
982,Revenue,CAHD,South Glos Users in South Glos Homes,Permanent Nursing,Blossom Field,1234.89, 02-Jun-2020
983,Revenue,CAHD,South Glos Users in South Glos Homes,Permanent Nursing,Blossom Field,1050.97, 02-Jun-2020
984,Revenue,CAHD,South Glos Users in South Glos Homes,Permanent Nursing,Blossom Field,735.68, 02-Jun-2020
985,Revenue,CAHD,South Glos Users in South Glos Homes,Permanent Nursing,Blossom Field,735.68, 30-Jun-2020
986,Revenue,CAHD,South Glos Users in South Glos Homes,Permanent Nursing,Blossom Field,1234.89, 02-Jun-2020
987,Revenue,CAHD,South Glos Users in South Glos Homes,Permanent Nursing,Blossom Field,735.68, 02-Jun-2020
988,Revenue,CAHD,South Glos Users in South Glos Homes,Permanent Nursing,Blossom Field,735.68, 30-Jun-2020
989,Revenue,CAHD,South Glos Users in South Glos Homes,Permanent Nursing,Blossom Field,893.33, 30-Jun-2020
990,Revenue,CAHD,South Glos Users in South Glos Homes,Permanent Nursing,Blossom Field,735.68, 30-Jun-2020
991,Revenue,CAHD,South Glos Users in South Glos Homes,Permanent Nursing,Blossom Field,735.68, 02-Jun-2020
992,Revenue,CAHD,South Glos Users in South Glos Homes,Permanent Nursing,Blossom Field,1234.89, 02-Jun-2020
993,Revenue,CAHD,South Glos Users in South Glos Homes,Permanent Nursing,Blossom Field,543.64, 25-Jun-2020
994,Revenue,CAHD,South Glos Users in South Glos Homes,Permanent Nursing,Blossom Field,802.79, 25-Jun-2020
995,Revenue,CAHD,South Glos Users in South Glos Homes,Permanent Nursing,Blossom Field,524.65, 25-Jun-2020
996,Revenue,CAHD,South Glos Users in South Glos Homes,Permanent Nursing,Blossom Field,802.79, 25-Jun-2020
997,Revenue,CAHD,South Glos Users in South Glos Homes,Permanent Nursing,Blossom Field,651.11, 25-Jun-2020
998,Revenue,CAHD,South Glos Users in South Glos Homes,Permanent Nursing,Blossom Field,554.15, 25-Jun-2020
999,Revenue,CAHD,South Glos Users in South Glos Homes,Permanent Nursing,Blossom Field,587.89, 25-Jun-2020
1000,Revenue,CAHD,South Glos Users in South Glos Homes,Permanent Nursing,Blossom Field,802.79, 25-Jun-2020
1001,Revenue,CAHD,South Glos Users in South Glos Homes,Permanent Nursing,Blossom Field,802.79, 25-Jun-2020
1002,Revenue,CAHD,South Glos Users in South Glos Homes,Permanent Nursing,Blossom Field,802.79, 25-Jun-2020
1003,Revenue,CAHD,South Glos Users in South Glos Homes,Permanent Nursing,Blossom Field,802.79, 25-Jun-2020
1004,Revenue,CAHD,South Glos Users in South Glos Homes,Permanent Nursing,Blossom Field,802.79, 25-Jun-2020
1005,Revenue,CAHD,South Glos Users in South Glos Homes,Permanent Nursing,Blossom Field,773.29, 25-Jun-2020
1006,Revenue,CAHD,South Glos Users in South Glos Homes,Permanent Nursing,Blossom Field,509.93, 25-Jun-2020
1007,Revenue,CAHD,South Glos Users in South Glos Homes,Permanent Nursing,Blossom Field,802.79, 25-Jun-2020
1008,Revenue,CAHD,South Glos Users in South Glos Homes,Permanent Nursing,Blossom Field,771.21, 25-Jun-2020
1009,Revenue,CAHD,South Glos Users in South Glos Homes,Permanent Nursing,Blossom Field,697.43, 25-Jun-2020
1010,Revenue,CAHD,South Glos Users in South Glos Homes,Permanent Nursing,Blossom Field,634.22, 25-Jun-2020
1011,Revenue,CAHD,South Glos Users in South Glos Homes,Permanent Nursing,Blossom Field,771.21, 25-Jun-2020
1012,Revenue,CAHD,South Glos Users in South Glos Homes,Permanent Nursing,Blossom Field,503.61, 25-Jun-2020
1013,Revenue,CAHD,South Glos Users in South Glos Homes,Permanent Nursing,Blossom Field,535.21, 25-Jun-2020
1014,Revenue,CAHD,South Glos Users in South Glos Homes,Permanent Nursing,Blossom Field,533.11, 25-Jun-2020
1015,Revenue,CAHD,South Glos Users in South Glos Homes,Permanent Nursing,Blossom Field,543.64, 25-Jun-2020
1016,Revenue,CAHD,South Glos Users in South Glos Homes,Permanent Nursing,Blossom Field,802.79, 25-Jun-2020
1017,Revenue,CAHD,Covid � ASC - Infection Control,Grants to Voluntary Bodies,Blossom Field,3560.83, 26-Jun-2020
1018,Revenue,CAHD,Central - Commissioned Services,Permanent Nursing,Blossom Field,6600.00, 02-Jun-2020
1019,Revenue,CAHD,Central - Commissioned Services,Permanent Nursing,Blossom Field,5342.86, 02-Jun-2020
1020,Revenue,CAHD,Central - Commissioned Services,Permanent Nursing,Blossom Field,4400.00, 02-Jun-2020
1021,Revenue,CAHD,South Glos Users in South Glos Homes,Permanent Nursing,Blossom Field,735.68, 02-Jun-2020
1022,Revenue,CAHD,South Glos Users in South Glos Homes,Permanent Nursing,Blossom Field,1234.89, 02-Jun-2020
1023,Revenue,CAHD,Central - Commissioned Services,Fees & Charges Income - General,Blossom Field,937.38, 02-Jun-2020
1024,Revenue,CAHD,Central - Commissioned Services,Permanent Nursing,Blossom Field,4400.00, 30-Jun-2020
1025,Revenue,CAHD,South Glos Users in South Glos Homes,Permanent Nursing,Blossom Field,735.68, 30-Jun-2020
1026,Revenue,CAHD,North - Community based support,Permanent Nursing,Blossom Field,1442.57, 02-Jun-2020
1027,Revenue,CAHD,North - Community based support,Permanent Nursing,Blossom Field,2596.63, 02-Jun-2020
1028,Revenue,CAHD,North - Community based support,Permanent Nursing,Blossom Field,3750.69, 02-Jun-2020
1029,Revenue,CAHD,North - Community based support,Permanent Nursing,Blossom Field,4039.20, 30-Jun-2020
1030,Revenue,CAHD,South Glos Users in South Glos Homes,Permanent Nursing,Blossom Field,1418.81, 30-Jun-2020
1031,Revenue,CAHD,South Glos Users in South Glos Homes,Permanent Nursing,Blossom Field,735.68, 30-Jun-2020
1032,Revenue,CAHD,South Glos Users in South Glos Homes,Permanent Nursing,Blossom Field,1234.89, 02-Jun-2020
1033,Revenue,CAHD,South Glos Users in South Glos Homes,Permanent Nursing,Blossom Field,735.68, 02-Jun-2020
1034,Revenue,CAHD,South Glos Users in South Glos Homes,Permanent Nursing,Blossom Field,1234.89, 02-Jun-2020
1035,Revenue,CAHD,South Glos Users in South Glos Homes,Permanent Nursing,Blossom Field,735.68, 30-Jun-2020
1036,Revenue,CAHD,North - Community based support,Permanent Nursing,Blossom Field,5561.46, 02-Jun-2020
1037,Revenue,CAHD,North - Community based support,Permanent Nursing,Blossom Field,3707.64, 02-Jun-2020
1038,Revenue,CAHD,South Glos Users in South Glos Homes,Permanent Nursing,Blossom Field,735.68, 02-Jun-2020
1039,Revenue,CAHD,South Glos Users in South Glos Homes,Permanent Nursing,Blossom Field,1234.89, 02-Jun-2020
1040,Revenue,CAHD,North - Community based support,Fees & Charges Income - General,Blossom Field,958.35, 02-Jun-2020
1041,Revenue,CAHD,North - Community based support,Permanent Nursing,Blossom Field,3707.64, 30-Jun-2020
1042,Revenue,CAHD,South Glos Users in South Glos Homes,Permanent Nursing,Blossom Field,735.68, 30-Jun-2020
1043,Revenue,CAHD,North - Community based support,Permanent Nursing,Blossom Field,3160.94, 30-Jun-2020
1044,Revenue,CAHD,Covid � ASC - Infection Control,Grants to Voluntary Bodies,Blossom Field,21407.55, 10-Jun-2020
1045,Revenue,CAHD,North - Community based support,Permanent Residential,Bluebells,3699.60, 02-Jun-2020
1046,Revenue,CAHD,North - Community based support,Permanent Residential,Bluebells,3699.60, 30-Jun-2020
1047,Revenue,CAHD,EARLY YEARS DEPRIVATION PAYMENT,Preventative Assistance,Bluebells Pre School,596.94, 25-Jun-2020
1048,Revenue,CAHD,Pathway 1 - Re-Ablement Home Care,Other Small Contracts,Bluebird Care (South Gloucestershire),958.85, 17-Jun-2020
1049,Revenue,CAHD,Pathway 1 - Re-Ablement Home Care,Other Small Contracts,Bluebird Care (South Gloucestershire),1177.80, 09-Jun-2020
1050,Revenue,CAHD,Covid 19 -Adult Social Care,Other Small Contracts,Bluebird Care (South Gloucestershire),22.65, 05-Jun-2020
1051,Revenue,CAHD,Central - Commissioned Services,Other Small Contracts,Bluebird Care (South Gloucestershire),5609.65, 05-Jun-2020
1052,Revenue,CAHD,South - Commissioned Services,Other Small Contracts,Bluebird Care (South Gloucestershire),2169.30, 05-Jun-2020
1053,Revenue,CAHD,North - Community based support,Other Small Contracts,Bluebird Care (South Gloucestershire),5481.24, 05-Jun-2020
1054,Revenue,CAHD,Covid 19 -Adult Social Care,Other Small Contracts,Bluebird Care (South Gloucestershire),22.65, 05-Jun-2020
1055,Revenue,CAHD,Central - Commissioned Services,Other Small Contracts,Bluebird Care (South Gloucestershire),5911.65, 05-Jun-2020
1056,Revenue,CAHD,South - Commissioned Services,Other Small Contracts,Bluebird Care (South Gloucestershire),2266.85, 05-Jun-2020
1057,Revenue,CAHD,North - Community based support,Other Small Contracts,Bluebird Care (South Gloucestershire),5586.94, 05-Jun-2020
1058,Revenue,CAHD,Covid 19 -Adult Social Care,Other Small Contracts,Bluebird Care (South Gloucestershire),15.10, 11-Jun-2020
1059,Revenue,CAHD,Central - Commissioned Services,Other Small Contracts,Bluebird Care (South Gloucestershire),6326.90, 11-Jun-2020
1060,Revenue,CAHD,South - Commissioned Services,Other Small Contracts,Bluebird Care (South Gloucestershire),2260.95, 11-Jun-2020
1061,Revenue,CAHD,North - Community based support,Other Small Contracts,Bluebird Care (South Gloucestershire),5839.69, 11-Jun-2020
1062,Revenue,CAHD,Covid 19 -Adult Social Care,Other Small Contracts,Bluebird Care (South Gloucestershire),15.10, 12-Jun-2020
1063,Revenue,CAHD,Central - Commissioned Services,Other Small Contracts,Bluebird Care (South Gloucestershire),6500.55, 12-Jun-2020
1064,Revenue,CAHD,South - Commissioned Services,Other Small Contracts,Bluebird Care (South Gloucestershire),3778.95, 12-Jun-2020
1065,Revenue,CAHD,North - Community based support,Other Small Contracts,Bluebird Care (South Gloucestershire),6119.04, 12-Jun-2020
1066,Revenue,CAHD,Covid � ASC - Infection Control,Grants to Voluntary Bodies,Bluebird Care (South Gloucestershire),9548.70, 26-Jun-2020
1067,Revenue,CAHD,Additional Payments to providers - COVID,Other Small Contracts,Bluebird Care (South Gloucestershire),2979.00, 25-Jun-2020
1068,Revenue,CAHD,Covid 19 -Adult Social Care,Training Expenses,Bond Solon Training Limited,895.00, 26-Jun-2020
1069,Revenue,CAHD,S28A cases,Permanent Residential,Bradbury House,6505.16, 02-Jun-2020
1070,Revenue,CAHD,S28A cases,Permanent Residential,Bradbury House,6505.16, 30-Jun-2020
1071,Revenue,CAHD,North - Community based support,Permanent Residential,Bradbury House,9917.08, 02-Jun-2020
1072,Revenue,CAHD,North - Community based support,Permanent Residential,Bradbury House,9917.08, 30-Jun-2020
1073,Revenue,CAHD,North - S117,Permanent Residential,Bradbury House,5740.24, 02-Jun-2020
1074,Revenue,CAHD,Jointly Funded H&SC Packages,Permanent Residential,Bradbury House,7927.00, 02-Jun-2020
1075,Revenue,CAHD,North - S117,Permanent Residential,Bradbury House,5740.24, 30-Jun-2020
1076,Revenue,CAHD,Jointly Funded H&SC Packages,Permanent Residential,Bradbury House,7927.00, 30-Jun-2020
1077,Revenue,CAHD,South - Commissioned Services,Permanent Residential,Bradbury House,9777.00, 02-Jun-2020
1078,Revenue,CAHD,South - Commissioned Services,Permanent Residential,Bradbury House,9777.00, 30-Jun-2020
1079,Revenue,CAHD,NHS Health Checks,Other Small Contracts,Bradley Stoke Surgery,2623.00, 01-Jun-2020
1080,Revenue,CAHD,CSC - Residential Placements,Permanent Residential,Branas ISAF Ltd,19928.57, 12-Jun-2020
1081,Revenue,CAHD,North - Community based support,Permanent Residential,Breadstone House Care Centre,2088.68, 02-Jun-2020
1082,Revenue,CAHD,North - Community based support,Permanent Residential,Breadstone House Care Centre,2088.68, 30-Jun-2020
1083,Revenue,CAHD,North - Community based support,Permanent Residential,Breadstone House Care Centre,2364.36, 02-Jun-2020
1084,Revenue,CAHD,North - Community based support,Permanent Residential,Breadstone House Care Centre,506.65, 30-Jun-2020
1085,Revenue,CAHD,Social Lettings Agency,Fees - General,Individual,8.15, 03-Jun-2020
1086,Revenue,CAHD,Social Lettings Agency,Other Supplies & Services,Individual,766.10, 03-Jun-2020
1087,Revenue,CAHD,North - bed purchasing and direct  payments,Permanent Residential,Bridge House Care Home,2740.00, 02-Jun-2020
1088,Revenue,CAHD,North - bed purchasing and direct  payments,Permanent Residential,Bridge House Care Home,2740.00, 30-Jun-2020
1089,Revenue,CAHD,North - Community based support,Permanent Residential,Bridge House Care Home,2678.04, 02-Jun-2020
1090,Revenue,CAHD,North - Community based support,Permanent Residential,Bridge House Care Home,2678.04, 30-Jun-2020
1091,Revenue,CAHD,Covid � ASC - Infection Control,Grants to Voluntary Bodies,Bridge House Care Home,1324.96, 26-Jun-2020
1092,Revenue,CAHD,Covid � ASC - Infection Control,Grants to Voluntary Bodies,Bridge House Care Home,7965.60, 10-Jun-2020
1093,Revenue,CAHD,North - Community based support,Permanent Residential,Bridgwater Court Care Home,10773.64, 02-Jun-2020
1094,Revenue,CAHD,North - Community based support,Permanent Residential,Bridgwater Court Care Home,10773.64, 30-Jun-2020
1095,Revenue,CAHD,EARLY YEARS DEPRIVATION PAYMENT,Preventative Assistance,Bright Sparks,746.18, 25-Jun-2020
1096,Revenue,CAHD,Early Years Pupil Premium Grant,Preventative Assistance,Bright Sparks,620.10, 25-Jun-2020
1097,Revenue,CAHD,Early Years Inclusion Fund,Other Public Bodies,Bright Sparks Pre School Ltd,1800.00, 26-Jun-2020
1098,Revenue,CAHD,EARLY YEARS DEPRIVATION PAYMENT,Preventative Assistance,Bright Sparks Pre School Ltd,721.30, 25-Jun-2020
1099,Revenue,CAHD,Early Years Pupil Premium Grant,Preventative Assistance,Bright Sparks Pre School Ltd,599.43, 25-Jun-2020
1100,Revenue,CAHD,Placements OLA Special Schools and RB,Other L.A.'s - General,Bristol City Council - Schools,2578.00, 30-Jun-2020
1101,Revenue,CAHD,Placements OLA Special Schools and RB,Other L.A.'s - General,Bristol City Council - Schools,2578.00, 01-Jun-2020
1102,Revenue,CAHD,Placements OLA Special Schools and RB,Other L.A.'s - General,Bristol City Council - Schools,1381.00, 30-Jun-2020
1103,Revenue,CAHD,Placements OLA Special Schools and RB,Other L.A.'s - General,Bristol City Council - Schools,1381.00, 01-Jun-2020
1104,Revenue,CAHD,Statemented Support Payments to OLAs,Other L.A.'s - General,Bristol City Council - Schools,1379.43, 22-Jun-2020
1105,Revenue,CAHD,Placements OLA Special Schools and RB,Other L.A.'s - General,Bristol City Council - Schools,914.33, 30-Jun-2020
1106,Revenue,CAHD,Placements OLA Special Schools and RB,Other L.A.'s - General,Bristol City Council - Schools,914.33, 01-Jun-2020
1107,Revenue,CAHD,Placements OLA Special Schools and RB,Other L.A.'s - General,Bristol City Council - Schools,1305.58, 30-Jun-2020
1108,Revenue,CAHD,Placements OLA Special Schools and RB,Other L.A.'s - General,Bristol City Council - Schools,1305.58, 01-Jun-2020
1109,Revenue,CAHD,Statemented Support Payments to OLAs,Other L.A.'s - General,Bristol City Council - Schools,554.13, 22-Jun-2020
1110,Revenue,CAHD,Statemented Support Payments to OLAs,Other L.A.'s - General,Bristol City Council - Schools,660.24, 22-Jun-2020
1111,Revenue,CAHD,Placements OLA Special Schools and RB,Other L.A.'s - General,Bristol City Council - Schools,3356.33, 30-Jun-2020
1112,Revenue,CAHD,Placements OLA Special Schools and RB,Other L.A.'s - General,Bristol City Council - Schools,3356.33, 01-Jun-2020
1113,Revenue,CAHD,Placements OLA Special Schools and RB,Other L.A.'s - General,Bristol City Council - Schools,2722.50, 30-Jun-2020
1114,Revenue,CAHD,Placements OLA Special Schools and RB,Other L.A.'s - General,Bristol City Council - Schools,2722.50, 01-Jun-2020
1115,Revenue,CAHD,Placements OLA Special Schools and RB,Other L.A.'s - General,Bristol City Council - Schools,1275.67, 30-Jun-2020
1116,Revenue,CAHD,Placements OLA Special Schools and RB,Other L.A.'s - General,Bristol City Council - Schools,1275.67, 01-Jun-2020
1117,Revenue,CAHD,Placements OLA Special Schools and RB,Other L.A.'s - General,Bristol City Council - Schools,2578.00, 30-Jun-2020
1118,Revenue,CAHD,Placements OLA Special Schools and RB,Other L.A.'s - General,Bristol City Council - Schools,2578.00, 01-Jun-2020
1119,Revenue,CAHD,Placements OLA Special Schools and RB,Other L.A.'s - General,Bristol City Council - Schools,1381.00, 30-Jun-2020
1120,Revenue,CAHD,Placements OLA Special Schools and RB,Other L.A.'s - General,Bristol City Council - Schools,1381.00, 01-Jun-2020
1121,Revenue,CAHD,Placements OLA Special Schools and RB,Other L.A.'s - General,Bristol City Council - Schools,2050.17, 30-Jun-2020
1122,Revenue,CAHD,Placements OLA Special Schools and RB,Other L.A.'s - General,Bristol City Council - Schools,2050.17, 01-Jun-2020
1123,Revenue,CAHD,Placements OLA Special Schools and RB,Other L.A.'s - General,Bristol City Council - Schools,1381.00, 30-Jun-2020
1124,Revenue,CAHD,Placements OLA Special Schools and RB,Other L.A.'s - General,Bristol City Council - Schools,1381.00, 01-Jun-2020
1125,Revenue,CAHD,Placements OLA Special Schools and RB,Other L.A.'s - General,Bristol City Council - Schools,1381.00, 30-Jun-2020
1126,Revenue,CAHD,Placements OLA Special Schools and RB,Other L.A.'s - General,Bristol City Council - Schools,1381.00, 01-Jun-2020
1127,Revenue,CAHD,Placements OLA Special Schools and RB,Other L.A.'s - General,Bristol City Council - Schools,2050.17, 30-Jun-2020
1128,Revenue,CAHD,Placements OLA Special Schools and RB,Other L.A.'s - General,Bristol City Council - Schools,2050.17, 01-Jun-2020
1129,Revenue,CAHD,Placements OLA Special Schools and RB,Other L.A.'s - General,Bristol City Council - Schools,1675.30, 30-Jun-2020
1130,Revenue,CAHD,Placements OLA Special Schools and RB,Other L.A.'s - General,Bristol City Council - Schools,1675.30, 01-Jun-2020
1131,Revenue,CAHD,Placements OLA Special Schools and RB,Other L.A.'s - General,Bristol City Council - Schools,1976.78, 30-Jun-2020
1132,Revenue,CAHD,Placements OLA Special Schools and RB,Other L.A.'s - General,Bristol City Council - Schools,1976.78, 01-Jun-2020
1133,Revenue,CAHD,Placements OLA Special Schools and RB,Other L.A.'s - General,Bristol City Council - Schools,2722.50, 30-Jun-2020
1134,Revenue,CAHD,Placements OLA Special Schools and RB,Other L.A.'s - General,Bristol City Council - Schools,2722.50, 01-Jun-2020
1135,Revenue,CAHD,Placements OLA Special Schools and RB,Other L.A.'s - General,Bristol City Council - Schools,1975.67, 30-Jun-2020
1136,Revenue,CAHD,Placements OLA Special Schools and RB,Other L.A.'s - General,Bristol City Council - Schools,1975.67, 01-Jun-2020
1137,Revenue,CAHD,Placements OLA Special Schools and RB,Other L.A.'s - General,Bristol City Council - Schools,2722.50, 30-Jun-2020
1138,Revenue,CAHD,Placements OLA Special Schools and RB,Other L.A.'s - General,Bristol City Council - Schools,2722.50, 01-Jun-2020
1139,Revenue,CAHD,Placements OLA Special Schools and RB,Other L.A.'s - General,Bristol City Council - Schools,883.50, 30-Jun-2020
1140,Revenue,CAHD,Placements OLA Special Schools and RB,Other L.A.'s - General,Bristol City Council - Schools,4107.54, 30-Jun-2020
1141,Revenue,CAHD,Placements OLA Special Schools and RB,Other L.A.'s - General,Bristol City Council - Schools,883.50, 01-Jun-2020
1142,Revenue,CAHD,Placements OLA Special Schools and RB,Other L.A.'s - General,Bristol City Council - Schools,4107.54, 01-Jun-2020
1143,Revenue,CAHD,Placements OLA Special Schools and RB,Other L.A.'s - General,Bristol City Council - Schools,777.50, 30-Jun-2020
1144,Revenue,CAHD,Placements OLA Special Schools and RB,Other L.A.'s - General,Bristol City Council - Schools,777.50, 01-Jun-2020
1145,Revenue,CAHD,Placements OLA Special Schools and RB,Other L.A.'s - General,Bristol City Council - Schools,1031.20, 30-Jun-2020
1146,Revenue,CAHD,Placements OLA Special Schools and RB,Other L.A.'s - General,Bristol City Council - Schools,1031.20, 01-Jun-2020
1147,Revenue,CAHD,Placements OLA Special Schools and RB,Other L.A.'s - General,Bristol City Council - Schools,2783.92, 30-Jun-2020
1148,Revenue,CAHD,Placements OLA Special Schools and RB,Other L.A.'s - General,Bristol City Council - Schools,8351.76, 01-Jun-2020
1149,Revenue,CAHD,Placements OLA Special Schools and RB,Other L.A.'s - General,Bristol City Council - Schools,2578.00, 30-Jun-2020
1150,Revenue,CAHD,Placements OLA Special Schools and RB,Other L.A.'s - General,Bristol City Council - Schools,2578.00, 01-Jun-2020
1151,Revenue,CAHD,Placements OLA Special Schools and RB,Other L.A.'s - General,Bristol City Council - Schools,809.00, 30-Jun-2020
1152,Revenue,CAHD,Placements OLA Special Schools and RB,Other L.A.'s - General,Bristol City Council - Schools,809.00, 01-Jun-2020
1153,Revenue,CAHD,Placements OLA Special Schools and RB,Other L.A.'s - General,Bristol City Council - Schools,3356.33, 30-Jun-2020
1154,Revenue,CAHD,Placements OLA Special Schools and RB,Other L.A.'s - General,Bristol City Council - Schools,3356.33, 01-Jun-2020
1155,Revenue,CAHD,Placements OLA Special Schools and RB,Other L.A.'s - General,Bristol City Council - Schools,3405.92, 30-Jun-2020
1156,Revenue,CAHD,Placements OLA Special Schools and RB,Other L.A.'s - General,Bristol City Council - Schools,3405.92, 01-Jun-2020
1157,Revenue,CAHD,Placements OLA Special Schools and RB,Other L.A.'s - General,Bristol City Council - Schools,2062.40, 30-Jun-2020
1158,Revenue,CAHD,Placements OLA Special Schools and RB,Other L.A.'s - General,Bristol City Council - Schools,2062.40, 01-Jun-2020
1159,Revenue,CAHD,Placements OLA Special Schools and RB,Other L.A.'s - General,Bristol City Council - Schools,2578.00, 30-Jun-2020
1160,Revenue,CAHD,Placements OLA Special Schools and RB,Other L.A.'s - General,Bristol City Council - Schools,2578.00, 01-Jun-2020
1161,Revenue,CAHD,Placements OLA Special Schools and RB,Other L.A.'s - General,Bristol City Council - Schools,2828.50, 30-Jun-2020
1162,Revenue,CAHD,Placements OLA Special Schools and RB,Other L.A.'s - General,Bristol City Council - Schools,2828.50, 01-Jun-2020
1163,Revenue,CAHD,Placements OLA Special Schools and RB,Other L.A.'s - General,Bristol City Council - Schools,1305.58, 30-Jun-2020
1164,Revenue,CAHD,Placements OLA Special Schools and RB,Other L.A.'s - General,Bristol City Council - Schools,1305.58, 01-Jun-2020
1165,Revenue,CAHD,Statemented Support Payments to OLAs,Other L.A.'s - General,Broadlands Academy,1332.27, 22-Jun-2020
1166,Revenue,CAHD,Supporting People Programme,Grants to Voluntary Bodies,Bromford  :  Merlin Housing Society,15637.00, 01-Jun-2020
1167,Revenue,CAHD,Supporting People Programme,Grants to Voluntary Bodies,Bromford  :  Merlin Housing Society,2741.00, 01-Jun-2020
1168,Revenue,CAHD,Supporting People Programme,Grants to Voluntary Bodies,Bromford  :  Merlin Housing Society,22940.00, 01-Jun-2020
1169,Revenue,CAHD,Supporting People Programme,Grants to Voluntary Bodies,Bromford  :  Merlin Housing Society,1113.00, 01-Jun-2020
1170,Revenue,CAHD,Discretionary Housing Payment,Other Supplies & Services,Bromford  :  Merlin Housing Society,600.00, 12-Jun-2020
1171,Revenue,CAHD,Parent Partnership,Fees - General,Individual,1724.00, 26-Jun-2020
1172,Revenue,CAHD,Parent Partnership,Fees - General,Individual,758.50, 26-Jun-2020
1173,Revenue,CAHD,South Glos Users in South Glos Homes,Permanent Nursing,Brunelcare,788.23, 12-Jun-2020
1174,Revenue,CAHD,South - Commissioned Services,Permanent Nursing,Brunelcare,3609.90, 12-Jun-2020
1175,Revenue,CAHD,South Glos Users in South Glos Homes,Permanent Nursing,Brunelcare,788.23, 12-Jun-2020
1176,Revenue,CAHD,North - S117,Permanent Nursing,Brunelcare,3609.90, 12-Jun-2020
1177,Revenue,CAHD,South Glos Users in South Glos Homes,Permanent Nursing,Brunelcare,788.23, 12-Jun-2020
1178,Revenue,CAHD,North - S117,Permanent Nursing,Brunelcare,3609.90, 12-Jun-2020
1179,Revenue,CAHD,South Glos Users in South Glos Homes,Permanent Nursing,Brunelcare,788.23, 12-Jun-2020
1180,Revenue,CAHD,South - Commissioned Services,Permanent Nursing,Brunelcare,2623.04, 12-Jun-2020
1181,Revenue,CAHD,South Glos Users in South Glos Homes,Permanent Nursing,Brunelcare,788.23, 12-Jun-2020
1182,Revenue,CAHD,South - Commissioned Services,Permanent Nursing,Brunelcare,2786.80, 12-Jun-2020
1183,Revenue,CAHD,South Glos Users in South Glos Homes,Permanent Nursing,Brunelcare,788.23, 12-Jun-2020
1184,Revenue,CAHD,South - Commissioned Services,Permanent Nursing,Brunelcare,2901.96, 12-Jun-2020
1185,Revenue,CAHD,South Glos Users in South Glos Homes,Permanent Nursing,Brunelcare,788.23, 12-Jun-2020
1186,Revenue,CAHD,North - Community based support,Permanent Nursing,Brunelcare,2889.62, 12-Jun-2020
1187,Revenue,CAHD,South Glos Users in South Glos Homes,Permanent Nursing,Brunelcare,788.23, 12-Jun-2020
1188,Revenue,CAHD,South - Commissioned Services,Permanent Nursing,Brunelcare,3007.00, 12-Jun-2020
1189,Revenue,CAHD,South Glos Users in South Glos Homes,Permanent Nursing,Brunelcare,788.23, 12-Jun-2020
1190,Revenue,CAHD,North - Community based support,Permanent Nursing,Brunelcare,2879.63, 12-Jun-2020
1191,Revenue,CAHD,South Glos Users in South Glos Homes,Permanent Nursing,Brunelcare,788.23, 12-Jun-2020
1192,Revenue,CAHD,South - Commissioned Services,Permanent Nursing,Brunelcare,2610.70, 12-Jun-2020
1193,Revenue,CAHD,South Glos Users in South Glos Homes,Permanent Nursing,Brunelcare,788.23, 12-Jun-2020
1194,Revenue,CAHD,Central - Commissioned Services,Permanent Nursing,Brunelcare,2962.70, 12-Jun-2020
1195,Revenue,CAHD,South Glos Users in South Glos Homes,Permanent Nursing,Brunelcare,788.23, 12-Jun-2020
1196,Revenue,CAHD,South - Commissioned Services,Permanent Nursing,Brunelcare,2080.43, 12-Jun-2020
1197,Revenue,CAHD,South Glos Users in South Glos Homes,Permanent Nursing,Brunelcare,788.23, 12-Jun-2020
1198,Revenue,CAHD,North - Community based support,Permanent Nursing,Brunelcare,3609.90, 12-Jun-2020
1199,Revenue,CAHD,South - Commissioned Services,Respite Emergency - Nursing,Brunelcare,1810.86, 12-Jun-2020
1200,Revenue,CAHD,South - Commissioned Services,Respite Planned - Nursing,Brunelcare,2204.98, 23-Jun-2020
1201,Revenue,CAHD,South Glos Users in South Glos Homes,Permanent Nursing,Brunelcare,814.50, 23-Jun-2020
1202,Revenue,CAHD,South - Commissioned Services,Permanent Nursing,Brunelcare,3742.45, 23-Jun-2020
1203,Revenue,CAHD,South Glos Users in South Glos Homes,Permanent Nursing,Brunelcare,814.50, 23-Jun-2020
1204,Revenue,CAHD,North - S117,Permanent Nursing,Brunelcare,3742.45, 23-Jun-2020
1205,Revenue,CAHD,South Glos Users in South Glos Homes,Permanent Nursing,Brunelcare,814.50, 23-Jun-2020
1206,Revenue,CAHD,North - S117,Permanent Nursing,Brunelcare,3742.45, 23-Jun-2020
1207,Revenue,CAHD,South Glos Users in South Glos Homes,Permanent Nursing,Brunelcare,814.50, 23-Jun-2020
1208,Revenue,CAHD,South - Commissioned Services,Permanent Nursing,Brunelcare,2717.59, 23-Jun-2020
1209,Revenue,CAHD,South Glos Users in South Glos Homes,Permanent Nursing,Brunelcare,814.50, 23-Jun-2020
1210,Revenue,CAHD,South - Commissioned Services,Permanent Nursing,Brunelcare,2889.24, 23-Jun-2020
1211,Revenue,CAHD,South Glos Users in South Glos Homes,Permanent Nursing,Brunelcare,814.50, 23-Jun-2020
1212,Revenue,CAHD,South - Commissioned Services,Permanent Nursing,Brunelcare,3010.78, 23-Jun-2020
1213,Revenue,CAHD,South Glos Users in South Glos Homes,Permanent Nursing,Brunelcare,814.50, 23-Jun-2020
1214,Revenue,CAHD,North - Community based support,Permanent Nursing,Brunelcare,2994.13, 23-Jun-2020
1215,Revenue,CAHD,South Glos Users in South Glos Homes,Permanent Nursing,Brunelcare,814.50, 23-Jun-2020
1216,Revenue,CAHD,South - Commissioned Services,Permanent Nursing,Brunelcare,3117.45, 23-Jun-2020
1217,Revenue,CAHD,South Glos Users in South Glos Homes,Permanent Nursing,Brunelcare,814.50, 23-Jun-2020
1218,Revenue,CAHD,North - Community based support,Permanent Nursing,Brunelcare,2983.04, 23-Jun-2020
1219,Revenue,CAHD,South Glos Users in South Glos Homes,Permanent Nursing,Brunelcare,814.50, 23-Jun-2020
1220,Revenue,CAHD,South - Commissioned Services,Permanent Nursing,Brunelcare,2704.48, 23-Jun-2020
1221,Revenue,CAHD,South Glos Users in South Glos Homes,Permanent Nursing,Brunelcare,814.50, 23-Jun-2020
1222,Revenue,CAHD,Central - Commissioned Services,Permanent Nursing,Brunelcare,3070.46, 23-Jun-2020
1223,Revenue,CAHD,South Glos Users in South Glos Homes,Permanent Nursing,Brunelcare,814.50, 23-Jun-2020
1224,Revenue,CAHD,South - Commissioned Services,Permanent Nursing,Brunelcare,2154.99, 23-Jun-2020
1225,Revenue,CAHD,South Glos Users in South Glos Homes,Permanent Nursing,Brunelcare,814.50, 23-Jun-2020
1226,Revenue,CAHD,North - Community based support,Permanent Nursing,Brunelcare,3742.45, 23-Jun-2020
1227,Revenue,CAHD,South - Commissioned Services,Respite Emergency - Nursing,Brunelcare,1910.98, 23-Jun-2020
1228,Revenue,CAHD,South - Commissioned Services,Respite Planned - Nursing,Brunelcare,2173.06, 23-Jun-2020
1229,Revenue,CAHD,South - Commissioned Services,Other Small Contracts,Brunelcare,15216.52, 05-Jun-2020
1230,Revenue,CAHD,North - Community based support,Other Small Contracts,Brunelcare,326.96, 05-Jun-2020
1231,Revenue,CAHD,South - Commissioned Services,Other Small Contracts,Brunelcare,15196.32, 05-Jun-2020
1232,Revenue,CAHD,North - Community based support,Other Small Contracts,Brunelcare,331.84, 05-Jun-2020
1233,Revenue,CAHD,South - Commissioned Services,Other Small Contracts,Brunelcare,14220.32, 16-Jun-2020
1234,Revenue,CAHD,North - Community based support,Other Small Contracts,Brunelcare,356.24, 16-Jun-2020
1235,Revenue,CAHD,South - Commissioned Services,Other Small Contracts,Brunelcare,14566.80, 24-Jun-2020
1236,Revenue,CAHD,North - Community based support,Other Small Contracts,Brunelcare,356.24, 24-Jun-2020
1237,Revenue,CAHD,South - Commissioned Services,Other Small Contracts,Brunelcare,14781.52, 30-Jun-2020
1238,Revenue,CAHD,North - Community based support,Other Small Contracts,Brunelcare,370.88, 30-Jun-2020
1239,Revenue,CAHD,Covid � ASC - Infection Control,Grants to Voluntary Bodies,Brunelcare,16096.38, 26-Jun-2020
1240,Revenue,CAHD,Additional Payments to providers - COVID,Other Small Contracts,Brunelcare,3033.97, 10-Jun-2020
1241,Revenue,CAHD,Additional Payments to providers - COVID,Other Small Contracts,Brunelcare,3644.73, 10-Jun-2020
1242,Revenue,CAHD,Additional Payments to providers - COVID,Other Small Contracts,Brunelcare,4002.37, 10-Jun-2020
1243,Revenue,CAHD,Additional Payments to providers - COVID,Other Small Contracts,Brunelcare,4084.81, 10-Jun-2020
1244,Revenue,CAHD,Additional Payments to providers - COVID,Other Small Contracts,Brunelcare,4841.89, 25-Jun-2020
1245,Revenue,CAHD,Additional Payments to providers - COVID,Other Small Contracts,Brunelcare,4100.13, 10-Jun-2020
1246,Revenue,CAHD,Additional Payments to providers - COVID,Other Small Contracts,Brunelcare,5051.73, 18-Jun-2020
1247,Revenue,CAHD,Pathway 1 - Re-Ablement Home Care,Other Small Contracts,Brunelcare,2215.97, 18-Jun-2020
1248,Revenue,CAHD,North - S117,Permanent Residential,Buckland Care,3600.00, 02-Jun-2020
1249,Revenue,CAHD,North - S117,Permanent Residential,Buckland Care,3600.00, 30-Jun-2020
1250,Revenue,CAHD,Central - Commissioned Services,Permanent Nursing,Bupa Care Services  Bridge House,9000.00, 30-Jun-2020
1251,Revenue,CAHD,Central - Commissioned Services,Permanent Nursing,Bupa Care Services  Bridge House,7585.71, 30-Jun-2020
1252,Revenue,CAHD,Central - Commissioned Services,Permanent Nursing,Bupa Care Services  Bridge House,3600.00, 30-Jun-2020
1253,Revenue,CAHD,CSC - Vinney Green Secure Unit,R & M by Departments,BWS Standfast Fire & Security Systems,564.00, 08-Jun-2020
1254,Revenue,CAHD,CSC - Agency Fostering,Foster Parent Allowances,By the Bridge Ltd,4495.00, 23-Jun-2020
1255,Revenue,CAHD,Social Lettings Agency,Rent,Individual,710.96, 26-Jun-2020
1256,Revenue,CAHD,Social Lettings Agency,Fees - General,Individual,16.16, 26-Jun-2020
1257,Revenue,CAHD,Statemented Support Payments to OLAs,Other L.A.'s - General,Cabot Learning Federation,1544.49, 22-Jun-2020
1258,Revenue,CAHD,Statemented Support Academies,Other Public Bodies,Cabot Learning Federation,918.71, 22-Jun-2020
1259,Revenue,CAHD,Statemented Support Academies,Other Public Bodies,Cabot Learning Federation,1202.39, 22-Jun-2020
1260,Revenue,CAHD,Statemented Support Academies,Other Public Bodies,Cabot Learning Federation,908.00, 22-Jun-2020
1261,Revenue,CAHD,Statemented Support Academies,Other Public Bodies,Cabot Learning Federation,518.76, 22-Jun-2020
1262,Revenue,CAHD,Statemented Support Academies,Other Public Bodies,Cabot Learning Federation,907.83, 22-Jun-2020
1263,Revenue,CAHD,Statemented Support Academies,Other Public Bodies,Cabot Learning Federation,554.13, 22-Jun-2020
1264,Revenue,CAHD,Statemented Support Academies,Other Public Bodies,Cabot Learning Federation,565.92, 22-Jun-2020
1265,Revenue,CAHD,Statemented Support Academies,Other Public Bodies,Cabot Learning Federation,1048.67, 22-Jun-2020
1266,Revenue,CAHD,Statemented Support Academies,Other Public Bodies,Cabot Learning Federation,2616.63, 22-Jun-2020
1267,Revenue,CAHD,Statemented Support Payments to OLAs,Other L.A.'s - General,Cabot Learning Federation,1013.94, 22-Jun-2020
1268,Revenue,CAHD,Statemented Support Academies,Other Public Bodies,Cabot Learning Federation,695.61, 22-Jun-2020
1269,Revenue,CAHD,Statemented Support Academies,Other Public Bodies,Cabot Learning Federation,530.55, 22-Jun-2020
1270,Revenue,CAHD,Statemented Support Academies,Other Public Bodies,Cabot Learning Federation,918.75, 22-Jun-2020
1271,Revenue,CAHD,Statemented Support Academies,Other Public Bodies,Cabot Learning Federation,975.58, 22-Jun-2020
1272,Revenue,CAHD,Academy Resource Base Funding,Other Public Bodies,Cabot Learning Federation,1137.94, 26-Jun-2020
1273,Revenue,CAHD,Academy Resource Base Funding,Other Public Bodies,Cabot Learning Federation,1648.03, 26-Jun-2020
1274,Revenue,CAHD,Academy Resource Base Funding,Other Public Bodies,Cabot Learning Federation,1491.13, 26-Jun-2020
1275,Revenue,CAHD,Academy Resource Base Funding,Other Public Bodies,Cabot Learning Federation,1137.94, 26-Jun-2020
1276,Revenue,CAHD,Academy Resource Base Funding,Other Public Bodies,Cabot Learning Federation,1137.94, 26-Jun-2020
1277,Revenue,CAHD,Academy Resource Base Funding,Other Public Bodies,Cabot Learning Federation,1648.03, 26-Jun-2020
1278,Revenue,CAHD,Academy Resource Base Funding,Other Public Bodies,Cabot Learning Federation,1491.13, 26-Jun-2020
1279,Revenue,CAHD,Academy Resource Base Funding,Other Public Bodies,Cabot Learning Federation,1137.94, 26-Jun-2020
1280,Revenue,CAHD,Academy Resource Base Funding,Other Public Bodies,Cabot Learning Federation,1491.13, 26-Jun-2020
1281,Revenue,CAHD,Academy Resource Base Funding,Other Public Bodies,Cabot Learning Federation,1137.94, 26-Jun-2020
1282,Revenue,CAHD,Academy Resource Base Funding,Other Public Bodies,Cabot Learning Federation,1137.94, 26-Jun-2020
1283,Revenue,CAHD,Academy Resource Base Funding,Other Public Bodies,Cabot Learning Federation,1648.03, 26-Jun-2020
1284,Revenue,CAHD,Academy Resource Base Funding,Other Public Bodies,Cabot Learning Federation,627.77, 26-Jun-2020
1285,Revenue,CAHD,Academy Resource Base Funding,Other Public Bodies,Cabot Learning Federation,981.04, 26-Jun-2020
1286,Revenue,CAHD,Academy Resource Base Funding,Other Public Bodies,Cabot Learning Federation,627.77, 26-Jun-2020
1287,Revenue,CAHD,Academy Resource Base Funding,Other Public Bodies,Cabot Learning Federation,1491.13, 26-Jun-2020
1288,Revenue,CAHD,Academy Resource Base Funding,Other Public Bodies,Cabot Learning Federation,2118.90, 26-Jun-2020
1289,Revenue,CAHD,Academy Resource Base Funding,Other Public Bodies,Cabot Learning Federation,2118.90, 26-Jun-2020
1290,Revenue,CAHD,Academy Resource Base Funding,Other Public Bodies,Cabot Learning Federation,1137.94, 26-Jun-2020
1291,Revenue,CAHD,Statemented Support Payments to OLAs,Other L.A.'s - General,Cabot Learning Federation,872.46, 22-Jun-2020
1292,Revenue,CAHD,Statemented Support Academies,Other Public Bodies,Cabot Learning Federation,804.08, 22-Jun-2020
1293,Revenue,CAHD,Statemented Support Academies,Other Public Bodies,Cabot Learning Federation,554.13, 22-Jun-2020
1294,Revenue,CAHD,Statemented Support Academies,Other Public Bodies,Cabot Learning Federation,742.77, 22-Jun-2020
1295,Revenue,CAHD,Statemented Support Academies,Other Public Bodies,Cabot Learning Federation,778.14, 22-Jun-2020
1296,Revenue,CAHD,Statemented Support Academies,Other Public Bodies,Cabot Learning Federation,943.20, 22-Jun-2020
1297,Revenue,CAHD,Statemented Support Academies,Other Public Bodies,Cabot Learning Federation,813.51, 22-Jun-2020
1298,Revenue,CAHD,Statemented Support Payments to OLAs,Other L.A.'s - General,Cabot Learning Federation,601.29, 22-Jun-2020
1299,Revenue,CAHD,Statemented Support Academies,Other Public Bodies,Cabot Learning Federation,860.67, 22-Jun-2020
1300,Revenue,CAHD,Statemented Support Academies,Other Public Bodies,Cabot Learning Federation,589.50, 22-Jun-2020
1301,Revenue,CAHD,Statemented Support Academies,Other Public Bodies,Cabot Learning Federation,801.72, 22-Jun-2020
1302,Revenue,CAHD,Statemented Support Academies,Other Public Bodies,Cabot Learning Federation,1096.47, 22-Jun-2020
1303,Revenue,CAHD,Statemented Support Academies,Other Public Bodies,Cabot Learning Federation,730.98, 22-Jun-2020
1304,Revenue,CAHD,Statemented Support Academies,Other Public Bodies,Cabot Learning Federation,907.83, 22-Jun-2020
1305,Revenue,CAHD,Statemented Support Academies,Other Public Bodies,Cabot Learning Federation,530.55, 22-Jun-2020
1306,Revenue,CAHD,Statemented Support Academies,Other Public Bodies,Cabot Learning Federation,907.83, 22-Jun-2020
1307,Revenue,CAHD,Statemented Support Payments to OLAs,Other L.A.'s - General,Cabot Learning Federation,1072.89, 22-Jun-2020
1308,Revenue,CAHD,Statemented Support Academies,Other Public Bodies,Cabot Learning Federation,1296.90, 22-Jun-2020
1309,Revenue,CAHD,Statemented Support Academies,Other Public Bodies,Cabot Learning Federation,872.46, 22-Jun-2020
1310,Revenue,CAHD,NHS Health Checks,Other Small Contracts,Cadbury Heath Healthcare,1335.00, 01-Jun-2020
1311,Revenue,CAHD,North - Community based support,Permanent Nursing,Caernarvon House,4800.00, 02-Jun-2020
1312,Revenue,CAHD,North - Community based support,Permanent Nursing,Caernarvon House,4800.00, 30-Jun-2020
1313,Revenue,CAHD,North - Community based support,Permanent Nursing,Caernarvon House,4710.40, 02-Jun-2020
1314,Revenue,CAHD,North - Community based support,Permanent Nursing,Caernarvon House,4710.40, 30-Jun-2020
1315,Revenue,CAHD,South - Commissioned Services,Permanent Nursing,Caernarvon House,4710.40, 02-Jun-2020
1316,Revenue,CAHD,South - Commissioned Services,Permanent Nursing,Caernarvon House,4710.40, 30-Jun-2020
1317,Revenue,CAHD,North - S117,Permanent Nursing,Caernarvon House,3990.24, 02-Jun-2020
1318,Revenue,CAHD,North - S117,Permanent Nursing,Caernarvon House,3990.24, 30-Jun-2020
1319,Revenue,CAHD,South - Commissioned Services,Permanent Nursing,Caernarvon House,4915.20, 02-Jun-2020
1320,Revenue,CAHD,South - Commissioned Services,Permanent Nursing,Caernarvon House,4915.20, 30-Jun-2020
1321,Revenue,CAHD,North - Community based support,Permanent Nursing,Caernarvon House,4733.76, 02-Jun-2020
1322,Revenue,CAHD,South - Commissioned Services,Permanent Nursing,Caernarvon House,4800.00, 02-Jun-2020
1323,Revenue,CAHD,South - Commissioned Services,Permanent Nursing,Caernarvon House,4800.00, 30-Jun-2020
1324,Revenue,CAHD,South - Commissioned Services,Permanent Nursing,Caernarvon House,4300.80, 02-Jun-2020
1325,Revenue,CAHD,South - Commissioned Services,Permanent Nursing,Caernarvon House,4300.80, 30-Jun-2020
1326,Revenue,CAHD,South - S117,Permanent Nursing,Caernarvon House,4915.20, 02-Jun-2020
1327,Revenue,CAHD,South - S117,Permanent Nursing,Caernarvon House,4915.20, 30-Jun-2020
1328,Revenue,CAHD,North - Community based support,Permanent Nursing,Caernarvon House,4800.00, 02-Jun-2020
1329,Revenue,CAHD,North - Community based support,Permanent Nursing,Caernarvon House,4800.00, 30-Jun-2020
1330,Revenue,CAHD,South - Commissioned Services,Respite Emergency - Residential,Caernarvon House,4800.00, 02-Jun-2020
1331,Revenue,CAHD,South - Commissioned Services,Respite Emergency - Residential,Caernarvon House,4800.00, 30-Jun-2020
1332,Revenue,CAHD,CSC - Residential Placements,Permanent Residential,Cambian Childcare Ltd,19285.80, 22-Jun-2020
1333,Revenue,CAHD,CSC - Residential Placements,Permanent Residential,Cambian Childcare Ltd,19285.80, 30-Jun-2020
1334,Revenue,CAHD,CSC - Residential Placements,Permanent Residential,Cambian Childcare Ltd,18428.70, 30-Jun-2020
1335,Revenue,CAHD,CSC - Residential Placements,Permanent Residential,Cambian Childcare Ltd,22500.00, 30-Jun-2020
1336,Revenue,CAHD,Post 16 High Needs Placements,Other Private Contractors,Cambian Whinfell School Limited,39943.64, 19-Jun-2020
1337,Revenue,CAHD,Post 16 High Needs Placements,Other Private Contractors,Cambian Whinfell School Limited,61086.16, 19-Jun-2020
1338,Revenue,CAHD,North - Community based support,Day Care / Social Activities,Camphill Communities Thornbury Limited,473.34, 01-Jun-2020
1339,Revenue,CAHD,North - Community based support,Other Small Contracts,Camphill Communities Thornbury Limited,685.86, 01-Jun-2020
1340,Revenue,CAHD,North - Community based support,Supported Living,Camphill Communities Thornbury Limited,1077.09, 01-Jun-2020
1341,Revenue,CAHD,North - Community based support,Day Care / Social Activities,Camphill Communities Thornbury Limited,497.49, 10-Jun-2020
1342,Revenue,CAHD,North - Community based support,Other Small Contracts,Camphill Communities Thornbury Limited,676.20, 10-Jun-2020
1343,Revenue,CAHD,North - Community based support,Supported Living,Camphill Communities Thornbury Limited,1077.09, 10-Jun-2020
1344,Revenue,CAHD,North - Community based support,Day Care / Social Activities,Camphill Communities Thornbury Limited,478.17, 12-Jun-2020
1345,Revenue,CAHD,North - Community based support,Other Small Contracts,Camphill Communities Thornbury Limited,671.37, 12-Jun-2020
1346,Revenue,CAHD,North - Community based support,Supported Living,Camphill Communities Thornbury Limited,1057.77, 12-Jun-2020
1347,Revenue,CAHD,North - Community based support,Day Care / Social Activities,Camphill Communities Thornbury Limited,487.83, 23-Jun-2020
1348,Revenue,CAHD,North - Community based support,Other Small Contracts,Camphill Communities Thornbury Limited,681.03, 23-Jun-2020
1349,Revenue,CAHD,North - Community based support,Supported Living,Camphill Communities Thornbury Limited,1072.26, 23-Jun-2020
1350,Revenue,CAHD,North - Community based support,Day Care / Social Activities,Camphill Communities Thornbury Limited,473.34, 29-Jun-2020
1351,Revenue,CAHD,North - Community based support,Other Small Contracts,Camphill Communities Thornbury Limited,671.37, 29-Jun-2020
1352,Revenue,CAHD,North - Community based support,Supported Living,Camphill Communities Thornbury Limited,1077.09, 29-Jun-2020
1353,Revenue,CAHD,North - S117,Permanent Residential,Canjayor,3937.76, 02-Jun-2020
1354,Revenue,CAHD,North - S117,Permanent Residential,Canjayor,3937.76, 30-Jun-2020
1355,Revenue,CAHD,CSC - Agency Fostering,Foster Parent Allowances,Capstone Foster Care (South West) Limited,935.46, 23-Jun-2020
1356,Revenue,CAHD,CSC - Agency Fostering,Foster Parent Allowances,Capstone Foster Care (South West) Limited,1015.74, 23-Jun-2020
1357,Revenue,CAHD,CSC - Asylum Seekers - Unaccompanied,Foster Parent Allowances,Capstone Foster Care (South West) Limited,3295.80, 23-Jun-2020
1358,Revenue,CAHD,CSC - Agency Fostering,Foster Parent Allowances,Capstone Foster Care (South West) Limited,3552.90, 23-Jun-2020
1359,Revenue,CAHD,Central - Commissioned Services,Other Small Contracts,Care 1st Homecare,2999.30, 03-Jun-2020
1360,Revenue,CAHD,Central - Commissioned Services,Other Small Contracts,Care 1st Homecare,2985.95, 12-Jun-2020
1361,Revenue,CAHD,Central - Commissioned Services,Other Small Contracts,Care 1st Homecare,2990.40, 17-Jun-2020
1362,Revenue,CAHD,Central - Commissioned Services,Other Small Contracts,Care 1st Homecare,3008.20, 24-Jun-2020
1363,Revenue,CAHD,North - Community based support,Supported Living,Care Horizons,5435.28, 02-Jun-2020
1364,Revenue,CAHD,North - Community based support,Supported Living,Care Horizons,5435.28, 30-Jun-2020
1365,Revenue,CAHD,North - Community based support,Supported Living,Care Horizons,5435.28, 02-Jun-2020
1366,Revenue,CAHD,North - Community based support,Supported Living,Care Horizons,5435.28, 30-Jun-2020
1367,Revenue,CAHD,Central - Commissioned Services,Other Small Contracts,Care Horizons Limited,246.50, 01-Jun-2020
1368,Revenue,CAHD,South - Commissioned Services,Other Small Contracts,Care Horizons Limited,177.48, 01-Jun-2020
1369,Revenue,CAHD,North - Community based support,Other Small Contracts,Care Horizons Limited,354.96, 01-Jun-2020
1370,Revenue,CAHD,Younger MH non-res purchasing,Other Small Contracts,Care Horizons Limited,157.76, 01-Jun-2020
1371,Revenue,CAHD,Central - Commissioned Services,Other Small Contracts,Care Horizons Limited,236.64, 05-Jun-2020
1372,Revenue,CAHD,South - Commissioned Services,Other Small Contracts,Care Horizons Limited,177.48, 05-Jun-2020
1373,Revenue,CAHD,North - Community based support,Other Small Contracts,Care Horizons Limited,305.66, 05-Jun-2020
1374,Revenue,CAHD,Younger MH non-res purchasing,Other Small Contracts,Care Horizons Limited,157.76, 05-Jun-2020
1375,Revenue,CAHD,Central - Commissioned Services,Other Small Contracts,Care Horizons Limited,246.50, 16-Jun-2020
1376,Revenue,CAHD,South - Commissioned Services,Other Small Contracts,Care Horizons Limited,177.48, 16-Jun-2020
1377,Revenue,CAHD,North - Community based support,Other Small Contracts,Care Horizons Limited,414.12, 16-Jun-2020
1378,Revenue,CAHD,Younger MH non-res purchasing,Other Small Contracts,Care Horizons Limited,157.76, 16-Jun-2020
1379,Revenue,CAHD,Central - Commissioned Services,Other Small Contracts,Care Horizons Limited,246.50, 23-Jun-2020
1380,Revenue,CAHD,South - Commissioned Services,Other Small Contracts,Care Horizons Limited,138.04, 23-Jun-2020
1381,Revenue,CAHD,North - Community based support,Other Small Contracts,Care Horizons Limited,414.12, 23-Jun-2020
1382,Revenue,CAHD,Younger MH non-res purchasing,Other Small Contracts,Care Horizons Limited,157.76, 23-Jun-2020
1383,Revenue,CAHD,Covid � ASC - Infection Control,Grants to Voluntary Bodies,Care Horizons Limited,2182.56, 26-Jun-2020
1384,Revenue,CAHD,Additional Payments to providers - COVID,Other Small Contracts,Care Horizons Limited,6120.00, 25-Jun-2020
1385,Revenue,CAHD,Additional Payments to providers - COVID,Other Small Contracts,Care Horizons Limited,1779.04, 18-Jun-2020
1386,Revenue,CAHD,Additional Payments to providers - COVID,Other Small Contracts,Care Horizons Limited,1881.48, 25-Jun-2020
1387,Revenue,CAHD,Additional Payments to providers - COVID,Other Small Contracts,Care Horizons Limited,1897.36, 18-Jun-2020
1388,Revenue,CAHD,Additional Payments to providers - COVID,Other Small Contracts,Care Horizons Limited,1838.20, 10-Jun-2020
1389,Revenue,CAHD,Covid � ASC - Infection Control,Grants to Voluntary Bodies,Carepride Ltd,954.87, 26-Jun-2020
1390,Revenue,CAHD,North - Community based support,Other Small Contracts,Carepride Ltd,632.73, 05-Jun-2020
1391,Revenue,CAHD,Central - Commissioned Services,Other Small Contracts,Carepride Ltd,1023.96, 05-Jun-2020
1392,Revenue,CAHD,Supporting People Programme,Grants to Voluntary Bodies,Caring for Communities and People,12858.00, 04-Jun-2020
1393,Revenue,CAHD,Statemented Support Academies,Other Public Bodies,Castle School Education Trust,530.55, 22-Jun-2020
1394,Revenue,CAHD,Statemented Support Academies,Other Public Bodies,Castle School Education Trust,565.92, 22-Jun-2020
1395,Revenue,CAHD,Statemented Support Academies,Other Public Bodies,Castle School Education Trust,778.14, 22-Jun-2020
1396,Revenue,CAHD,Statemented Support Academies,Other Public Bodies,Castle School Education Trust,931.41, 22-Jun-2020
1397,Revenue,CAHD,Statemented Support Academies,Other Public Bodies,Castle School Education Trust,542.34, 22-Jun-2020
1398,Revenue,CAHD,Statemented Support Academies,Other Public Bodies,Castle School Education Trust,672.03, 22-Jun-2020
1399,Revenue,CAHD,Statemented Support Academies,Other Public Bodies,Castle School Education Trust,577.71, 22-Jun-2020
1400,Revenue,CAHD,Statemented Support Academies,Other Public Bodies,Castle School Education Trust,505.08, 22-Jun-2020
1401,Revenue,CAHD,Statemented Support Academies,Other Public Bodies,Castle School Education Trust,860.67, 22-Jun-2020
1402,Revenue,CAHD,Statemented Support Academies,Other Public Bodies,Castle School Education Trust,1461.96, 22-Jun-2020
1403,Revenue,CAHD,Statemented Support Academies,Other Public Bodies,Castle School Education Trust,860.67, 22-Jun-2020
1404,Revenue,CAHD,Statemented Support Academies,Other Public Bodies,Castle School Education Trust,1002.15, 22-Jun-2020
1405,Revenue,CAHD,Statemented Support Academies,Other Public Bodies,Castle School Education Trust,613.08, 22-Jun-2020
1406,Revenue,CAHD,Statemented Support Academies,Other Public Bodies,Castle School Education Trust,672.03, 22-Jun-2020
1407,Revenue,CAHD,Statemented Support Academies,Other Public Bodies,Castle School Education Trust,1120.05, 22-Jun-2020
1408,Revenue,CAHD,Statemented Support Academies,Other Public Bodies,Castle School Education Trust,636.66, 22-Jun-2020
1409,Revenue,CAHD,Statemented Support Academies,Other Public Bodies,Castle School Education Trust,589.50, 22-Jun-2020
1410,Revenue,CAHD,Statemented Support Academies,Other Public Bodies,Castle School Education Trust,589.08, 22-Jun-2020
1411,Revenue,CAHD,Statemented Support Academies,Other Public Bodies,Castle School Education Trust,954.99, 22-Jun-2020
1412,Revenue,CAHD,Statemented Support Academies,Other Public Bodies,Castle School Education Trust,577.71, 22-Jun-2020
1413,Revenue,CAHD,Statemented Support Academies,Other Public Bodies,Castle School Education Trust,624.87, 22-Jun-2020
1414,Revenue,CAHD,Statemented Support Academies,Other Public Bodies,Castle School Education Trust,825.30, 22-Jun-2020
1415,Revenue,CAHD,Statemented Support Academies,Other Public Bodies,Castle School Education Trust,1190.79, 22-Jun-2020
1416,Revenue,CAHD,Statemented Support Academies,Other Public Bodies,Castle School Education Trust,848.88, 22-Jun-2020
1417,Revenue,CAHD,Statemented Support Academies,Other Public Bodies,Castle School Education Trust,1237.95, 22-Jun-2020
1418,Revenue,CAHD,Statemented Support Academies,Other Public Bodies,Castle School Education Trust,1061.10, 22-Jun-2020
1419,Revenue,CAHD,Statemented Support Academies,Other Public Bodies,Castle School Education Trust,518.76, 22-Jun-2020
1420,Revenue,CAHD,Statemented Support Academies,Other Public Bodies,Castle School Education Trust,577.71, 22-Jun-2020
1421,Revenue,CAHD,Statemented Support Academies,Other Public Bodies,Castle School Education Trust,1143.63, 22-Jun-2020
1422,Revenue,CAHD,Statemented Support Academies,Other Public Bodies,Castle School Education Trust,1072.89, 22-Jun-2020
1423,Revenue,CAHD,Statemented Support Academies,Other Public Bodies,Castle School Education Trust,754.25, 22-Jun-2020
1424,Revenue,CAHD,South Glos Alternative Provision,Fees & Charges Income - General,Castle School Education Trust,11182.24, 09-Jun-2020
1425,Revenue,CAHD,Statemented Support Academies,Other Public Bodies,Castle School Education Trust,1485.54, 22-Jun-2020
1426,Revenue,CAHD,Statemented Support Academies,Other Public Bodies,Castle School Education Trust,888.75, 22-Jun-2020
1427,Revenue,CAHD,Statemented Support Academies,Other Public Bodies,Castle School Education Trust,1322.75, 22-Jun-2020
1428,Revenue,CAHD,Statemented Support Academies,Other Public Bodies,Castle School Education Trust,801.92, 22-Jun-2020
1429,Revenue,CAHD,Statemented Support Academies,Other Public Bodies,Castle School Education Trust,943.17, 22-Jun-2020
1430,Revenue,CAHD,Statemented Support Academies,Other Public Bodies,Castle School Education Trust,1267.50, 22-Jun-2020
1431,Revenue,CAHD,Academy Resource Base Funding,Other Public Bodies,Castle School Education Trust,1648.03, 26-Jun-2020
1432,Revenue,CAHD,Academy Resource Base Funding,Other Public Bodies,Castle School Education Trust,1648.03, 26-Jun-2020
1433,Revenue,CAHD,Academy Resource Base Funding,Other Public Bodies,Castle School Education Trust,1648.03, 26-Jun-2020
1434,Revenue,CAHD,Academy Resource Base Funding,Other Public Bodies,Castle School Education Trust,1648.03, 26-Jun-2020
1435,Revenue,CAHD,Academy Resource Base Funding,Other Public Bodies,Castle School Education Trust,1648.03, 26-Jun-2020
1436,Revenue,CAHD,Academy Resource Base Funding,Other Public Bodies,Castle School Education Trust,1648.03, 26-Jun-2020
1437,Revenue,CAHD,Academy Resource Base Funding,Other Public Bodies,Castle School Education Trust,1648.03, 26-Jun-2020
1438,Revenue,CAHD,Academy Resource Base Funding,Other Public Bodies,Castle School Education Trust,1648.03, 26-Jun-2020
1439,Revenue,CAHD,Academy Resource Base Funding,Other Public Bodies,Castle School Education Trust,1648.03, 26-Jun-2020
1440,Revenue,CAHD,Academy Resource Base Funding,Other Public Bodies,Castle School Education Trust,2118.90, 26-Jun-2020
1441,Revenue,CAHD,Statemented Support Academies,Other Public Bodies,Castle School Education Trust,672.03, 22-Jun-2020
1442,Revenue,CAHD,Statemented Support Academies,Other Public Bodies,Castle School Education Trust,872.46, 22-Jun-2020
1443,Revenue,CAHD,Statemented Support Academies,Other Public Bodies,Castle School Education Trust,848.88, 22-Jun-2020
1444,Revenue,CAHD,Statemented Support Academies,Other Public Bodies,Castle School Education Trust,1556.28, 22-Jun-2020
1445,Revenue,CAHD,Statemented Support Academies,Other Public Bodies,Castle School Education Trust,1025.73, 22-Jun-2020
1446,Revenue,CAHD,Statemented Support Academies,Other Public Bodies,Castle School Education Trust,630.58, 22-Jun-2020
1447,Revenue,CAHD,Statemented Support Academies,Other Public Bodies,Castle School Education Trust,778.14, 22-Jun-2020
1448,Revenue,CAHD,Statemented Support Academies,Other Public Bodies,Castle School Education Trust,613.08, 22-Jun-2020
1449,Revenue,CAHD,Statemented Support Academies,Other Public Bodies,Castle School Educational Turust,1148.20, 22-Jun-2020
1450,Revenue,CAHD,Statemented Support Academies,Other Public Bodies,Castle School Educational Turust,714.08, 22-Jun-2020
1451,Revenue,CAHD,Statemented Support Academies,Other Public Bodies,Castle School Educational Turust,1497.33, 22-Jun-2020
1452,Revenue,CAHD,Social Lettings Agency,Fees - General,Individual,10.53, 01-Jun-2020
1453,Revenue,CAHD,Social Lettings Agency,Fees & Charges Income - General,Individual,595.11, 01-Jun-2020
1454,Revenue,CAHD,North - Community based support,Day Care / Social Activities,Causeway House,2176.64, 02-Jun-2020
1455,Revenue,CAHD,North - Community based support,Day Care / Social Activities,Causeway House,2176.64, 30-Jun-2020
1456,Revenue,CAHD,Central - Commissioned Services,Day Care / Social Activities,Causeway House,1256.12, 02-Jun-2020
1457,Revenue,CAHD,Central - Commissioned Services,Day Care / Social Activities,Causeway House,1256.12, 30-Jun-2020
1458,Revenue,CAHD,South - Commissioned Services,Day Care / Social Activities,Causeway House,5358.20, 02-Jun-2020
1459,Revenue,CAHD,South - Commissioned Services,Day Care / Social Activities,Causeway House,5358.20, 30-Jun-2020
1460,Revenue,CAHD,Central - Commissioned Services,Day Care / Social Activities,Causeway House,1447.08, 02-Jun-2020
1461,Revenue,CAHD,Central - Commissioned Services,Day Care / Social Activities,Causeway House,1447.08, 30-Jun-2020
1462,Revenue,CAHD,18-25 Year Olds,Day Care / Social Activities,Causeway House,4502.92, 02-Jun-2020
1463,Revenue,CAHD,18-25 Year Olds,Day Care / Social Activities,Causeway House,4502.92, 30-Jun-2020
1464,Revenue,CAHD,Central - Commissioned Services,Day Care / Social Activities,Causeway House,3671.36, 02-Jun-2020
1465,Revenue,CAHD,Central - Commissioned Services,Day Care / Social Activities,Causeway House,3671.36, 30-Jun-2020
1466,Revenue,CAHD,Central - Commissioned Services,Day Care / Social Activities,Causeway House,3969.44, 02-Jun-2020
1467,Revenue,CAHD,Central - Commissioned Services,Day Care / Social Activities,Causeway House,3969.44, 30-Jun-2020
1468,Revenue,CAHD,Central - Commissioned Services,Day Care / Social Activities,Causeway House,2119.20, 02-Jun-2020
1469,Revenue,CAHD,Central - Commissioned Services,Day Care / Social Activities,Causeway House,2119.20, 30-Jun-2020
1470,Revenue,CAHD,North - Community based support,Day Care / Social Activities,Causeway House,3290.72, 02-Jun-2020
1471,Revenue,CAHD,North - Community based support,Day Care / Social Activities,Causeway House,3290.72, 30-Jun-2020
1472,Revenue,CAHD,North - Community based support,Day Care / Social Activities,Causeway House,4902.56, 02-Jun-2020
1473,Revenue,CAHD,North - Community based support,Day Care / Social Activities,Causeway House,4902.56, 30-Jun-2020
1474,Revenue,CAHD,Central - Commissioned Services,Day Care / Social Activities,Causeway House,3725.16, 02-Jun-2020
1475,Revenue,CAHD,Central - Commissioned Services,Day Care / Social Activities,Causeway House,3725.16, 30-Jun-2020
1476,Revenue,CAHD,North - Community based support,Day Care / Social Activities,Causeway House,3212.08, 02-Jun-2020
1477,Revenue,CAHD,North - Community based support,Day Care / Social Activities,Causeway House,3212.08, 30-Jun-2020
1478,Revenue,CAHD,North - Community based support,Day Care / Social Activities,Causeway House,579.68, 02-Jun-2020
1479,Revenue,CAHD,North - Community based support,Day Care / Social Activities,Causeway House,579.68, 30-Jun-2020
1480,Revenue,CAHD,South - Commissioned Services,Permanent Residential,Challenge House,2834.44, 02-Jun-2020
1481,Revenue,CAHD,South - Commissioned Services,Permanent Residential,Challenge House,2834.44, 30-Jun-2020
1482,Revenue,CAHD,South - Commissioned Services,Permanent Residential,Challenge House,2836.00, 02-Jun-2020
1483,Revenue,CAHD,South - Commissioned Services,Permanent Residential,Challenge House,2836.00, 30-Jun-2020
1484,Revenue,CAHD,North - S117,Permanent Residential,Challenge House,2571.40, 02-Jun-2020
1485,Revenue,CAHD,North - S117,Permanent Residential,Challenge House,2571.40, 30-Jun-2020
1486,Revenue,CAHD,Central - Commissioned Services,Permanent Residential,Challenge House,2800.00, 02-Jun-2020
1487,Revenue,CAHD,Central - Commissioned Services,Permanent Residential,Challenge House,2800.00, 30-Jun-2020
1488,Revenue,CAHD,North - Community based support,Permanent Residential,Challenge House,2233.00, 02-Jun-2020
1489,Revenue,CAHD,North - Community based support,Permanent Residential,Challenge House,2233.00, 30-Jun-2020
1490,Revenue,CAHD,Central - Commissioned Services,Permanent Residential,Challenge House,2365.60, 02-Jun-2020
1491,Revenue,CAHD,Central - Commissioned Services,Permanent Residential,Challenge House,24332.30, 30-Jun-2020
1492,Revenue,CAHD,Central - Commissioned Services,Permanent Residential,Challenge House,2365.64, 30-Jun-2020
1493,Revenue,CAHD,North - Community based support,Permanent Residential,Challenge House,2363.40, 02-Jun-2020
1494,Revenue,CAHD,North - Community based support,Permanent Residential,Challenge House,2363.40, 30-Jun-2020
1495,Revenue,CAHD,North - Community based support,Permanent Residential,Challenge House,2834.40, 02-Jun-2020
1496,Revenue,CAHD,North - Community based support,Permanent Residential,Challenge House,2834.40, 30-Jun-2020
1497,Revenue,CAHD,North - Community based support,Respite Planned - Residential,Challenge House,2357.14, 02-Jun-2020
1498,Revenue,CAHD,North - bed purchasing and direct  payments,Respite Planned - Residential,Challenge House,1071.43, 02-Jun-2020
1499,Revenue,CAHD,North - Community based support,Permanent Nursing,Challenge House,3130.36, 02-Jun-2020
1500,Revenue,CAHD,North - Community based support,Permanent Nursing,Challenge House,7899.22, 30-Jun-2020
1501,Revenue,CAHD,North - Community based support,Permanent Nursing,Challenge House,3205.48, 30-Jun-2020
1502,Revenue,CAHD,North - Community based support,Fees & Charges Income - General,Challenge House,1178.50, 30-Jun-2020
1503,Revenue,CAHD,North - S117,Permanent Nursing,Challenge House,2395.80, 02-Jun-2020
1504,Revenue,CAHD,North - S117,Permanent Nursing,Challenge House,6133.20, 30-Jun-2020
1505,Revenue,CAHD,North - S117,Permanent Nursing,Challenge House,2453.28, 30-Jun-2020
1506,Revenue,CAHD,North - bed purchasing and direct  payments,Permanent Residential,Challenge House,2816.22, 02-Jun-2020
1507,Revenue,CAHD,Central - Commissioned Services,Permanent Nursing,Challenge House,3056.00, 02-Jun-2020
1508,Revenue,CAHD,Central - Commissioned Services,Permanent Nursing,Challenge House,7711.64, 30-Jun-2020
1509,Revenue,CAHD,Central - Commissioned Services,Permanent Nursing,Challenge House,3129.36, 30-Jun-2020
1510,Revenue,CAHD,Central - Commissioned Services,Fees & Charges Income - General,Challenge House,2957.90, 30-Jun-2020
1511,Revenue,CAHD,North - Community based support,Permanent Nursing,Challenge House,2395.80, 02-Jun-2020
1512,Revenue,CAHD,North - Community based support,Permanent Nursing,Challenge House,6045.58, 30-Jun-2020
1513,Revenue,CAHD,North - Community based support,Permanent Nursing,Challenge House,2453.28, 30-Jun-2020
1514,Revenue,CAHD,North - Community based support,Fees & Charges Income - General,Challenge House,1488.50, 30-Jun-2020
1515,Revenue,CAHD,North - Community based support,Permanent Nursing,Challenge House,3130.36, 02-Jun-2020
1516,Revenue,CAHD,North - Community based support,Fees & Charges Income - General,Challenge House,1488.50, 30-Jun-2020
1517,Revenue,CAHD,North - Community based support,Respite Planned - Nursing,Challenge House,857.14, 02-Jun-2020
1518,Revenue,CAHD,South Glos Users in South Glos Homes,Permanent Nursing,Challenge House,735.68, 02-Jun-2020
1519,Revenue,CAHD,South Glos Users in South Glos Homes,Permanent Nursing,Challenge House,1234.89, 02-Jun-2020
1520,Revenue,CAHD,South Glos Users in South Glos Homes,Permanent Nursing,Challenge House,735.68, 30-Jun-2020
1521,Revenue,CAHD,South Glos Users in South Glos Homes,Permanent Nursing,Challenge House,735.68, 02-Jun-2020
1522,Revenue,CAHD,South Glos Users in South Glos Homes,Permanent Nursing,Challenge House,1234.89, 02-Jun-2020
1523,Revenue,CAHD,South Glos Users in South Glos Homes,Permanent Nursing,Challenge House,735.68, 30-Jun-2020
1524,Revenue,CAHD,South Glos Users in South Glos Homes,Permanent Nursing,Challenge House,735.68, 02-Jun-2020
1525,Revenue,CAHD,South Glos Users in South Glos Homes,Permanent Nursing,Challenge House,1234.89, 02-Jun-2020
1526,Revenue,CAHD,South - Commissioned Services,Permanent Nursing,Challenge House,2941.88, 02-Jun-2020
1527,Revenue,CAHD,South Glos Users in South Glos Homes,Permanent Nursing,Challenge House,735.68, 02-Jun-2020
1528,Revenue,CAHD,South Glos Users in South Glos Homes,Permanent Nursing,Challenge House,1234.89, 02-Jun-2020
1529,Revenue,CAHD,South - Commissioned Services,Permanent Nursing,Challenge House,2941.88, 30-Jun-2020
1530,Revenue,CAHD,South Glos Users in South Glos Homes,Permanent Nursing,Challenge House,735.68, 30-Jun-2020
1531,Revenue,CAHD,North - Community based support,Permanent Nursing,Challenge House,3401.80, 02-Jun-2020
1532,Revenue,CAHD,South Glos Users in South Glos Homes,Permanent Nursing,Challenge House,735.68, 02-Jun-2020
1533,Revenue,CAHD,South Glos Users in South Glos Homes,Permanent Nursing,Challenge House,1234.89, 02-Jun-2020
1534,Revenue,CAHD,North - Community based support,Permanent Nursing,Challenge House,3401.80, 30-Jun-2020
1535,Revenue,CAHD,South Glos Users in South Glos Homes,Permanent Nursing,Challenge House,735.68, 30-Jun-2020
1536,Revenue,CAHD,North - Community based support,Permanent Nursing,Challenge House,3272.64, 02-Jun-2020
1537,Revenue,CAHD,South Glos Users in South Glos Homes,Permanent Nursing,Challenge House,735.68, 02-Jun-2020
1538,Revenue,CAHD,South Glos Users in South Glos Homes,Permanent Nursing,Challenge House,1234.89, 02-Jun-2020
1539,Revenue,CAHD,North - Community based support,Permanent Nursing,Challenge House,3272.64, 30-Jun-2020
1540,Revenue,CAHD,South Glos Users in South Glos Homes,Permanent Nursing,Challenge House,735.68, 30-Jun-2020
1541,Revenue,CAHD,South Glos Users in South Glos Homes,Permanent Nursing,Challenge House,735.68, 02-Jun-2020
1542,Revenue,CAHD,South Glos Users in South Glos Homes,Permanent Nursing,Challenge House,1234.89, 02-Jun-2020
1543,Revenue,CAHD,South Glos Users in South Glos Homes,Permanent Nursing,Challenge House,735.68, 30-Jun-2020
1544,Revenue,CAHD,North - Community based support,Permanent Nursing,Challenge House,3405.60, 02-Jun-2020
1545,Revenue,CAHD,South Glos Users in South Glos Homes,Permanent Nursing,Challenge House,735.68, 02-Jun-2020
1546,Revenue,CAHD,South Glos Users in South Glos Homes,Permanent Nursing,Challenge House,1234.89, 02-Jun-2020
1547,Revenue,CAHD,North - Community based support,Permanent Nursing,Challenge House,3405.60, 30-Jun-2020
1548,Revenue,CAHD,South Glos Users in South Glos Homes,Permanent Nursing,Challenge House,735.68, 30-Jun-2020
1549,Revenue,CAHD,South - Commissioned Services,Permanent Nursing,Challenge House,3060.00, 02-Jun-2020
1550,Revenue,CAHD,South - Commissioned Services,Permanent Nursing,Challenge House,3060.00, 30-Jun-2020
1551,Revenue,CAHD,South Glos Users in South Glos Homes,Permanent Nursing,Challenge House,735.68, 02-Jun-2020
1552,Revenue,CAHD,South Glos Users in South Glos Homes,Permanent Nursing,Challenge House,1234.89, 02-Jun-2020
1553,Revenue,CAHD,South Glos Users in South Glos Homes,Permanent Nursing,Challenge House,735.68, 30-Jun-2020
1554,Revenue,CAHD,South Glos Users in South Glos Homes,Permanent Nursing,Challenge House,3973.44, 02-Jun-2020
1555,Revenue,CAHD,South - Commissioned Services,Permanent Residential,Challenge House,3060.00, 02-Jun-2020
1556,Revenue,CAHD,South Glos Users in South Glos Homes,Permanent Nursing,Challenge House,1234.89, 02-Jun-2020
1557,Revenue,CAHD,South Glos Users in South Glos Homes,Permanent Nursing,Challenge House,735.68, 02-Jun-2020
1558,Revenue,CAHD,South - Commissioned Services,Permanent Residential,Challenge House,3060.00, 30-Jun-2020
1559,Revenue,CAHD,South Glos Users in South Glos Homes,Permanent Nursing,Challenge House,735.68, 30-Jun-2020
1560,Revenue,CAHD,South Glos Users in South Glos Homes,Permanent Nursing,Challenge House,735.68, 02-Jun-2020
1561,Revenue,CAHD,South Glos Users in South Glos Homes,Permanent Nursing,Challenge House,1234.89, 02-Jun-2020
1562,Revenue,CAHD,South Glos Users in South Glos Homes,Permanent Nursing,Challenge House,735.68, 30-Jun-2020
1563,Revenue,CAHD,South Glos Users in South Glos Homes,Permanent Nursing,Challenge House,735.68, 02-Jun-2020
1564,Revenue,CAHD,South Glos Users in South Glos Homes,Permanent Nursing,Challenge House,1234.89, 02-Jun-2020
1565,Revenue,CAHD,South Glos Users in South Glos Homes,Permanent Nursing,Challenge House,735.68, 30-Jun-2020
1566,Revenue,CAHD,South Glos Users in South Glos Homes,Permanent Nursing,Challenge House,735.68, 02-Jun-2020
1567,Revenue,CAHD,South Glos Users in South Glos Homes,Permanent Nursing,Challenge House,1234.89, 02-Jun-2020
1568,Revenue,CAHD,South Glos Users in South Glos Homes,Permanent Nursing,Challenge House,735.68, 30-Jun-2020
1569,Revenue,CAHD,North - Community based support,Respite Planned - Nursing,Challenge House,1407.71, 02-Jun-2020
1570,Revenue,CAHD,South Glos Users in South Glos Homes,Permanent Nursing,Challenge House,735.68, 02-Jun-2020
1571,Revenue,CAHD,South Glos Users in South Glos Homes,Permanent Nursing,Challenge House,1234.89, 02-Jun-2020
1572,Revenue,CAHD,South Glos Users in South Glos Homes,Permanent Nursing,Challenge House,735.68, 30-Jun-2020
1573,Revenue,CAHD,South Glos Users in South Glos Homes,Permanent Nursing,Challenge House,2648.96, 02-Jun-2020
1574,Revenue,CAHD,South Glos Users in South Glos Homes,Permanent Nursing,Challenge House,735.68, 02-Jun-2020
1575,Revenue,CAHD,South Glos Users in South Glos Homes,Permanent Nursing,Challenge House,1234.89, 02-Jun-2020
1576,Revenue,CAHD,South Glos Users in South Glos Homes,Permanent Nursing,Challenge House,735.68, 30-Jun-2020
1577,Revenue,CAHD,South Glos Users in South Glos Homes,Permanent Nursing,Challenge House,1821.16, 02-Jun-2020
1578,Revenue,CAHD,South Glos Users in South Glos Homes,Permanent Nursing,Challenge House,1234.89, 02-Jun-2020
1579,Revenue,CAHD,South Glos Users in South Glos Homes,Permanent Nursing,Challenge House,735.68, 02-Jun-2020
1580,Revenue,CAHD,South Glos Users in South Glos Homes,Permanent Nursing,Challenge House,735.68, 30-Jun-2020
1581,Revenue,CAHD,South Glos Users in South Glos Homes,Permanent Nursing,Challenge House,596.32, 25-Jun-2020
1582,Revenue,CAHD,South Glos Users in South Glos Homes,Permanent Nursing,Challenge House,771.21, 25-Jun-2020
1583,Revenue,CAHD,South Glos Users in South Glos Homes,Permanent Nursing,Challenge House,771.21, 25-Jun-2020
1584,Revenue,CAHD,South Glos Users in South Glos Homes,Permanent Nursing,Challenge House,771.21, 25-Jun-2020
1585,Revenue,CAHD,South Glos Users in South Glos Homes,Permanent Nursing,Challenge House,771.21, 25-Jun-2020
1586,Revenue,CAHD,South Glos Users in South Glos Homes,Permanent Nursing,Challenge House,771.21, 25-Jun-2020
1587,Revenue,CAHD,South Glos Users in South Glos Homes,Permanent Nursing,Challenge House,539.43, 25-Jun-2020
1588,Revenue,CAHD,South Glos Users in South Glos Homes,Permanent Nursing,Challenge House,771.21, 25-Jun-2020
1589,Revenue,CAHD,South Glos Users in South Glos Homes,Permanent Nursing,Challenge House,615.29, 25-Jun-2020
1590,Revenue,CAHD,South Glos Users in South Glos Homes,Permanent Nursing,Challenge House,710.12, 25-Jun-2020
1591,Revenue,CAHD,South Glos Users in South Glos Homes,Permanent Nursing,Challenge House,771.21, 25-Jun-2020
1592,Revenue,CAHD,South Glos Users in South Glos Homes,Permanent Nursing,Challenge House,596.32, 25-Jun-2020
1593,Revenue,CAHD,South Glos Users in South Glos Homes,Permanent Nursing,Challenge House,771.21, 25-Jun-2020
1594,Revenue,CAHD,South Glos Users in South Glos Homes,Permanent Nursing,Challenge House,771.21, 25-Jun-2020
1595,Revenue,CAHD,South Glos Users in South Glos Homes,Permanent Nursing,Challenge House,771.21, 25-Jun-2020
1596,Revenue,CAHD,South Glos Users in South Glos Homes,Permanent Nursing,Challenge House,592.10, 25-Jun-2020
1597,Revenue,CAHD,South Glos Users in South Glos Homes,Permanent Nursing,Challenge House,771.21, 25-Jun-2020
1598,Revenue,CAHD,South Glos Users in South Glos Homes,Permanent Nursing,Challenge House,771.21, 25-Jun-2020
1599,Revenue,CAHD,South Glos Users in South Glos Homes,Permanent Nursing,Challenge House,667.96, 25-Jun-2020
1600,Revenue,CAHD,Covid � ASC - Infection Control,Grants to Voluntary Bodies,Challenge House,3312.40, 26-Jun-2020
1601,Revenue,CAHD,North - Community based support,Permanent Nursing,Challenge House,2884.08, 02-Jun-2020
1602,Revenue,CAHD,South Glos Users in South Glos Homes,Permanent Nursing,Challenge House,735.68, 02-Jun-2020
1603,Revenue,CAHD,South Glos Users in South Glos Homes,Permanent Nursing,Challenge House,1234.89, 02-Jun-2020
1604,Revenue,CAHD,North - Community based support,Permanent Nursing,Challenge House,2884.08, 30-Jun-2020
1605,Revenue,CAHD,South Glos Users in South Glos Homes,Permanent Nursing,Challenge House,735.68, 30-Jun-2020
1606,Revenue,CAHD,North - Community based support,Permanent Nursing,Challenge House,3243.60, 02-Jun-2020
1607,Revenue,CAHD,South Glos Users in South Glos Homes,Permanent Nursing,Challenge House,735.68, 02-Jun-2020
1608,Revenue,CAHD,South Glos Users in South Glos Homes,Permanent Nursing,Challenge House,1234.89, 02-Jun-2020
1609,Revenue,CAHD,North - Community based support,Permanent Nursing,Challenge House,3243.60, 30-Jun-2020
1610,Revenue,CAHD,South Glos Users in South Glos Homes,Permanent Nursing,Challenge House,735.68, 30-Jun-2020
1611,Revenue,CAHD,North - Community based support,Permanent Nursing,Challenge House,3405.60, 02-Jun-2020
1612,Revenue,CAHD,South Glos Users in South Glos Homes,Permanent Nursing,Challenge House,735.68, 02-Jun-2020
1613,Revenue,CAHD,South Glos Users in South Glos Homes,Permanent Nursing,Challenge House,1234.89, 02-Jun-2020
1614,Revenue,CAHD,North - Community based support,Permanent Nursing,Challenge House,3405.60, 30-Jun-2020
1615,Revenue,CAHD,South Glos Users in South Glos Homes,Permanent Nursing,Challenge House,735.68, 30-Jun-2020
1616,Revenue,CAHD,North - Community based support,Permanent Residential,Challenge House,23387.14, 02-Jun-2020
1617,Revenue,CAHD,North - Community based support,Permanent Residential,Challenge House,4681.80, 02-Jun-2020
1618,Revenue,CAHD,North - Community based support,Permanent Residential,Challenge House,3121.20, 02-Jun-2020
1619,Revenue,CAHD,North - Community based support,Fees & Charges Income - General,Challenge House,6878.28, 02-Jun-2020
1620,Revenue,CAHD,South Glos Users in South Glos Homes,Permanent Nursing,Challenge House,735.68, 02-Jun-2020
1621,Revenue,CAHD,South Glos Users in South Glos Homes,Permanent Nursing,Challenge House,1234.89, 02-Jun-2020
1622,Revenue,CAHD,North - Community based support,Permanent Residential,Challenge House,3121.20, 30-Jun-2020
1623,Revenue,CAHD,South Glos Users in South Glos Homes,Permanent Nursing,Challenge House,735.68, 30-Jun-2020
1624,Revenue,CAHD,North - Community based support,Permanent Nursing,Challenge House,2884.08, 02-Jun-2020
1625,Revenue,CAHD,South Glos Users in South Glos Homes,Permanent Nursing,Challenge House,735.68, 02-Jun-2020
1626,Revenue,CAHD,South Glos Users in South Glos Homes,Permanent Nursing,Challenge House,1234.89, 02-Jun-2020
1627,Revenue,CAHD,North - Community based support,Permanent Nursing,Challenge House,2884.08, 30-Jun-2020
1628,Revenue,CAHD,South Glos Users in South Glos Homes,Permanent Nursing,Challenge House,735.68, 30-Jun-2020
1629,Revenue,CAHD,South Glos Users in South Glos Homes,Permanent Nursing,Challenge House,735.68, 02-Jun-2020
1630,Revenue,CAHD,South Glos Users in South Glos Homes,Permanent Nursing,Challenge House,1234.89, 02-Jun-2020
1631,Revenue,CAHD,South Glos Users in South Glos Homes,Permanent Nursing,Challenge House,735.68, 30-Jun-2020
1632,Revenue,CAHD,South Glos Users in South Glos Homes,Permanent Nursing,Challenge House,1234.89, 02-Jun-2020
1633,Revenue,CAHD,North - Community based support,Permanent Nursing,Challenge House,2792.86, 30-Jun-2020
1634,Revenue,CAHD,North - Community based support,Permanent Nursing,Challenge House,1457.14, 30-Jun-2020
1635,Revenue,CAHD,Covid � ASC - Infection Control,Grants to Voluntary Bodies,Challenge House,19914.00, 10-Jun-2020
1636,Revenue,CAHD,EARLY YEARS DISABILITY  ACCES FUND,Preventative Assistance,Charfield Pre-School,615.00, 30-Jun-2020
1637,Revenue,CAHD,EARLY YEARS DEPRIVATION PAYMENT,Preventative Assistance,Charfield Pre-School,717.48, 25-Jun-2020
1638,Revenue,CAHD,Early Years Pupil Premium Grant,Preventative Assistance,Charfield Pre-School,596.25, 25-Jun-2020
1639,Revenue,CAHD,CSC - North LAC Placements,Independent Living,Charles England House,1035.18, 19-Jun-2020
1640,Revenue,CAHD,CSC - Vinney Green Secure Unit,"Provisions (Food, etc)",Charles Saunders Limited,557.11, 03-Jun-2020
1641,Revenue,CAHD,CSC - Vinney Green Secure Unit,"Provisions (Food, etc)",Charles Saunders Limited,790.49, 02-Jun-2020
1642,Revenue,CAHD,CSC - Vinney Green Secure Unit,"Provisions (Food, etc)",Charles Saunders Limited,501.82, 08-Jun-2020
1643,Revenue,CAHD,CSC - Vinney Green Secure Unit,"Provisions (Food, etc)",Charles Saunders Limited,603.96, 16-Jun-2020
1644,Revenue,CAHD,CSC - Vinney Green Secure Unit,"Provisions (Food, etc)",Charles Saunders Limited,428.13, 16-Jun-2020
1645,Revenue,CAHD,Mental Capacity Act / DOLS,Legal Fees,Individual,500.00, 01-Jun-2020
1646,Revenue,CAHD,Statemented Support Academies,Other Public Bodies,Charlton Wood Primary Academy,702.17, 22-Jun-2020
1647,Revenue,CAHD,Central - Commissioned Services,Other Small Contracts,Cherish Able Care Limited,2308.74, 03-Jun-2020
1648,Revenue,CAHD,South - Commissioned Services,Other Small Contracts,Cherish Able Care Limited,5342.82, 03-Jun-2020
1649,Revenue,CAHD,North - Community based support,Other Small Contracts,Cherish Able Care Limited,531.30, 03-Jun-2020
1650,Revenue,CAHD,Central - Commissioned Services,Other Small Contracts,Cherish Able Care Limited,2289.42, 09-Jun-2020
1651,Revenue,CAHD,South - Commissioned Services,Other Small Contracts,Cherish Able Care Limited,5644.20, 09-Jun-2020
1652,Revenue,CAHD,North - Community based support,Other Small Contracts,Cherish Able Care Limited,463.68, 09-Jun-2020
1653,Revenue,CAHD,Central - Commissioned Services,Other Small Contracts,Cherish Able Care Limited,1825.74, 16-Jun-2020
1654,Revenue,CAHD,South - Commissioned Services,Other Small Contracts,Cherish Able Care Limited,6101.03, 16-Jun-2020
1655,Revenue,CAHD,North - Community based support,Other Small Contracts,Cherish Able Care Limited,540.96, 16-Jun-2020
1656,Revenue,CAHD,Central - Commissioned Services,Other Small Contracts,Cherish Able Care Limited,1555.26, 23-Jun-2020
1657,Revenue,CAHD,South - Commissioned Services,Other Small Contracts,Cherish Able Care Limited,6044.99, 23-Jun-2020
1658,Revenue,CAHD,North - Community based support,Other Small Contracts,Cherish Able Care Limited,502.32, 23-Jun-2020
1659,Revenue,CAHD,Covid � ASC - Infection Control,Grants to Voluntary Bodies,Cherish Able Care Limited,4501.53, 26-Jun-2020
1660,Revenue,CAHD,18-25 Year Olds,Other Small Contracts,Cherry Orchards,3255.42, 25-Jun-2020
1661,Revenue,CAHD,South - Commissioned Services,Supported Living,Cherry Orchards,1313.76, 15-Jun-2020
1662,Revenue,CAHD,18-25 Year Olds,Other Small Contracts,Cherry Orchards,1593.90, 15-Jun-2020
1663,Revenue,CAHD,South - Commissioned Services,Other Small Contracts,Cherry Orchards,6491.52, 16-Jun-2020
1664,Revenue,CAHD,Covid � ASC - Infection Control,Grants to Voluntary Bodies,Cherry Orchards,545.64, 26-Jun-2020
1665,Revenue,CAHD,18-25 Year Olds,Supported Living,Cherry Orchards,1715.64, 02-Jun-2020
1666,Revenue,CAHD,18-25 Year Olds,Supported Living,Cherry Orchards,1715.64, 30-Jun-2020
1667,Revenue,CAHD,South - Commissioned Services,Supported Living,Cherry Orchards,2085.84, 02-Jun-2020
1668,Revenue,CAHD,South - Commissioned Services,Supported Living,Cherry Orchards,23517.04, 02-Jun-2020
1669,Revenue,CAHD,South - Commissioned Services,Supported Living,Cherry Orchards,2085.84, 30-Jun-2020
1670,Revenue,CAHD,18-25 Year Olds,Supported Living,Cherry Orchards,2030.52, 02-Jun-2020
1671,Revenue,CAHD,18-25 Year Olds,Supported Living,Cherry Orchards,2030.52, 30-Jun-2020
1672,Revenue,CAHD,North - Community based support,Supported Living,Cherry Orchards,1042.96, 02-Jun-2020
1673,Revenue,CAHD,North - Community based support,Supported Living,Cherry Orchards,1042.96, 30-Jun-2020
1674,Revenue,CAHD,Covid � ASC - Infection Control,Grants to Voluntary Bodies,Chescombe Trust Ltd,1573.39, 26-Jun-2020
1675,Revenue,CAHD,S28A cases,Permanent Residential,Chescombe Trust Ltd,9959.72, 02-Jun-2020
1676,Revenue,CAHD,S28A cases,Permanent Residential,Chescombe Trust Ltd,9959.72, 30-Jun-2020
1677,Revenue,CAHD,Covid � ASC - Infection Control,Grants to Voluntary Bodies,Chescombe Trust Ltd,9459.15, 10-Jun-2020
1678,Revenue,CAHD,Central - Commissioned Services,Other Small Contracts,Cintre,229.08, 04-Jun-2020
1679,Revenue,CAHD,South - Commissioned Services,Other Small Contracts,Cintre,966.12, 04-Jun-2020
1680,Revenue,CAHD,Central - Commissioned Services,Other Small Contracts,Cintre,239.04, 09-Jun-2020
1681,Revenue,CAHD,South - Commissioned Services,Other Small Contracts,Cintre,976.08, 09-Jun-2020
1682,Revenue,CAHD,Central - Commissioned Services,Other Small Contracts,Cintre,229.08, 18-Jun-2020
1683,Revenue,CAHD,South - Commissioned Services,Other Small Contracts,Cintre,976.08, 18-Jun-2020
1684,Revenue,CAHD,Covid � ASC - Infection Control,Grants to Voluntary Bodies,Cintre,1091.28, 26-Jun-2020
1685,Revenue,CAHD,Planning and Partnerships Procurement,Membership Fees,CIPFA Business Limited,241.57, 05-Jun-2020
1686,Revenue,CAHD,Post 16 High Needs Placements,Other Private Contractors,City of Bath College,98254.41, 12-Jun-2020
1687,Revenue,CAHD,RSL Running Costs,Software Purchase,Civica UK Limited,3145.00, 23-Jun-2020
1688,Revenue,CAHD,Tenancy Start Up Scheme,Other Supplies & Services,Claire Kedward,2000.00, 25-Jun-2020
1689,Revenue,CAHD,South - Commissioned Services,Permanent Residential,Clearwater Care,5280.28, 02-Jun-2020
1690,Revenue,CAHD,South - Commissioned Services,Permanent Residential,Clearwater Care,5280.28, 30-Jun-2020
1691,Revenue,CAHD,South - Commissioned Services,Permanent Residential,Cleeve Lodge,3760.12, 02-Jun-2020
1692,Revenue,CAHD,South - Commissioned Services,Permanent Residential,Cleeve Lodge,3760.12, 30-Jun-2020
1693,Revenue,CAHD,South - Commissioned Services,Permanent Residential,Cleeve Lodge,3760.12, 02-Jun-2020
1694,Revenue,CAHD,South - Commissioned Services,Permanent Residential,Cleeve Lodge,3760.12, 30-Jun-2020
1695,Revenue,CAHD,South - Commissioned Services,Permanent Residential,Cleeve Lodge,1334.60, 02-Jun-2020
1696,Revenue,CAHD,South - Commissioned Services,Permanent Residential,Cleeve Lodge,1334.60, 30-Jun-2020
1697,Revenue,CAHD,South - Commissioned Services,Permanent Residential,Cleeve Lodge,2980.12, 02-Jun-2020
1698,Revenue,CAHD,South - Commissioned Services,Permanent Residential,Cleeve Lodge,2980.12, 30-Jun-2020
1699,Revenue,CAHD,South - Commissioned Services,Permanent Residential,Cleeve Lodge,4400.00, 02-Jun-2020
1700,Revenue,CAHD,South - Commissioned Services,Permanent Residential,Cleeve Lodge,4400.00, 30-Jun-2020
1701,Revenue,CAHD,South - Commissioned Services,Permanent Residential,Cleeve Lodge,4000.00, 02-Jun-2020
1702,Revenue,CAHD,South - Commissioned Services,Permanent Residential,Cleeve Lodge,4000.00, 30-Jun-2020
1703,Revenue,CAHD,North - Community based support,Respite Planned - Residential,Cleeve Lodge,8014.29, 30-Jun-2020
1704,Revenue,CAHD,North - Community based support,Respite Planned - Residential,Cleeve Lodge,1728.57, 30-Jun-2020
1705,Revenue,CAHD,South - Commissioned Services,Permanent Residential,Cleeve Lodge,4000.00, 02-Jun-2020
1706,Revenue,CAHD,South - Commissioned Services,Permanent Residential,Cleeve Lodge,10000.00, 30-Jun-2020
1707,Revenue,CAHD,South - Commissioned Services,Permanent Residential,Cleeve Lodge,4000.00, 30-Jun-2020
1708,Revenue,CAHD,South - Commissioned Services,Fees & Charges Income - General,Cleeve Lodge,4090.22, 30-Jun-2020
1709,Revenue,CAHD,Covid � ASC - Infection Control,Grants to Voluntary Bodies,Cleeve Lodge,2732.73, 26-Jun-2020
1710,Revenue,CAHD,North - Community based support,Respite Planned - Residential,Cleeve Lodge,7428.57, 30-Jun-2020
1711,Revenue,CAHD,North - Community based support,Respite Planned - Residential,Cleeve Lodge,571.43, 30-Jun-2020
1712,Revenue,CAHD,South - Commissioned Services,Permanent Residential,Cleeve Lodge,2950.88, 02-Jun-2020
1713,Revenue,CAHD,South - Commissioned Services,Permanent Residential,Cleeve Lodge,2950.88, 30-Jun-2020
1714,Revenue,CAHD,South - Commissioned Services,Fees & Charges Income - General,Cleeve Lodge,1443.48, 30-Jun-2020
1715,Revenue,CAHD,South - Commissioned Services,Permanent Residential,Cleeve Lodge,576.07, 02-Jun-2020
1716,Revenue,CAHD,Covid � ASC - Infection Control,Grants to Voluntary Bodies,Cleeve Lodge,16429.05, 10-Jun-2020
1717,Revenue,CAHD,North - Community based support,Permanent Nursing,Clevedon Court Nursing Home,3448.16, 02-Jun-2020
1718,Revenue,CAHD,North - Community based support,Permanent Nursing,Clevedon Court Nursing Home,3448.16, 30-Jun-2020
1719,Revenue,CAHD,NHS Health Checks,Other Small Contracts,Close Farm Surgery,1496.00, 01-Jun-2020
1720,Revenue,CAHD,Central - Commissioned Services,Other Small Contracts,Clover Health and Home Care Ltd,1444.32, 19-Jun-2020
1721,Revenue,CAHD,Central - Commissioned Services,Other Small Contracts,Clover Health and Home Care Ltd,509.76, 05-Jun-2020
1722,Revenue,CAHD,Central - Commissioned Services,Other Small Contracts,Clover Health and Home Care Ltd,892.08, 05-Jun-2020
1723,Revenue,CAHD,Central - Commissioned Services,Other Small Contracts,Clover Health and Home Care Ltd,1210.68, 04-Jun-2020
1724,Revenue,CAHD,Central - Commissioned Services,Other Small Contracts,Clover Health and Home Care Ltd,1847.88, 25-Jun-2020
1725,Revenue,CAHD,South - Commissioned Services,Permanent Residential,Collingwood Care Home,2882.76, 02-Jun-2020
1726,Revenue,CAHD,South - Commissioned Services,Permanent Residential,Collingwood Care Home,2882.76, 30-Jun-2020
1727,Revenue,CAHD,North - Community based support,Permanent Residential,Collingwood Care Home,3000.00, 02-Jun-2020
1728,Revenue,CAHD,North - Community based support,Permanent Residential,Collingwood Care Home,3000.00, 30-Jun-2020
1729,Revenue,CAHD,Covid � ASC - Infection Control,Grants to Voluntary Bodies,Collingwood Care Home,2153.06, 26-Jun-2020
1730,Revenue,CAHD,South - Commissioned Services,Permanent Residential,Collingwood Care Home,2554.36, 02-Jun-2020
1731,Revenue,CAHD,South - Commissioned Services,Permanent Residential,Collingwood Care Home,2554.36, 30-Jun-2020
1732,Revenue,CAHD,Covid � ASC - Infection Control,Grants to Voluntary Bodies,Collingwood Care Home,12944.10, 10-Jun-2020
1733,Revenue,CAHD,South - Commissioned Services,Permanent Residential,Community Theraputic Services,7893.40, 02-Jun-2020
1734,Revenue,CAHD,Jointly Funded H&SC Packages,Permanent Residential,Community Theraputic Services,4875.84, 02-Jun-2020
1735,Revenue,CAHD,South - Commissioned Services,Permanent Residential,Community Theraputic Services,7893.40, 30-Jun-2020
1736,Revenue,CAHD,Jointly Funded H&SC Packages,Permanent Residential,Community Theraputic Services,4875.84, 30-Jun-2020
1737,Revenue,CAHD,North - Community based support,Permanent Residential,Community Theraputic Services,8119.76, 02-Jun-2020
1738,Revenue,CAHD,Jointly Funded H&SC Packages,Permanent Residential,Community Theraputic Services,2027.52, 02-Jun-2020
1739,Revenue,CAHD,North - Community based support,Permanent Residential,Community Theraputic Services,8119.76, 30-Jun-2020
1740,Revenue,CAHD,Jointly Funded H&SC Packages,Permanent Residential,Community Theraputic Services,2027.52, 30-Jun-2020
1741,Revenue,CAHD,NHS Health Checks,Other Small Contracts,Concord Medical Centre,1496.00, 01-Jun-2020
1742,Revenue,CAHD,NHS Health Checks,Other Small Contracts,Coniston Medical Practice,1013.00, 01-Jun-2020
1743,Revenue,CAHD,Statemented Support Equipment,Educational Supplies & Equipment,Connevans Limited,1590.05, 08-Jun-2020
1744,Revenue,CAHD,Bed and Breakfast,Bed & Breakfast,Connolly & Callaghan Limited,457.80, 02-Jun-2020
1745,Revenue,CAHD,Bed and Breakfast,Bed & Breakfast,Connolly & Callaghan Limited,593.60, 02-Jun-2020
1746,Revenue,CAHD,Bed and Breakfast,Bed & Breakfast,Connolly & Callaghan Limited,422.80, 01-Jun-2020
1747,Revenue,CAHD,Bed and Breakfast,Bed & Breakfast,Connolly & Callaghan Limited,764.40, 02-Jun-2020
1748,Revenue,CAHD,Bed and Breakfast,Bed & Breakfast,Connolly & Callaghan Limited,422.80, 02-Jun-2020
1749,Revenue,CAHD,Bed and Breakfast,Bed & Breakfast,Connolly & Callaghan Limited,593.60, 01-Jun-2020
1750,Revenue,CAHD,Bed and Breakfast,Bed & Breakfast,Connolly & Callaghan Limited,422.80, 01-Jun-2020
1751,Revenue,CAHD,Bed and Breakfast,Bed & Breakfast,Connolly & Callaghan Limited,686.70, 02-Jun-2020
1752,Revenue,CAHD,Bed and Breakfast,Bed & Breakfast,Connolly & Callaghan Limited,679.00, 02-Jun-2020
1753,Revenue,CAHD,Bed and Breakfast,Bed & Breakfast,Connolly & Callaghan Limited,463.40, 02-Jun-2020
1754,Revenue,CAHD,Bed and Breakfast,Bed & Breakfast,Connolly & Callaghan Limited,457.80, 11-Jun-2020
